{"text_format":"1","workbook":"xlsx","n_sheets":4,"sheets":["Калькулятор","Прайс","Основания","Стулья"],"not_rendered":{"charts":0,"images":2,"macros":1,"external_links":0,"defined_names":39,"comments":0,"pivot_tables":0},"unopened":[],"bounds":{"document_bytes":16777216,"sheet_cells":100000,"rows_first":2000,"rows_last":500,"rows_between":2000,"halvings":0,"cell_chars":16384,"cell_head_chars":4096},"cells_cut":0,"cells_raw":0,"read":"whole","date_system":"1900"}

{"sheet":"Калькулятор","index":0,"n_rows":29,"n_cols":8,"rows_kept":29,"cut":false,"hidden":false,"merged":[]}
[]
[null,null,"КАЛЬКУЛЯТОР для рассчета стоимости продукции "]
[]
[null,"Арт. в ИТМ","Столешница","Цена за м2","Кол-во","Площадь, м2","Цена"]
[null,{"$f":"INDEX(Прайс!A2:A17,C5)","v":"001-410"},1,{"$f":"INDEX(столешницы,C5,4)","v":16920},1,{"$f":"D7*E7*E5","v":2},{"$f":"D5*F5","v":33840}]
[null,null,null,"Ширина, м.","Глубина, м."]
[null,null,null,1,2]
[null,null,"Добавить механизм раздвижения стола?","Цена за комп.",null,null,"Цена"]
[null,{"$f":"IF(C9=TRUE,Прайс!A19,\"\")","v":""},false,{"$f":"IFERROR(VLOOKUP(B9,Прайс!A19:D19,4),\"0\")","v":"0"},null,null,{"$f":"D9","v":"0"}]
[null,null,"Основание стола","Цена за комп.","Кол-во",null,"Цена"]
[null,{"$f":"IFERROR(INDEX(Прайс!$A$21:$A$206,MATCH(C11,Прайс!$B$21:$B$206,0)),\"\")","v":""},"",{"$f":"SUMIF(Прайс!$B$1:B600,C11,Прайс!$D$1:D600)","v":0},1,null,{"$f":"D11*E11","v":0}]
[null,null,"Табуреты","Цена за шт.","Кол-во",null,""]
[null,{"$f":"IFERROR(INDEX(Прайс!$A$321:$A$362,MATCH(C13,Прайс!$B$321:$B$362,0)),\"\")","v":""},"",{"$f":"SUMIF(Прайс!$B$1:B600,C13,Прайс!$D$1:D600)","v":0},1,null,{"$f":"D13*E13","v":0}]
[null,null,"Стулья","Цена за шт.","Кол-во",null,"Цена"]
[null,{"$f":"IFERROR(INDEX(Прайс!$A$207:$A$306,MATCH(C15,Прайс!$B$207:$B$306,0)),\"\")","v":""},"",{"$f":"SUMIF(Прайс!$B$1:B600,C15,Прайс!$D$1:D600)","v":0},1,null,{"$f":"D15*E15","v":0}]
[null,null,"Кресла","Цена за шт.","Кол-во",null,"Цена"]
[null,{"$f":"IFERROR(INDEX(Прайс!$A$308:$A$319,MATCH(C17,Прайс!$B$308:$B$319,0)),\"\")","v":""},"",{"$f":"SUMIF(Прайс!$B$1:B600,C17,Прайс!$D$1:D600)","v":0},1,null,{"$f":"D17*E17","v":0}]
[null,null,"Диваны","Цена за шт.","Кол-во",null,"Цена"]
[null,{"$f":"IFERROR(INDEX(Прайс!$A$398:$A$423,MATCH(C19,Прайс!$B$398:$B$423,0)),\"\")","v":""},"",{"$f":"SUMIF(Прайс!$B$1:B600,C19,Прайс!$D$1:D600)","v":0},1,null,{"$f":"D19*E19","v":0}]
[null,null,"Барные стулья и тубареты","Цена за шт.","Кол-во",null,"Цена"]
[null,{"$f":"IFERROR(INDEX(Прайс!$A$364:$A$396,MATCH(C21,Прайс!$B$364:$B$396,0)),\"\")","v":""},"",{"$f":"SUMIF(Прайс!$B$1:B600,C21,Прайс!$D$1:D600)","v":0},1,null,{"$f":"D21*E21","v":0}]
[null,null,"Разное","Цена за шт.","Кол-во",null,"Цена"]
[null,{"$f":"IFERROR(INDEX(Прайс!$A$425:$A$517,MATCH(C23,Прайс!$B$425:$B$517,0)),\"\")","v":""},"",{"$f":"SUMIF(Прайс!$B$1:B600,C23,Прайс!$D$1:D600)","v":0},1,null,{"$f":"D23*E23","v":0}]
[null,null,"Разное","Цена за шт.","Кол-во",null,"Цена"]
[null,{"$f":"IFERROR(INDEX(Прайс!$A$425:$A$517,MATCH(C25,Прайс!$B$425:$B$517,0)),\"\")","v":""},"",{"$f":"SUMIF(Прайс!$B$1:B600,C25,Прайс!$D$1:D600)","v":0},1,null,{"$f":"D25*E25","v":0}]
[null,null,"Разное","Цена за шт.","Кол-во",null,"Цена"]
[null,{"$f":"IFERROR(INDEX(Прайс!$A$425:$A$517,MATCH(C27,Прайс!$B$425:$B$517,0)),\"\")","v":""},"",{"$f":"SUMIF(Прайс!$B$1:B600,C27,Прайс!$D$1:D600)","v":0},1,null,{"$f":"D27*E27","v":0}]
[]
[null,null,null,null,null,"Итоговая стоимость комплекта мебели",{"$f":"G5+G9+G11+G13+G15+G17+G19+G21+G23+G25+G27","v":33840},"руб"]

{"sheet":"Прайс","index":1,"n_rows":517,"n_cols":7,"rows_kept":517,"cut":false,"hidden":false,"merged":[]}
["Арт. в ИТМ","Наименование","Ед. изм","Розничная цена"]
["001-410","Столешница массив 40мм, БУК, без патины","м2",16920]
["001-410п","Столешница массив 40мм, БУК, патина","м2",18274]
["001-411","Столешница массив 40мм, БУК, с окантовкой, без патины","м2",20304]
["001-411п","Столешница массив 40мм, БУК, с окантовкой, патина","м2",21928]
["001-610","Столешница массив 60мм, БУК, без патины","м2",21996]
["001-610п","Столешница массив 60мм, БУК, патина","м2",23756]
["001-810","Столешница массив 80мм, БУК, без патины","м2",27072]
["001-810п","Столешница массив 80мм, БУК, патина","м2",29238]
["001-420","Столешница массив 40мм, СОСНА, без патины","м2",14100]
["001-420п","Столешница массив 40мм, СОСНА, патина","м2",15228]
["001-620","Столешница массив 60мм, СОСНА, без патины","м2",18330,null,null,""]
["001-620п","Столешница массив 60мм, СОСНА, патина","м2",19796]
["001-820","Столешница массив 80мм, СОСНА, без патины","м2",22560]
["001-820п","Столешница массив 80мм, СОСНА, патина","м2",24365]
["001-230","Столешница 22мм, МДФ, без патины","м2",12086]
["001-230п","Столешница 22мм, МДФ, патина","м2",13053]
[]
["002-140","Раздвижной механизм стола, металл","компл.",3960]
[]
["003-110","Основание стола БОГЕМА, Бг1, бук, без патины","компл.",52173]
["003-110п","Основание стола БОГЕМА, Бг1, бук, патина","компл.",56347]
["003-210","Основание стола БОГЕМА, Бг2, бук, без патины","компл.",59433]
["003-210п","Основание стола БОГЕМА, Бг2, бук, патина","компл.",64188]
["003-310","Основание стола БОГЕМА, Бг3, бук, без патины","компл.",53845]
["003-310п","Основание стола БОГЕМА, Бг3, бук, патина","компл.",58153]
["004-110","Основание стола ВИЗИТ, Вз1, бук, без патины","компл.",25832]
["004-110п","Основание стола ВИЗИТ, Вз1, бук, патина","компл.",27899]
["004-111","Основание стола ВИЗИТ, Вз1, бук, более 150х80см, без патины","компл.",33582]
["004-111п","Основание стола ВИЗИТ, Вз1, бук, более 150х80см, патина","компл.",36268]
["004-120","Основание стола ВИЗИТ, Вз1, сосна, без патины","компл.",21527]
["004-120п","Основание стола ВИЗИТ, Вз1, сосна, патина","компл.",23249]
["004-121","Основание стола ВИЗИТ, Вз1, сосна, более 150х80см, без патины","компл.",27985]
["004-121п","Основание стола ВИЗИТ, Вз1, сосна, более 150х80см, патина","компл.",30223]
["005-110","Основание стола ГОСТЬ, Гс1, бук, без патины","компл.",29293]
["005-110п","Основание стола ГОСТЬ, Гс1, бук, патина","компл.",31636]
["005-210","Основание стола ГОСТЬ, Гс2, бук, без патины","компл.",21527]
["005-210п","Основание стола ГОСТЬ, Гс2, бук, патина","компл.",23249]
["005-310","Основание стола ГОСТЬ, Гс3, бук, без патины","компл.",28930]
["005-310п","Основание стола ГОСТЬ, Гс3, бук, патина","компл.",31244]
["005-410","Основание стола ГОСТЬ, Гс4, бук, без патины","компл.",14532]
["005-410п","Основание стола ГОСТЬ, Гс4, бук, патина","компл.",15695]
["005-411","Основание стола ГОСТЬ, Гс4, бук, более 150х80см, без патины","компл.",18892]
["005-411п","Основание стола ГОСТЬ, Гс4, бук, более 150х80см, патина","компл.",20403]
["005-420","Основание стола ГОСТЬ, Гс4, сосна, без патины","компл.",12110]
["005-420п","Основание стола ГОСТЬ, Гс4, сосна, патина","компл.",13079]
["005-421","Основание стола ГОСТЬ, Гс4, сосна, более 150х80см, без патины","компл.",15743]
["005-421п","Основание стола ГОСТЬ, Гс4, сосна, более 150х80см, патина","компл.",17002]
["005-510","Основание стола ГОСТЬ, Гс5, бук, без патины","компл.",14532]
["005-510п","Основание стола ГОСТЬ, Гс5, бук, патина","компл.",15695]
["005-511","Основание стола ГОСТЬ, Гс5, бук, более 150х80см, без патины","компл.",18892]
["005-511п","Основание стола ГОСТЬ, Гс5, бук, более 150х80см, патина","компл.",20403]
["005-520","Основание стола ГОСТЬ, Гс5, сосна, без патины","компл.",12110]
["005-520п","Основание стола ГОСТЬ, Гс5, сосна, патина","компл.",13079]
["005-521","Основание стола ГОСТЬ, Гс5, сосна, более 150х80см, без патины","компл.",15743]
["005-521п","Основание стола ГОСТЬ, Гс5, сосна, более 150х80см, патина","компл.",17002]
["006-110","Основание стола ГРАЦИЯ, Гр1, бук, без патины","компл.",15970]
["006-110п","Основание стола ГРАЦИЯ, Гр1, бук, патина","компл.",17248]
["006-210","Основание стола ГРАЦИЯ, Гр2, бук, без патины","компл.",16130]
["006-210п","Основание стола ГРАЦИЯ, Гр2, бук, патина","компл.",17420]
["007-110","Основание стола ДЕГУСТАТОР, Дг1, бук, без патины","компл.",12593]
["007-110п","Основание стола ДЕГУСТАТОР, Дг1, бук, патина","компл.",13600]
["007-120","Основание стола ДЕГУСТАТОР, Дг1, сосна, без патины","компл.",10494]
["007-120п","Основание стола ДЕГУСТАТОР, Дг1, сосна, патина","компл.",11334]
["008-110","Основание стола ДЕСЕРТ, Дс1, бук, без патины","компл.",9820]
["008-110п","Основание стола ДЕСЕРТ, Дс1, бук, патина","компл.",10606]
["009-110","Основание стола ДИНАСТИЯ, Дн1, бук, без патины","компл.",23791]
["009-110п","Основание стола ДИНАСТИЯ, Дн1, бук, патина","компл.",25694]
["009-120","Основание стола ДИНАСТИЯ, Дн1 сосна, без патины","компл.",19826]
["009-120п","Основание стола ДИНАСТИЯ, Дн1 сосна, патина","компл.",21412]
["009-210","Основание стола ДИНАСТИЯ, Дн2, бук, без патины","компл.",22671]
["009-210п","Основание стола ДИНАСТИЯ, Дн2, бук, патина","компл.",24485]
["009-310","Основание стола ДИНАСТИЯ, Дн3, бук, без патины","компл.",22671]
["009-310п","Основание стола ДИНАСТИЯ, Дн3, бук, патина","компл.",24485]
["010-110","Основание стола ИЗБРАННИК, Из1, бук, без патины","компл.",12593]
["010-110п","Основание стола ИЗБРАННИК, Из1, бук, патина","компл.",13600]
["010-120","Основание стола ИЗБРАННИК, Из1, сосна, без патины","компл.",10494]
["010-120п","Основание стола ИЗБРАННИК, Из1, сосна, патина","компл.",11334]
["010-210","Основание стола ИЗБРАННИК, Из2, бук, без патины","компл.",13228]
["010-210п","Основание стола ИЗБРАННИК, Из2, бук, патина","компл.",14286]
["010-220","Основание стола ИЗБРАННИК, Из2, сосна, без патины","компл.",11023]
["010-220п","Основание стола ИЗБРАННИК, Из2, сосна, патина","компл.",11905]
["011-110","Основание стола КАПРИЗ, Кп1, бук, без патины","компл.",12593]
["011-110п","Основание стола КАПРИЗ, Кп1, бук, патина","компл.",13600]
["011-120","Основание стола КАПРИЗ, Кп1, сосна, без патины","компл.",10494]
["011-120п","Основание стола КАПРИЗ, Кп1, сосна, патина","компл.",11334]
["012-110","Основание стола КОКТЕЙЛЬ, Кк1, бук, без патины","компл.",13596]
["012-110п","Основание стола КОКТЕЙЛЬ, Кк1, бук, патина","компл.",14684]
["012-120","Основание стола КОКТЕЙЛЬ, Кк1, сосна, без патины","компл.",11330]
["012-120п","Основание стола КОКТЕЙЛЬ, Кк1, сосна, патина","компл.",12236]
["013-140","Основание стола ЛОФТ, Лф1, металл, эмаль","компл.",15752]
["014-110","Основание стола МОДЕРН, Мд1, бук, без патины","компл.",12593]
["014-110п","Основание стола МОДЕРН, Мд1, бук, патина","компл.",13600]
["014-120","Основание стола МОДЕРН, Мд1, сосна, без патины","компл.",10494]
["014-120п","Основание стола МОДЕРН, Мд1, сосна, патина","компл.",11334]
["015-110","Основание стола НОСТАЛЬГИЯ, Нс1, бук, без патины","компл.",15936]
["015-110п","Основание стола НОСТАЛЬГИЯ, Нс1, бук, патина","компл.",17211]
["015-120","Основание стола НОСТАЛЬГИЯ, Нс1, сосна, без патины","компл.",13280]
["015-120п","Основание стола НОСТАЛЬГИЯ, Нс1, сосна, патина","компл.",14342]
["016-110","Основание стола ПЕРСОНА, Пр1, бук, без патины","компл.",15528]
["016-110п","Основание стола ПЕРСОНА, Пр1, бук, патина","компл.",16770]
["016-111","Основание стола ПЕРСОНА, Пр1, бук, более 150х80см, без патины","компл.",20186]
["016-111п","Основание стола ПЕРСОНА, Пр1, бук, более 150х80см, патина","компл.",21801]
["016-120","Основание стола ПЕРСОНА, Пр1, сосна, без патины","компл.",12940]
["016-120п","Основание стола ПЕРСОНА, Пр1, сосна, патина","компл.",13975]
["016-121","Основание стола ПЕРСОНА, Пр1, сосна, более 150х80см, без патины","компл.",16822]
["016-121п","Основание стола ПЕРСОНА, Пр1, сосна, более 150х80см, патина","компл.",18168]
["016-210","Основание стола ПЕРСОНА, Пр2, бук, без патины","компл.",14532]
["016-210п","Основание стола ПЕРСОНА, Пр2, бук, патина","компл.",15695]
["016-211","Основание стола ПЕРСОНА, Пр2, бук, более 150х80см, без патины","компл.",18892]
["016-211п","Основание стола ПЕРСОНА, Пр2, бук, более 150х80см, патина","компл.",20403]
["016-220","Основание стола ПЕРСОНА, Пр2, сосна, без патины","компл.",12110]
["016-220п","Основание стола ПЕРСОНА, Пр2, сосна, патина","компл.",13079]
["016-221","Основание стола ПЕРСОНА, Пр2, сосна, более 150х80см, без патины","компл.",15743]
["016-221п","Основание стола ПЕРСОНА, Пр2, сосна, более 150х80см, патина","компл.",17002]
["017-110","Основание стола ПОМЕСТЬЕ, Пм1, бук, без патины","компл.",35152]
["017-110п","Основание стола ПОМЕСТЬЕ, Пм1, бук, патина","компл.",37964]
["017-120","Основание стола ПОМЕСТЬЕ, Пм1, сосна, без патины","компл.",29293]
["017-120п","Основание стола ПОМЕСТЬЕ, Пм1, сосна, патина","компл.",31637]
["019-110","Основание стола ПРОВАНС, Пв1, бук, без патины","компл.",18902]
["019-110п","Основание стола ПРОВАНС, Пв1, бук, патина","компл.",20414]
["019-120","Основание стола ПРОВАНС, Пв1, сосна, без патины","компл.",15752]
["019-120п","Основание стола ПРОВАНС, Пв1, сосна, патина","компл.",17012]
["018-110","Основание стола СТАТУС, Ст1, бук, без патины","компл.",14532]
["018-110п","Основание стола СТАТУС, Ст1, бук, патина","компл.",15695]
["018-111","Основание стола СТАТУС, Ст1, бук, более 150х80см, без патины","компл.",18892]
["018-111п","Основание стола СТАТУС, Ст1, бук, более 150х80см, патина","компл.",20403]
["018-120","Основание стола СТАТУС, Ст1, сосна, без патины","компл.",12110]
["018-120п","Основание стола СТАТУС, Ст1, сосна, патина","компл.",13079]
["018-121","Основание стола СТАТУС, Ст1, сосна, более 150х80см, без патины","компл.",15743]
["018-121п","Основание стола СТАТУС, Ст1, сосна, более 150х80см, патина","компл.",17002]
["018-210","Основание стола СТАТУС, Ст2, бук, без патины","компл.",14810]
["018-210п","Основание стола СТАТУС, Ст2, бук, патина","компл.",15995]
["018-211","Основание стола СТАТУС, Ст2, бук, более 150х80см, без патины","компл.",19253]
["018-211п","Основание стола СТАТУС, Ст2, бук, более 150х80см, патина","компл.",20793]
["018-220","Основание стола СТАТУС, Ст2, сосна, без патины","компл.",12342]
["018-220п","Основание стола СТАТУС, Ст2, сосна, патина","компл.",13329]
["018-221","Основание стола СТАТУС, Ст2, сосна, более 150х80см, без патины","компл.",16044]
["018-221п","Основание стола СТАТУС, Ст2, сосна, более 150х80см, патина","компл.",17328]
["024-110","Основание стола ТОРЖЕСТВО, Тр1, бук, без патины","компл.",14810]
["024-110п","Основание стола ТОРЖЕСТВО, Тр1, бук, патина","компл.",15995]
["024-111","Основание стола ТОРЖЕСТВО, Тр1, бук, более 150х80см, без патины","компл.",19253]
["024-111п","Основание стола ТОРЖЕСТВО, Тр1, бук, более 150х80см, патина","компл.",20793]
["024-120","Основание стола ТОРЖЕСТВО, Тр1, сосна, без патины","компл.",12342]
["024-120п","Основание стола ТОРЖЕСТВО, Тр1, сосна, патина","компл.",13329]
["024-121","Основание стола ТОРЖЕСТВО, Тр1, сосна, более 150х80см, без патины","компл.",16044]
["024-121п","Основание стола ТОРЖЕСТВО, Тр1, сосна, более 150х80см, патина","компл.",17328]
["024-210","Основание стола ТОРЖЕСТВО, Тр2, бук, без патины","компл.",14810]
["024-210п","Основание стола ТОРЖЕСТВО, Тр2, бук, патина","компл.",15995]
["024-211","Основание стола ТОРЖЕСТВО, Тр2, бук, более 150х80см, без патины","компл.",19253]
["024-211п","Основание стола ТОРЖЕСТВО, Тр2, бук, более 150х80см, патина","компл.",20793]
["024-220","Основание стола ТОРЖЕСТВО, Тр2, сосна, без патины","компл.",12342]
["024-220п","Основание стола ТОРЖЕСТВО, Тр2, сосна, патина","компл.",13329]
["024-221","Основание стола ТОРЖЕСТВО, Тр2, сосна, более 150х80см, без патины","компл.",16044]
["024-221п","Основание стола ТОРЖЕСТВО, Тр2, сосна, более 150х80см, патина","компл.",17328]
["024-310","Основание стола ТОРЖЕСТВО, Тр3, бук, без патины","компл.",14810]
["024-310п","Основание стола ТОРЖЕСТВО, Тр3, бук, патина","компл.",15995]
["024-311","Основание стола ТОРЖЕСТВО, Тр3, бук, более 150х80см, без патины","компл.",19253]
["024-311п","Основание стола ТОРЖЕСТВО, Тр3, бук, более 150х80см, патина","компл.",20793]
["024-320","Основание стола ТОРЖЕСТВО, Тр3, сосна, без патины","компл.",12342]
["024-320п","Основание стола ТОРЖЕСТВО, Тр3, сосна, патина","компл.",13329]
["024-321","Основание стола ТОРЖЕСТВО, Тр3, сосна, более 150х80см, без патины","компл.",16044]
["024-321п","Основание стола ТОРЖЕСТВО, Тр3, сосна, более 150х80см, патина","компл.",17328]
["024-410","Основание стола ТОРЖЕСТВО, Тр4, бук, без патины","компл.",14810]
["024-410п","Основание стола ТОРЖЕСТВО, Тр4, бук, патина","компл.",15995]
["024-411","Основание стола ТОРЖЕСТВО, Тр4, бук, более 150х80см, без патины","компл.",19253]
["024-411п","Основание стола ТОРЖЕСТВО, Тр4, бук, более 150х80см, патина","компл.",20793]
["024-420","Основание стола ТОРЖЕСТВО, Тр4, сосна, без патины","компл.",12342]
["024-420п","Основание стола ТОРЖЕСТВО, Тр4, сосна, патина","компл.",13329]
["024-421","Основание стола ТОРЖЕСТВО, Тр4, сосна, более 150х80см, без патины","компл.",16044]
["024-421п","Основание стола ТОРЖЕСТВО, Тр4, сосна, более 150х80см, патина","компл.",17328]
["024-510","Основание стола ТОРЖЕСТВО, Тр5, бук, без патины","компл.",14810]
["024-510п","Основание стола ТОРЖЕСТВО, Тр5, бук, патина","компл.",15995]
["024-511","Основание стола ТОРЖЕСТВО, Тр5, бук, более 150х80см, без патины","компл.",19253]
["024-511п","Основание стола ТОРЖЕСТВО, Тр5, бук, более 150х80см, патина","компл.",20793]
["024-520","Основание стола ТОРЖЕСТВО, Тр5, сосна, без патины","компл.",12342]
["024-520п","Основание стола ТОРЖЕСТВО, Тр5, сосна, патина","компл.",13329]
["024-521","Основание стола ТОРЖЕСТВО, Тр5, сосна, более 150х80см, без патины","компл.",16044]
["024-521п","Основание стола ТОРЖЕСТВО, Тр5, сосна, более 150х80см, патина","компл.",17328]
["024-610","Основание стола ТОРЖЕСТВО, Тр6, бук, без патины","компл.",15960]
["024-610п","Основание стола ТОРЖЕСТВО, Тр6, бук, патина","компл.",17237]
["024-611","Основание стола ТОРЖЕСТВО, Тр6, бук, более 150х80см, без патины","компл.",20748]
["024-611п","Основание стола ТОРЖЕСТВО, Тр6, бук, более 150х80см, патина","компл.",22408]
["024-710","Основание стола ТОРЖЕСТВО, Тр7, бук, без патины","компл.",15960]
["024-710п","Основание стола ТОРЖЕСТВО, Тр7, бук, патина","компл.",17237]
["024-711","Основание стола ТОРЖЕСТВО, Тр7, бук, более 150х80см, без патины","компл.",20748]
["024-711п","Основание стола ТОРЖЕСТВО, Тр7, бук, более 150х80см, патина","компл.",22408]
["024-810","Основание стола ТОРЖЕСТВО, Тр8, бук, без патины","компл.",15960]
["024-810п","Основание стола ТОРЖЕСТВО, Тр8, бук, патина","компл.",17237]
["024-811","Основание стола ТОРЖЕСТВО, Тр8, бук, более 150х80см, без патины","компл.",20748]
["024-811п","Основание стола ТОРЖЕСТВО, Тр8, бук, более 150х80см, патина","компл.",22408]
["024-910","Основание стола ТОРЖЕСТВО, Тр9, бук, без патины","компл.",15960]
["024-910п","Основание стола ТОРЖЕСТВО, Тр9, бук, патина","компл.",17237]
["024-911","Основание стола ТОРЖЕСТВО, Тр9, бук, более 150х80см, без патины","компл.",20748]
["024-911п","Основание стола ТОРЖЕСТВО, Тр9, бук, более 150х80см, патина","компл.",22408]
["020-110","Основание стола ХЛЕБСОЛЬ, Хс1, бук, без патины","компл.",16715]
["020-110п","Основание стола ХЛЕБСОЛЬ, Хс1, бук, патина","компл.",18052]
["021-110","Основание стола ШАРМ, Шр1, бук, без патины","компл.",12593]
["021-110п","Основание стола ШАРМ, Шр1, бук, патина","компл.",13600]
["021-120","Основание стола ШАРМ, Шр1, сосна, без патины","компл.",10494]
["021-120п","Основание стола ШАРМ, Шр1, сосна, патина","компл.",11334]
["022-110","Основание стола ЭСКОРТ, Эс1, бук, без патины","компл.",22862]
["022-110п","Основание стола ЭСКОРТ, Эс1, бук, патина","компл.",24691]
["023-110","Письменный стол ЗОЛОТОЕ ПЕРО, бук, без патины","шт",66750]
["023-110п","Письменный стол ЗОЛОТОЕ ПЕРО, бук, патина","шт",72090]
[]
["101-011","Стул АРТИСТ, бук, ткань, без патины","шт",12018]
["101-011п","Стул АРТИСТ, бук, ткань, патина","шт",12979]
["102-011","Стул АСТОРИЯ, бук, ткань, без патины","шт",16394]
["102-011п","Стул АСТОРИЯ, бук, ткань, патина","шт",17706]
["103-011","Стул БОГЕМА, бук, ткань, без патины","шт",14097]
["103-011п","Стул БОГЕМА, бук, ткань, патина","шт",15225]
["135-011","Стул БРИТНИ, бук, ткань, без патины","шт",11330]
["135-011п","Стул БРИТНИ, бук, ткань, патина","шт",12236]
["104-011","Стул ВЕНЕЦИЯ, бук, ткань, без патины","шт",5082]
["104-011п","Стул ВЕНЕЦИЯ, бук, ткань, патина","шт",5489]
["104-012","Стул ВЕНЕЦИЯ, бук, сиденье массив, без патины","шт",5590]
["104-012п","Стул ВЕНЕЦИЯ, бук, сиденье массив, патина","шт",6037]
["104-013","Стул ВЕНЕЦИЯ, бук, плетение, без патины","шт",5082]
["104-013п","Стул ВЕНЕЦИЯ, бук, плетение, патина","шт",5489]
["100-012","Стул ВЕНСКИЙ, бук, сиденье массив, без патины","шт",8220]
["100-012п","Стул ВЕНСКИЙ, бук, сиденье массив, патина","шт",8878]
["105-011","Стул ГОСТЬ, бук, ткань, без патины","шт",11148]
["105-011п","Стул ГОСТЬ, бук, ткань, патина","шт",12040]
["105-021","Стул ГОСТЬ, сосна, ткань, без патины","шт",9290]
["105-021п","Стул ГОСТЬ, сосна, ткань, патина","шт",10033]
["106-011","Стул ГОСТЬЯ, бук, ткань, без патины","шт",12863]
["106-011п","Стул ГОСТЬЯ, бук, ткань, патина","шт",13892]
["106-021","Стул ГОСТЬЯ, сосна, ткань, без патины","шт",10719]
["106-021п","Стул ГОСТЬЯ, сосна, ткань, патина","шт",11577]
["107-011","Стул ДЕЗИРЕ, бук, ткань, без патины","шт",15104]
["107-011п","Стул ДЕЗИРЕ, бук, ткань, патина","шт",16312]
["108-011","Стул ДЕНДИ, бук, ткань, без патины","шт",7623]
["108-011п","Стул ДЕНДИ, бук, ткань, патина","шт",8233]
["108-012","Стул ДЕНДИ, бук, сиденье массив, без патины","шт",8385]
["108-012п","Стул ДЕНДИ, бук, сиденье массив, патина","шт",9056]
["109-011","Стул ДЖУЛЬЕТТА, бук, ткань, без патины","шт",8350]
["109-011п","Стул ДЖУЛЬЕТТА, бук, ткань, патина","шт",9018]
["109-012","Стул ДЖУЛЬЕТТА, бук, сиденье массив, без патины","шт",9185]
["109-012п","Стул ДЖУЛЬЕТТА, бук, сиденье массив, патина","шт",9920]
["110-011","Стул КАВАЛЕР, бук, ткань, без патины","шт",10450]
["110-011п","Стул КАВАЛЕР, бук, ткань, патина","шт",11286]
["111-011","Стул КЛАУДИА, бук, ткань, без патины","шт",5841]
["111-011п","Стул КЛАУДИА, бук, ткань, патина","шт",6308]
["111-012","Стул КЛАУДИА, бук, сиденье массив, без патины","шт",6425]
["111-012п","Стул КЛАУДИА, бук, сиденье массив, патина","шт",6939]
["111-013","Стул КЛАУДИА, бук, плетение, без патины","шт",5841]
["111-013п","Стул КЛАУДИА, бук, плетение, патина","шт",6308]
["112-011","Стул КОМПАНЬОН, бук, ткань, без патины","шт",10450]
["112-011п","Стул КОМПАНЬОН, бук, ткань, патина","шт",11286]
["113-011","Стул КУМИР, бук, ткань, без патины","шт",7425]
["113-011п","Стул КУМИР, бук, ткань, патина","шт",8019]
["113-012","Стул КУМИР, бук, сиденье массив, без патины","шт",8168]
["113-012п","Стул КУМИР, бук, сиденье массив, патина","шт",8821]
["136-011","Стул МАТИЛЬДА, бук, ткань, без патины","шт",13540]
["136-011п","Стул МАТИЛЬДА, бук, ткань, патина","шт",14623]
["114-011","Стул НЕЗНАЙКА, бук, ткань, без патины","шт",3300]
["114-011п","Стул НЕЗНАЙКА, бук, ткань, патина","шт",3564]
["114-012","Стул НЕЗНАЙКА, бук, сиденье массив, без патины","шт",3630]
["114-012п","Стул НЕЗНАЙКА, бук, сиденье массив, патина","шт",3920]
["115-011","Стул ОПЕРА, бук, ткань, без патины","шт",13815]
["115-011п","Стул ОПЕРА, бук, ткань, патина","шт",14920]
["116-011","Стул ОРФЕЙ, бук, ткань, без патины","шт",12815]
["116-011п","Стул ОРФЕЙ, бук, ткань, патина","шт",13840]
["117-011","Стул ПАРОС, бук, ткань, без патины","шт",9075]
["117-011п","Стул ПАРОС, бук, ткань, патина","шт",9801]
["118-011","Стул ПРЕСТОЛ, бук, ткань, без патины","шт",8350]
["118-011п","Стул ПРЕСТОЛ, бук, ткань, патина","шт",9018]
["118-012","Стул ПРЕСТОЛ, бук, сиденье массив, без патины","шт",9185]
["118-012п","Стул ПРЕСТОЛ, бук, сиденье массив, патина","шт",9920]
["119-011","Стул ПРОВАНС, бук, ткань, без патины","шт",7623]
["119-011п","Стул ПРОВАНС, бук, ткань, патина","шт",8233]
["119-012","Стул ПРОВАНС, бук, сиденье массив, без патины","шт",8385]
["119-012п","Стул ПРОВАНС, бук, сиденье массив, патина","шт",9056]
["120-011","Стул ПРОВИНЦИЯ, бук, ткань, без патины","шт",6644]
["120-011п","Стул ПРОВИНЦИЯ, бук, ткань, патина","шт",7176]
["120-012","Стул ПРОВИНЦИЯ, бук, сиденье массив, без патины","шт",7308]
["120-012п","Стул ПРОВИНЦИЯ, бук, сиденье массив, патина","шт",7893]
["120-013","Стул ПРОВИНЦИЯ, бук, плетение, без патины","шт",6644]
["120-013п","Стул ПРОВИНЦИЯ, бук, плетение, патина","шт",7176]
["121-011","Стул РОМЕО, бук, ткань, без патины","шт",6644]
["121-011п","Стул РОМЕО, бук, ткань, патина","шт",7176]
["121-012","Стул РОМЕО, бук, сиденье массив, без патины","шт",7308]
["121-012п","Стул РОМЕО, бук, сиденье массив, патина","шт",7893]
["122-011","Стул СОВЕТНИК, бук, ткань, без патины","шт",6644]
["122-011п","Стул СОВЕТНИК, бук, ткань, патина","шт",7176]
["122-012","Стул СОВЕТНИК, бук, сиденье массив, без патины","шт",7308]
["122-012п","Стул СОВЕТНИК, бук, сиденье массив, патина","шт",7893]
["137-051","Стул СОВРЕМЕННИК, ясень, ткань, без патины","шт",15160]
["137-051п","Стул СОВРЕМЕННИК, ясень, ткань, патина","шт",16373]
["123-011","Стул ТАВЕРНА, бук, ткань, без патины","шт",7623]
["123-011п","Стул ТАВЕРНА, бук, ткань, патина","шт",8233]
["123-012","Стул ТАВЕРНА, бук, сиденье массив, без патины","шт",8385]
["123-012п","Стул ТАВЕРНА, бук, сиденье массив, патина","шт",9056]
["123-013","Стул ТАВЕРНА, бук, плетение, без патины","шт",7623]
["123-013п","Стул ТАВЕРНА, бук, плетение, патина","шт",8233]
["124-011","Стул ФЛОРЕНЦИЯ, бук, ткань, без патины","шт",5841]
["124-011п","Стул ФЛОРЕНЦИЯ, бук, ткань, патина","шт",6308]
["124-012","Стул ФЛОРЕНЦИЯ, бук, сиденье массив, без патины","шт",6425]
["124-012п","Стул ФЛОРЕНЦИЯ, бук, сиденье массив, патина","шт",6939]
["124-013","Стул ФЛОРЕНЦИЯ, бук, плетение, без патины","шт",5841]
["124-013п","Стул ФЛОРЕНЦИЯ, бук, плетение, патина","шт",6308]
["138-011","Стул ЧЕЛСИ, бук, ткань, без патины","шт",17220]
["138-011п","Стул ЧЕЛСИ, бук, ткань, патина","шт",18598]
["125-011","Стул ЭЛТОН, бук, ткань, без патины","шт",8350]
["125-011п","Стул ЭЛТОН, бук, ткань, патина","шт",9018]
[]
["202-011","Кресло АСТОРИЯ, бук, ткань, без патины","шт",18117]
["202-011п","Кресло АСТОРИЯ, бук, ткань, патина","шт",19566]
["207-011","Кресло ДЕЗИРЕ, бук, ткань, без патины","шт",16783]
["207-011п","Кресло ДЕЗИРЕ, бук, ткань, патина","шт",18126]
["226-011","Кресло КОМФОРТ, бук, ткань, без патины","шт",12815]
["226-011п","Кресло КОМФОРТ, бук, ткань, патина","шт",13840]
["215-011","Кресло ОПЕРА, бук, ткань, без патины","шт",14322]
["215-011п","Кресло ОПЕРА, бук, ткань, патина","шт",15468]
["227-011","Кресло ОТДЫХ, бук, ткань, без патины","шт",11385]
["227-011п","Кресло ОТДЫХ, бук, ткань, патина","шт",12296]
["228-011","Кресло ХОББИ, бук, ткань, без патины","шт",12815]
["228-011п","Кресло ХОББИ, бук, ткань, патина","шт",13840]
[]
["304-011","Табурет ВЕНЕЦИЯ, бук, ткань, без патины","шт",4862]
["304-011п","Табурет ВЕНЕЦИЯ, бук, ткань, патина","шт",5251]
["304-012","Табурет ВЕНЕЦИЯ, бук, сиденье массив, без патины","шт",5348]
["304-012п","Табурет ВЕНЕЦИЯ, бук, сиденье массив, патина","шт",5776]
["304-013","Табурет ВЕНЕЦИЯ, бук, плетение, без патины","шт",4862]
["304-013п","Табурет ВЕНЕЦИЯ, бук, плетение, патина","шт",5251]
["309-011","Табурет ДЖУЛЬЕТТА, бук, ткань, без патины","шт",3788]
["309-011п","Табурет ДЖУЛЬЕТТА, бук, ткань, патина","шт",4091]
["309-012","Табурет ДЖУЛЬЕТТА, бук, сиденье массив, без патины","шт",4167]
["309-012п","Табурет ДЖУЛЬЕТТА, бук, сиденье массив, патина","шт",4500]
["309-021","Табурет ДЖУЛЬЕТТА, сосна, ткань, без патины","шт",3157]
["309-021п","Табурет ДЖУЛЬЕТТА, сосна, ткань, патина","шт",3409]
["309-022","Табурет ДЖУЛЬЕТТА, сосна, сиденье массив, без патины","шт",3472]
["309-022п","Табурет ДЖУЛЬЕТТА, сосна, сиденье массив, патина","шт",3750]
["329-011","Табурет КВАДРО, бук, ткань, без патины","шт",3788]
["329-011п","Табурет КВАДРО, бук, ткань, патина","шт",4091]
["329-012","Табурет КВАДРО, бук, сиденье массив, без патины","шт",4167]
["329-012п","Табурет КВАДРО, бук, сиденье массив, патина","шт",4500]
["329-021","Табурет КВАДРО, сосна, ткань, без патины","шт",3157]
["329-021п","Табурет КВАДРО, сосна, ткань, патина","шт",3409]
["329-022","Табурет КВАДРО, сосна, сиденье массив, без патины","шт",3472]
["329-022п","Табурет КВАДРО, сосна, сиденье массив, патина","шт",3750]
["330-011","Табурет КРУГ, бук, ткань, без патины","шт",3788]
["330-011п","Табурет КРУГ, бук, ткань, патина","шт",4091]
["330-012","Табурет КРУГ, бук, сиденье массив, без патины","шт",4167]
["330-012п","Табурет КРУГ, бук, сиденье массив, патина","шт",4500]
["330-021","Табурет КРУГ, сосна, ткань, без патины","шт",3157]
["330-021п","Табурет КРУГ, сосна, ткань, патина","шт",3409]
["330-022","Табурет КРУГ, сосна, сиденье массив, без патины","шт",3472]
["330-022п","Табурет КРУГ, сосна, сиденье массив, патина","шт",3750]
["321-011","Табурет РОМЕО, бук, ткань, без патины","шт",3788]
["321-011п","Табурет РОМЕО, бук, ткань, патина","шт",4091]
["321-012","Табурет РОМЕО, бук, сиденье массив, без патины","шт",4167]
["321-012п","Табурет РОМЕО, бук, сиденье массив, патина","шт",4500]
["321-021","Табурет РОМЕО, сосна, ткань, без патины","шт",3157]
["321-021п","Табурет РОМЕО, сосна, ткань, патина","шт",3409]
["321-022","Табурет РОМЕО, сосна, сиденье массив, без патины","шт",3472]
["321-022п","Табурет РОМЕО, сосна, сиденье массив, патина","шт",3750]
["317-012","Табурет ПОМЕСТЬЕ, бук, сиденье массив, без патины","шт.",11695]
["317-012п","Табурет ПОМЕСТЬЕ, бук, сиденье массив, патина","шт.",12631]
["317-022","Табурет ПОМЕСТЬЕ, сосна, сиденье массив, без патины","шт.",9746]
["317-022п","Табурет ПОМЕСТЬЕ, сосна, сиденье массив, патина","шт.",10526]
[]
["402-011","Стул барный АСТОРИЯ, бук, ткань, без патины","шт",21345]
["402-011п","Стул барный АСТОРИЯ, бук, ткань, патина","шт",23053]
["404-011","Стул барный ВЕНЕЦИЯ, бук, ткань, без патины","шт",8349]
["404-011п","Стул барный ВЕНЕЦИЯ, бук, ткань, патина","шт",9017]
["404-012","Стул барный ВЕНЕЦИЯ, бук, сиденье массив, без патины","шт",9184]
["404-012п","Стул барный ВЕНЕЦИЯ, бук, сиденье массив, патина","шт",9919]
["404-013","Стул барный ВЕНЕЦИЯ, бук, плетение, без патины","шт",8349]
["404-013п","Стул барный ВЕНЕЦИЯ, бук, плетение, патина","шт",9017]
["421-011","Стул барный РОМЕО, бук, ткань, без патины","шт",12815]
["421-011п","Стул барный РОМЕО, бук, ткань, патина","шт",13840]
["421-012","Стул барный РОМЕО, бук, сиденье массив, без патины","шт",14097]
["421-012п","Стул барный РОМЕО, бук, сиденье массив, патина","шт",15224]
["424-011","Стул барный ФЛОРЕНЦИЯ, бук, ткань, без патины","шт",8349]
["424-011п","Стул барный ФЛОРЕНЦИЯ, бук, ткань, патина","шт",9017]
["424-012","Стул барный ФЛОРЕНЦИЯ, бук, сиденье массив, без патины","шт",9184]
["424-012п","Стул барный ФЛОРЕНЦИЯ, бук, сиденье массив, патина","шт",9919]
["424-013","Стул барный ФЛОРЕНЦИЯ, бук, плетение, без патины","шт",8349]
["424-013п","Стул барный ФЛОРЕНЦИЯ, бук, плетение, патина","шт",9017]
[]
["504-011","Табурет барный ВЕНЕЦИЯ, бук, ткань, без патины","шт",6600]
["504-011п","Табурет барный ВЕНЕЦИЯ, бук, ткань, патина","шт",7128]
["504-012","Табурет барный ВЕНЕЦИЯ, бук, сиденье массив, без патины","шт",7260]
["504-012п","Табурет барный ВЕНЕЦИЯ, бук, сиденье массив, патина","шт",7841]
["504-013","Табурет барный ВЕНЕЦИЯ, бук, плетение, без патины","шт",6600]
["504-013п","Табурет барный ВЕНЕЦИЯ, бук, плетение, патина","шт",7128]
["530-011","Табурет барный КРУГ, бук, ткань, без патины","шт",7102]
["530-011п","Табурет барный КРУГ, бук, ткань, патина","шт",7670]
["530-012","Табурет барный КРУГ, бук, сиденье массив, без патины","шт",7812]
["530-012п","Табурет барный КРУГ, бук, сиденье массив, патина","шт",8437]
["530-021","Табурет барный КРУГ, сосна, ткань, без патины","шт",5918]
["530-021п","Табурет барный КРУГ, сосна, ткань, патина","шт",6392]
["530-022","Табурет барный КРУГ, сосна, сиденье массив, без патины","шт",6510]
["530-022п","Табурет барный КРУГ, сосна, сиденье массив, патина","шт",7031]
[]
["631-011","Диван ВИКТОРИЯ-квадро, бук, ткань, без патины","шт",22176]
["631-011п","Диван ВИКТОРИЯ-квадро, бук, ткань, патина","шт",23950]
["631-021","Диван ВИКТОРИЯ-квадро, сосна, ткань, без патины","шт",18480]
["631-021п","Диван ВИКТОРИЯ-квадро, сосна, ткань, патина","шт",19958]
["632-011","Диван ВИКТОРИЯ-овал, бук, ткань, без патины","шт",22176]
["632-011п","Диван ВИКТОРИЯ-овал, бук, ткань, патина","шт",23950]
["632-021","Диван ВИКТОРИЯ-овал, сосна, ткань, без патины","шт",18480]
["632-021п","Диван ВИКТОРИЯ-овал, сосна, ткань, патина","шт",19958]
["611-011","Диван КЛАУДИА, бук, ткань, без патины","шт",22135]
["611-011п","Диван КЛАУДИА, бук, ткань, патина","шт",23906]
["611-012","Диван КЛАУДИА, бук, сиденье массив, без патины","шт",24349]
["611-012п","Диван КЛАУДИА, бук, сиденье массив, патина","шт",26296]
["611-111","Диван КЛАУДИА, с ящиком, бук, ткань, без патины","шт",26562]
["611-111п","Диван КЛАУДИА, с ящиком, бук, ткань, патина","шт",28687]
["633-011","Диван МАЭСТРО, бук, ткань, без патины","шт",26360]
["633-011п","Диван МАЭСТРО, бук, ткань, патина","шт",28469]
["633-021","Диван МАЭСТРО, сосна, ткань, без патины","шт",21967]
["633-021п","Диван МАЭСТРО, сосна, ткань, патина","шт",23724]
["617-012","Лавка ПОМЕСТЬЕ, бук, сиденье массив, без патины","пог.м.",14532]
["617-012п","Лавка ПОМЕСТЬЕ, бук, сиденье массив, патина","пог.м.",15695]
["617-022","Лавка ПОМЕСТЬЕ, сосна, сиденье массив, без патины","пог.м.",12110]
["617-022п","Лавка ПОМЕСТЬЕ, сосна, сиденье массив, патина","пог.м.",13079]
["634-022","Скамья САДОВАЯ, сосна, сиденье массив, без патины","шт",56014]
["634-022п","Скамья САДОВАЯ, сосна, сиденье массив, патина","шт",60495]
["628-011","Диван ХОББИ, бук, ткань, без патины","шт",24266]
["628-011п","Диван ХОББИ, бук, ткань, патина","шт",26207]
[]
["901-111","Опора БАРНАЯ, Бр1, бук, 80мм, без патины","шт",5983]
["901-111п","Опора БАРНАЯ, Бр1, бук, 80мм, патина","шт",6462]
["901-121","Опора БАРНАЯ, Бр1, сосна, 80мм, без патины","шт",4986]
["901-121п","Опора БАРНАЯ, Бр1, сосна, 80мм, патина","шт",5385]
["901-112","Опора БАРНАЯ, Бр1, бук, 100мм, без патины","шт",8975]
["901-112п","Опора БАРНАЯ, Бр1, бук, 100мм, патина","шт",9692]
["901-122","Опора БАРНАЯ, Бр1, сосна, 100мм, без патины","шт",7479]
["901-122п","Опора БАРНАЯ, Бр1, сосна, 100мм, патина","шт",8077]
["901-211","Опора БАРНАЯ, Бр2, бук, 80мм, без патины","шт",5303]
["901-211п","Опора БАРНАЯ, Бр2, бук, 80мм, патина","шт",5727]
["901-221","Опора БАРНАЯ, Бр2, сосна, 80мм, без патины","шт",4419]
["901-221п","Опора БАРНАЯ, Бр2, сосна, 80мм, патина","шт",4773]
["901-212","Опора БАРНАЯ, Бр2, бук, 100мм, без патины","шт",7955]
["901-212п","Опора БАРНАЯ, Бр2, бук, 100мм, патина","шт",8591]
["901-222","Опора БАРНАЯ, Бр2, сосна, 100мм, без патины","шт",6629]
["901-222п","Опора БАРНАЯ, Бр2, сосна, 100мм, патина","шт",7159]
["901-310","Опора БАРНАЯ, Бр3, бук, 215мм, без патины","шт",18828]
["901-310п","Опора БАРНАЯ, Бр3, бук, 215мм, патина","шт",20334]
["901-320","Опора БАРНАЯ, Бр3, сосна, 215мм, без патины","шт",15690]
["901-320п","Опора БАРНАЯ, Бр3, сосна, 215мм, патина","шт",16945]
["901-410","Опора БАРНАЯ, Бр4, бук, 215мм, без патины","шт",19770]
["901-410п","Опора БАРНАЯ, Бр4, бук, 215мм, патина","шт",21352]
["901-420","Опора БАРНАЯ, Бр4, сосна, 215мм, без патины","шт",16475]
["901-420п","Опора БАРНАЯ, Бр4, сосна, 215мм, патина","шт",17793]
["901-510","Опора БАРНАЯ, Бр5, бук, 215мм, без патины","шт",19776]
["901-510п","Опора БАРНАЯ, Бр5, бук, 215мм, патина","шт",21358]
["901-520","Опора БАРНАЯ, Бр5, сосна, 215мм, без патины","шт",16480]
["901-520п","Опора БАРНАЯ, Бр5, сосна, 215мм, патина","шт",17798]
[]
["902-111","Опора ЦОКОЛЬНАЯ, Ц1, бук, h=100 мм, без патины","шт",1980]
["902-111п","Опора ЦОКОЛЬНАЯ, Ц1, бук, h=100 мм, патина","шт",2138]
["902-121","Опора ЦОКОЛЬНАЯ, Ц1, сосна, h=100 мм,  без патины","шт",1650]
["902-121п","Опора ЦОКОЛЬНАЯ, Ц1, сосна, h=100 мм, патина","шт",1782]
["902-112","Опора ЦОКОЛЬНАЯ, Ц1, бук, h=150 мм, без патины","шт",2574]
["902-112п","Опора ЦОКОЛЬНАЯ, Ц1, бук, h=150 мм, патина","шт",2780]
["902-122","Опора ЦОКОЛЬНАЯ, Ц1, сосна, h=150 мм,  без патины","шт",2145]
["902-122п","Опора ЦОКОЛЬНАЯ, Ц1, сосна, h=150 мм, патина","шт",2317]
["902-211","Опора ЦОКОЛЬНАЯ, Ц2, бук, h=100 мм, без патины","шт",1860]
["902-211п","Опора ЦОКОЛЬНАЯ, Ц2, бук, h=100 мм, патина","шт",2009]
["902-221","Опора ЦОКОЛЬНАЯ, Ц2, сосна, h=100 мм,  без патины","шт",1550]
["902-221п","Опора ЦОКОЛЬНАЯ, Ц2, сосна, h=100 мм, патина","шт",1674]
["902-212","Опора ЦОКОЛЬНАЯ, Ц2, бук, h=150 мм, без патины","шт",2418]
["902-212п","Опора ЦОКОЛЬНАЯ, Ц2, бук, h=150 мм, патина","шт",2611]
["902-222","Опора ЦОКОЛЬНАЯ, Ц2, сосна, h=150 мм,  без патины","шт",2015]
["902-222п","Опора ЦОКОЛЬНАЯ, Ц2, сосна, h=150 мм, патина","шт",2176]
["902-311","Опора ЦОКОЛЬНАЯ, Ц3, бук, h=100 мм, без патины","шт",1980]
["902-311п","Опора ЦОКОЛЬНАЯ, Ц3, бук, h=100 мм, патина","шт",2138]
["902-321","Опора ЦОКОЛЬНАЯ, Ц3, сосна, h=100 мм,  без патины","шт",1650]
["902-321п","Опора ЦОКОЛЬНАЯ, Ц3, сосна, h=100 мм, патина","шт",1782]
["902-312","Опора ЦОКОЛЬНАЯ, Ц3, бук, h=150 мм, без патины","шт",2574]
["902-312п","Опора ЦОКОЛЬНАЯ, Ц3, бук, h=150 мм, патина","шт",2780]
["902-322","Опора ЦОКОЛЬНАЯ, Ц3, сосна, h=150 мм,  без патины","шт",2145]
["902-322п","Опора ЦОКОЛЬНАЯ, Ц3, сосна, h=150 мм, патина","шт",2317]
["902-411","Опора ЦОКОЛЬНАЯ, Ц4, бук, h=100 мм, без патины","шт",1560]
["902-411п","Опора ЦОКОЛЬНАЯ, Ц4, бук, h=100 мм, патина","шт",1685]
["902-421","Опора ЦОКОЛЬНАЯ, Ц4, сосна, h=100 мм,  без патины","шт",1300]
["902-421п","Опора ЦОКОЛЬНАЯ, Ц4, сосна, h=100 мм, патина","шт",1404]
["902-412","Опора ЦОКОЛЬНАЯ, Ц4, бук, h=150 мм, без патины","шт",2028]
["902-412п","Опора ЦОКОЛЬНАЯ, Ц4, бук, h=150 мм, патина","шт",2190]
["902-422","Опора ЦОКОЛЬНАЯ, Ц4, сосна, h=150 мм,  без патины","шт",1690]
["902-422п","Опора ЦОКОЛЬНАЯ, Ц4, сосна, h=150 мм, патина","шт",1825]
["902-511","Опора ЦОКОЛЬНАЯ, Ц5, бук, h=100 мм, без патины","шт",1560]
["902-511п","Опора ЦОКОЛЬНАЯ, Ц5, бук, h=100 мм, патина","шт",1685]
["902-521","Опора ЦОКОЛЬНАЯ, Ц5, сосна, h=100 мм,  без патины","шт",1300]
["902-521п","Опора ЦОКОЛЬНАЯ, Ц5, сосна, h=100 мм, патина","шт",1404]
["902-512","Опора ЦОКОЛЬНАЯ, Ц5, бук, h=150 мм, без патины","шт",2028]
["902-512п","Опора ЦОКОЛЬНАЯ, Ц5, бук, h=150 мм, патина","шт",2190]
["902-522","Опора ЦОКОЛЬНАЯ, Ц5, сосна, h=150 мм,  без патины","шт",1690]
["902-522п","Опора ЦОКОЛЬНАЯ, Ц5, сосна, h=150 мм, патина","шт",1825]
["902-611","Опора ЦОКОЛЬНАЯ, Ц6, бук, h=100 мм, без патины","шт",1560]
["902-611п","Опора ЦОКОЛЬНАЯ, Ц6, бук, h=100 мм, патина","шт",1685]
["902-621","Опора ЦОКОЛЬНАЯ, Ц6, сосна, h=100 мм,  без патины","шт",1300]
["902-621п","Опора ЦОКОЛЬНАЯ, Ц6, сосна, h=100 мм, патина","шт",1404]
["902-612","Опора ЦОКОЛЬНАЯ, Ц6, бук, h=150 мм, без патины","шт",2028]
["902-612п","Опора ЦОКОЛЬНАЯ, Ц6, бук, h=150 мм, патина","шт",2190]
["902-622","Опора ЦОКОЛЬНАЯ, Ц6, сосна, h=150 мм,  без патины","шт",1690]
["902-622п","Опора ЦОКОЛЬНАЯ, Ц6, сосна, h=150 мм, патина","шт",1825]
[]
["903-100","Резной ДЕКОР ножек стола, без патины","компл.",3450]
["903-100п","Резной ДЕКОР ножек стола, патина","компл.",3726]
["903-200","Резной ДЕКОР царги стола, без патины","компл.",3760]
["903-200п","Резной ДЕКОР царги стола, патина","компл.",4061]
["904-000","Выдвижной ЯЩИК для стола, фанера, без патины","шт",3960]
["904-000п","Выдвижной ЯЩИК для стола, фанера, патина","шт",4277]
["905-010","Крестовина для табурета, бук, без патины","шт",2402]
["905-010п","Крестовина для табурета, бук, патина","шт",2594]
["905-020","Крестовина для табурета, сосна, без патины","шт",2002]
["905-020п","Крестовина для табурета, сосна, патина","шт",2162]
["906-001","СИДЕНЬЕ мягкое, ткань, для табурета или стула","шт",1166]
["906-012","СИДЕНЬЕ массив, сосна, для табурета или стула","шт",1283]
["906-022","СИДЕНЬЕ массив, бук, для табурета или стула","шт",1539]
["907-001","Мебельная ТКАНЬ, ширина 140см","пог.м.",1450]
["908-000","Изготовление нестандартного изделия из дерева","час",2715]

{"sheet":"Основания","index":2,"n_rows":185,"n_cols":9,"rows_kept":185,"cut":false,"hidden":false,"merged":[]}
["003-110","Основание стола БОГЕМА, Бг1, бук, без патины","компл.",52173,null,null,{"$f":"IFERROR(INDEX(стлГород,MATCH(ROWS($H$1:$H1),стлИндекс,0)),\"\")","v":"Основание стола БОГЕМА, Бг1, бук, без патины"},{"$f":"IF($I1,COUNTIF($I$1:$I1,TRUE),\"\")","v":1},{"$f":"NOT(ISERROR(SEARCH(Калькулятор!$C$11,$B1)))","v":true}]
["003-110п","Основание стола БОГЕМА, Бг1, бук, патина","компл.",56347,null,null,{"$f":"IFERROR(INDEX(стлГород,MATCH(ROWS($H$1:$H2),стлИндекс,0)),\"\")","v":"Основание стола БОГЕМА, Бг1, бук, патина"},{"$f":"IF($I2,COUNTIF($I$1:$I2,TRUE),\"\")","v":2},{"$f":"NOT(ISERROR(SEARCH(Калькулятор!$C$11,$B2)))","v":true}]
["003-210","Основание стола БОГЕМА, Бг2, бук, без патины","компл.",59433,null,null,{"$f":"IFERROR(INDEX(стлГород,MATCH(ROWS($H$1:$H3),стлИндекс,0)),\"\")","v":"Основание стола БОГЕМА, Бг2, бук, без патины"},{"$f":"IF($I3,COUNTIF($I$1:$I3,TRUE),\"\")","v":3},{"$f":"NOT(ISERROR(SEARCH(Калькулятор!$C$11,$B3)))","v":true}]
["003-210п","Основание стола БОГЕМА, Бг2, бук, патина","компл.",64188,null,null,{"$f":"IFERROR(INDEX(стлГород,MATCH(ROWS($H$1:$H4),стлИндекс,0)),\"\")","v":"Основание стола БОГЕМА, Бг2, бук, патина"},{"$f":"IF($I4,COUNTIF($I$1:$I4,TRUE),\"\")","v":4},{"$f":"NOT(ISERROR(SEARCH(Калькулятор!$C$11,$B4)))","v":true}]
["003-310","Основание стола БОГЕМА, Бг3, бук, без патины","компл.",53845,null,null,{"$f":"IFERROR(INDEX(стлГород,MATCH(ROWS($H$1:$H5),стлИндекс,0)),\"\")","v":"Основание стола БОГЕМА, Бг3, бук, без патины"},{"$f":"IF($I5,COUNTIF($I$1:$I5,TRUE),\"\")","v":5},{"$f":"NOT(ISERROR(SEARCH(Калькулятор!$C$11,$B5)))","v":true}]
["003-310п","Основание стола БОГЕМА, Бг3, бук, патина","компл.",58153,null,null,{"$f":"IFERROR(INDEX(стлГород,MATCH(ROWS($H$1:$H6),стлИндекс,0)),\"\")","v":"Основание стола БОГЕМА, Бг3, бук, патина"},{"$f":"IF($I6,COUNTIF($I$1:$I6,TRUE),\"\")","v":6},{"$f":"NOT(ISERROR(SEARCH(Калькулятор!$C$11,$B6)))","v":true}]
["004-110","Основание стола ВИЗИТ, Вз1, бук, без патины","компл.",25832,null,null,{"$f":"IFERROR(INDEX(стлГород,MATCH(ROWS($H$1:$H7),стлИндекс,0)),\"\")","v":"Основание стола ВИЗИТ, Вз1, бук, без патины"},{"$f":"IF($I7,COUNTIF($I$1:$I7,TRUE),\"\")","v":7},{"$f":"NOT(ISERROR(SEARCH(Калькулятор!$C$11,$B7)))","v":true}]
["004-110п","Основание стола ВИЗИТ, Вз1, бук, патина","компл.",27899,null,null,{"$f":"IFERROR(INDEX(стлГород,MATCH(ROWS($H$1:$H8),стлИндекс,0)),\"\")","v":"Основание стола ВИЗИТ, Вз1, бук, патина"},{"$f":"IF($I8,COUNTIF($I$1:$I8,TRUE),\"\")","v":8},{"$f":"NOT(ISERROR(SEARCH(Калькулятор!$C$11,$B8)))","v":true}]
["004-111","Основание стола ВИЗИТ, Вз1, бук, более 150х80см, без патины","компл.",33582,null,null,{"$f":"IFERROR(INDEX(стлГород,MATCH(ROWS($H$1:$H9),стлИндекс,0)),\"\")","v":"Основание стола ВИЗИТ, Вз1, бук, более 150х80см, без патины"},{"$f":"IF($I9,COUNTIF($I$1:$I9,TRUE),\"\")","v":9},{"$f":"NOT(ISERROR(SEARCH(Калькулятор!$C$11,$B9)))","v":true}]
["004-111п","Основание стола ВИЗИТ, Вз1, бук, более 150х80см, патина","компл.",36268,null,null,{"$f":"IFERROR(INDEX(стлГород,MATCH(ROWS($H$1:$H10),стлИндекс,0)),\"\")","v":"Основание стола ВИЗИТ, Вз1, бук, более 150х80см, патина"},{"$f":"IF($I10,COUNTIF($I$1:$I10,TRUE),\"\")","v":10},{"$f":"NOT(ISERROR(SEARCH(Калькулятор!$C$11,$B10)))","v":true}]
["004-120","Основание стола ВИЗИТ, Вз1, сосна, без патины","компл.",21527,null,null,{"$f":"IFERROR(INDEX(стлГород,MATCH(ROWS($H$1:$H11),стлИндекс,0)),\"\")","v":"Основание стола ВИЗИТ, Вз1, сосна, без патины"},{"$f":"IF($I11,COUNTIF($I$1:$I11,TRUE),\"\")","v":11},{"$f":"NOT(ISERROR(SEARCH(Калькулятор!$C$11,$B11)))","v":true}]
["004-120п","Основание стола ВИЗИТ, Вз1, сосна, патина","компл.",23249,null,null,{"$f":"IFERROR(INDEX(стлГород,MATCH(ROWS($H$1:$H12),стлИндекс,0)),\"\")","v":"Основание стола ВИЗИТ, Вз1, сосна, патина"},{"$f":"IF($I12,COUNTIF($I$1:$I12,TRUE),\"\")","v":12},{"$f":"NOT(ISERROR(SEARCH(Калькулятор!$C$11,$B12)))","v":true}]
["004-121","Основание стола ВИЗИТ, Вз1, сосна, более 150х80см, без патины","компл.",27985,null,null,{"$f":"IFERROR(INDEX(стлГород,MATCH(ROWS($H$1:$H13),стлИндекс,0)),\"\")","v":"Основание стола ВИЗИТ, Вз1, сосна, более 150х80см, без патины"},{"$f":"IF($I13,COUNTIF($I$1:$I13,TRUE),\"\")","v":13},{"$f":"NOT(ISERROR(SEARCH(Калькулятор!$C$11,$B13)))","v":true}]
["004-121п","Основание стола ВИЗИТ, Вз1, сосна, более 150х80см, патина","компл.",30223,null,null,{"$f":"IFERROR(INDEX(стлГород,MATCH(ROWS($H$1:$H14),стлИндекс,0)),\"\")","v":"Основание стола ВИЗИТ, Вз1, сосна, более 150х80см, патина"},{"$f":"IF($I14,COUNTIF($I$1:$I14,TRUE),\"\")","v":14},{"$f":"NOT(ISERROR(SEARCH(Калькулятор!$C$11,$B14)))","v":true}]
["005-110","Основание стола ГОСТЬ, Гс1, бук, без патины","компл.",29293,null,null,{"$f":"IFERROR(INDEX(стлГород,MATCH(ROWS($H$1:$H15),стлИндекс,0)),\"\")","v":"Основание стола ГОСТЬ, Гс1, бук, без патины"},{"$f":"IF($I15,COUNTIF($I$1:$I15,TRUE),\"\")","v":15},{"$f":"NOT(ISERROR(SEARCH(Калькулятор!$C$11,$B15)))","v":true}]
["005-110п","Основание стола ГОСТЬ, Гс1, бук, патина","компл.",31636,null,null,{"$f":"IFERROR(INDEX(стлГород,MATCH(ROWS($H$1:$H16),стлИндекс,0)),\"\")","v":"Основание стола ГОСТЬ, Гс1, бук, патина"},{"$f":"IF($I16,COUNTIF($I$1:$I16,TRUE),\"\")","v":16},{"$f":"NOT(ISERROR(SEARCH(Калькулятор!$C$11,$B16)))","v":true}]
["005-210","Основание стола ГОСТЬ, Гс2, бук, без патины","компл.",21527,null,null,{"$f":"IFERROR(INDEX(стлГород,MATCH(ROWS($H$1:$H17),стлИндекс,0)),\"\")","v":"Основание стола ГОСТЬ, Гс2, бук, без патины"},{"$f":"IF($I17,COUNTIF($I$1:$I17,TRUE),\"\")","v":17},{"$f":"NOT(ISERROR(SEARCH(Калькулятор!$C$11,$B17)))","v":true}]
["005-210п","Основание стола ГОСТЬ, Гс2, бук, патина","компл.",23249,null,null,{"$f":"IFERROR(INDEX(стлГород,MATCH(ROWS($H$1:$H18),стлИндекс,0)),\"\")","v":"Основание стола ГОСТЬ, Гс2, бук, патина"},{"$f":"IF($I18,COUNTIF($I$1:$I18,TRUE),\"\")","v":18},{"$f":"NOT(ISERROR(SEARCH(Калькулятор!$C$11,$B18)))","v":true}]
["005-310","Основание стола ГОСТЬ, Гс3, бук, без патины","компл.",28930,null,null,{"$f":"IFERROR(INDEX(стлГород,MATCH(ROWS($H$1:$H19),стлИндекс,0)),\"\")","v":"Основание стола ГОСТЬ, Гс3, бук, без патины"},{"$f":"IF($I19,COUNTIF($I$1:$I19,TRUE),\"\")","v":19},{"$f":"NOT(ISERROR(SEARCH(Калькулятор!$C$11,$B19)))","v":true}]
["005-310п","Основание стола ГОСТЬ, Гс3, бук, патина","компл.",31244,null,null,{"$f":"IFERROR(INDEX(стлГород,MATCH(ROWS($H$1:$H20),стлИндекс,0)),\"\")","v":"Основание стола ГОСТЬ, Гс3, бук, патина"},{"$f":"IF($I20,COUNTIF($I$1:$I20,TRUE),\"\")","v":20},{"$f":"NOT(ISERROR(SEARCH(Калькулятор!$C$11,$B20)))","v":true}]
["005-410","Основание стола ГОСТЬ, Гс4, бук, без патины","компл.",14532,null,null,{"$f":"IFERROR(INDEX(стлГород,MATCH(ROWS($H$1:$H21),стлИндекс,0)),\"\")","v":"Основание стола ГОСТЬ, Гс4, бук, без патины"},{"$f":"IF($I21,COUNTIF($I$1:$I21,TRUE),\"\")","v":21},{"$f":"NOT(ISERROR(SEARCH(Калькулятор!$C$11,$B21)))","v":true}]
["005-410п","Основание стола ГОСТЬ, Гс4, бук, патина","компл.",15695,null,null,{"$f":"IFERROR(INDEX(стлГород,MATCH(ROWS($H$1:$H22),стлИндекс,0)),\"\")","v":"Основание стола ГОСТЬ, Гс4, бук, патина"},{"$f":"IF($I22,COUNTIF($I$1:$I22,TRUE),\"\")","v":22},{"$f":"NOT(ISERROR(SEARCH(Калькулятор!$C$11,$B22)))","v":true}]
["005-411","Основание стола ГОСТЬ, Гс4, бук, более 150х80см, без патины","компл.",18892,null,null,{"$f":"IFERROR(INDEX(стлГород,MATCH(ROWS($H$1:$H23),стлИндекс,0)),\"\")","v":"Основание стола ГОСТЬ, Гс4, бук, более 150х80см, без патины"},{"$f":"IF($I23,COUNTIF($I$1:$I23,TRUE),\"\")","v":23},{"$f":"NOT(ISERROR(SEARCH(Калькулятор!$C$11,$B23)))","v":true}]
["005-411п","Основание стола ГОСТЬ, Гс4, бук, более 150х80см, патина","компл.",20403,null,null,{"$f":"IFERROR(INDEX(стлГород,MATCH(ROWS($H$1:$H24),стлИндекс,0)),\"\")","v":"Основание стола ГОСТЬ, Гс4, бук, более 150х80см, патина"},{"$f":"IF($I24,COUNTIF($I$1:$I24,TRUE),\"\")","v":24},{"$f":"NOT(ISERROR(SEARCH(Калькулятор!$C$11,$B24)))","v":true}]
["005-420","Основание стола ГОСТЬ, Гс4, сосна, без патины","компл.",12110,null,null,{"$f":"IFERROR(INDEX(стлГород,MATCH(ROWS($H$1:$H25),стлИндекс,0)),\"\")","v":"Основание стола ГОСТЬ, Гс4, сосна, без патины"},{"$f":"IF($I25,COUNTIF($I$1:$I25,TRUE),\"\")","v":25},{"$f":"NOT(ISERROR(SEARCH(Калькулятор!$C$11,$B25)))","v":true}]
["005-420п","Основание стола ГОСТЬ, Гс4, сосна, патина","компл.",13079,null,null,{"$f":"IFERROR(INDEX(стлГород,MATCH(ROWS($H$1:$H26),стлИндекс,0)),\"\")","v":"Основание стола ГОСТЬ, Гс4, сосна, патина"},{"$f":"IF($I26,COUNTIF($I$1:$I26,TRUE),\"\")","v":26},{"$f":"NOT(ISERROR(SEARCH(Калькулятор!$C$11,$B26)))","v":true}]
["005-421","Основание стола ГОСТЬ, Гс4, сосна, более 150х80см, без патины","компл.",15743,null,null,{"$f":"IFERROR(INDEX(стлГород,MATCH(ROWS($H$1:$H27),стлИндекс,0)),\"\")","v":"Основание стола ГОСТЬ, Гс4, сосна, более 150х80см, без патины"},{"$f":"IF($I27,COUNTIF($I$1:$I27,TRUE),\"\")","v":27},{"$f":"NOT(ISERROR(SEARCH(Калькулятор!$C$11,$B27)))","v":true}]
["005-421п","Основание стола ГОСТЬ, Гс4, сосна, более 150х80см, патина","компл.",17002,null,null,{"$f":"IFERROR(INDEX(стлГород,MATCH(ROWS($H$1:$H28),стлИндекс,0)),\"\")","v":"Основание стола ГОСТЬ, Гс4, сосна, более 150х80см, патина"},{"$f":"IF($I28,COUNTIF($I$1:$I28,TRUE),\"\")","v":28},{"$f":"NOT(ISERROR(SEARCH(Калькулятор!$C$11,$B28)))","v":true}]
["005-510","Основание стола ГОСТЬ, Гс5, бук, без патины","компл.",14532,null,null,{"$f":"IFERROR(INDEX(стлГород,MATCH(ROWS($H$1:$H29),стлИндекс,0)),\"\")","v":"Основание стола ГОСТЬ, Гс5, бук, без патины"},{"$f":"IF($I29,COUNTIF($I$1:$I29,TRUE),\"\")","v":29},{"$f":"NOT(ISERROR(SEARCH(Калькулятор!$C$11,$B29)))","v":true}]
["005-510п","Основание стола ГОСТЬ, Гс5, бук, патина","компл.",15695,null,null,{"$f":"IFERROR(INDEX(стлГород,MATCH(ROWS($H$1:$H30),стлИндекс,0)),\"\")","v":"Основание стола ГОСТЬ, Гс5, бук, патина"},{"$f":"IF($I30,COUNTIF($I$1:$I30,TRUE),\"\")","v":30},{"$f":"NOT(ISERROR(SEARCH(Калькулятор!$C$11,$B30)))","v":true}]
["005-511","Основание стола ГОСТЬ, Гс5, бук, более 150х80см, без патины","компл.",18892,null,null,{"$f":"IFERROR(INDEX(стлГород,MATCH(ROWS($H$1:$H31),стлИндекс,0)),\"\")","v":"Основание стола ГОСТЬ, Гс5, бук, более 150х80см, без патины"},{"$f":"IF($I31,COUNTIF($I$1:$I31,TRUE),\"\")","v":31},{"$f":"NOT(ISERROR(SEARCH(Калькулятор!$C$11,$B31)))","v":true}]
["005-511п","Основание стола ГОСТЬ, Гс5, бук, более 150х80см, патина","компл.",20403,null,null,{"$f":"IFERROR(INDEX(стлГород,MATCH(ROWS($H$1:$H32),стлИндекс,0)),\"\")","v":"Основание стола ГОСТЬ, Гс5, бук, более 150х80см, патина"},{"$f":"IF($I32,COUNTIF($I$1:$I32,TRUE),\"\")","v":32},{"$f":"NOT(ISERROR(SEARCH(Калькулятор!$C$11,$B32)))","v":true}]
["005-520","Основание стола ГОСТЬ, Гс5, сосна, без патины","компл.",12110,null,null,{"$f":"IFERROR(INDEX(стлГород,MATCH(ROWS($H$1:$H33),стлИндекс,0)),\"\")","v":"Основание стола ГОСТЬ, Гс5, сосна, без патины"},{"$f":"IF($I33,COUNTIF($I$1:$I33,TRUE),\"\")","v":33},{"$f":"NOT(ISERROR(SEARCH(Калькулятор!$C$11,$B33)))","v":true}]
["005-520п","Основание стола ГОСТЬ, Гс5, сосна, патина","компл.",13079,null,null,{"$f":"IFERROR(INDEX(стлГород,MATCH(ROWS($H$1:$H34),стлИндекс,0)),\"\")","v":"Основание стола ГОСТЬ, Гс5, сосна, патина"},{"$f":"IF($I34,COUNTIF($I$1:$I34,TRUE),\"\")","v":34},{"$f":"NOT(ISERROR(SEARCH(Калькулятор!$C$11,$B34)))","v":true}]
["005-521","Основание стола ГОСТЬ, Гс5, сосна, более 150х80см, без патины","компл.",15743,null,null,{"$f":"IFERROR(INDEX(стлГород,MATCH(ROWS($H$1:$H35),стлИндекс,0)),\"\")","v":"Основание стола ГОСТЬ, Гс5, сосна, более 150х80см, без патины"},{"$f":"IF($I35,COUNTIF($I$1:$I35,TRUE),\"\")","v":35},{"$f":"NOT(ISERROR(SEARCH(Калькулятор!$C$11,$B35)))","v":true}]
["005-521п","Основание стола ГОСТЬ, Гс5, сосна, более 150х80см, патина","компл.",17002,null,null,{"$f":"IFERROR(INDEX(стлГород,MATCH(ROWS($H$1:$H36),стлИндекс,0)),\"\")","v":"Основание стола ГОСТЬ, Гс5, сосна, более 150х80см, патина"},{"$f":"IF($I36,COUNTIF($I$1:$I36,TRUE),\"\")","v":36},{"$f":"NOT(ISERROR(SEARCH(Калькулятор!$C$11,$B36)))","v":true}]
["006-110","Основание стола ГРАЦИЯ, Гр1, бук, без патины","компл.",15970,null,null,{"$f":"IFERROR(INDEX(стлГород,MATCH(ROWS($H$1:$H37),стлИндекс,0)),\"\")","v":"Основание стола ГРАЦИЯ, Гр1, бук, без патины"},{"$f":"IF($I37,COUNTIF($I$1:$I37,TRUE),\"\")","v":37},{"$f":"NOT(ISERROR(SEARCH(Калькулятор!$C$11,$B37)))","v":true}]
["006-110п","Основание стола ГРАЦИЯ, Гр1, бук, патина","компл.",17248,null,null,{"$f":"IFERROR(INDEX(стлГород,MATCH(ROWS($H$1:$H38),стлИндекс,0)),\"\")","v":"Основание стола ГРАЦИЯ, Гр1, бук, патина"},{"$f":"IF($I38,COUNTIF($I$1:$I38,TRUE),\"\")","v":38},{"$f":"NOT(ISERROR(SEARCH(Калькулятор!$C$11,$B38)))","v":true}]
["006-210","Основание стола ГРАЦИЯ, Гр2, бук, без патины","компл.",16130,null,null,{"$f":"IFERROR(INDEX(стлГород,MATCH(ROWS($H$1:$H39),стлИндекс,0)),\"\")","v":"Основание стола ГРАЦИЯ, Гр2, бук, без патины"},{"$f":"IF($I39,COUNTIF($I$1:$I39,TRUE),\"\")","v":39},{"$f":"NOT(ISERROR(SEARCH(Калькулятор!$C$11,$B39)))","v":true}]
["006-210п","Основание стола ГРАЦИЯ, Гр2, бук, патина","компл.",17420,null,null,{"$f":"IFERROR(INDEX(стлГород,MATCH(ROWS($H$1:$H40),стлИндекс,0)),\"\")","v":"Основание стола ГРАЦИЯ, Гр2, бук, патина"},{"$f":"IF($I40,COUNTIF($I$1:$I40,TRUE),\"\")","v":40},{"$f":"NOT(ISERROR(SEARCH(Калькулятор!$C$11,$B40)))","v":true}]
["007-110","Основание стола ДЕГУСТАТОР, Дг1, бук, без патины","компл.",12593,null,null,{"$f":"IFERROR(INDEX(стлГород,MATCH(ROWS($H$1:$H41),стлИндекс,0)),\"\")","v":"Основание стола ДЕГУСТАТОР, Дг1, бук, без патины"},{"$f":"IF($I41,COUNTIF($I$1:$I41,TRUE),\"\")","v":41},{"$f":"NOT(ISERROR(SEARCH(Калькулятор!$C$11,$B41)))","v":true}]
["007-110п","Основание стола ДЕГУСТАТОР, Дг1, бук, патина","компл.",13600,null,null,{"$f":"IFERROR(INDEX(стлГород,MATCH(ROWS($H$1:$H42),стлИндекс,0)),\"\")","v":"Основание стола ДЕГУСТАТОР, Дг1, бук, патина"},{"$f":"IF($I42,COUNTIF($I$1:$I42,TRUE),\"\")","v":42},{"$f":"NOT(ISERROR(SEARCH(Калькулятор!$C$11,$B42)))","v":true}]
["007-120","Основание стола ДЕГУСТАТОР, Дг1, сосна, без патины","компл.",10494,null,null,{"$f":"IFERROR(INDEX(стлГород,MATCH(ROWS($H$1:$H43),стлИндекс,0)),\"\")","v":"Основание стола ДЕГУСТАТОР, Дг1, сосна, без патины"},{"$f":"IF($I43,COUNTIF($I$1:$I43,TRUE),\"\")","v":43},{"$f":"NOT(ISERROR(SEARCH(Калькулятор!$C$11,$B43)))","v":true}]
["007-120п","Основание стола ДЕГУСТАТОР, Дг1, сосна, патина","компл.",11334,null,null,{"$f":"IFERROR(INDEX(стлГород,MATCH(ROWS($H$1:$H44),стлИндекс,0)),\"\")","v":"Основание стола ДЕГУСТАТОР, Дг1, сосна, патина"},{"$f":"IF($I44,COUNTIF($I$1:$I44,TRUE),\"\")","v":44},{"$f":"NOT(ISERROR(SEARCH(Калькулятор!$C$11,$B44)))","v":true}]
["008-110","Основание стола ДЕСЕРТ, Дс1, бук, без патины","компл.",9820,null,null,{"$f":"IFERROR(INDEX(стлГород,MATCH(ROWS($H$1:$H45),стлИндекс,0)),\"\")","v":"Основание стола ДЕСЕРТ, Дс1, бук, без патины"},{"$f":"IF($I45,COUNTIF($I$1:$I45,TRUE),\"\")","v":45},{"$f":"NOT(ISERROR(SEARCH(Калькулятор!$C$11,$B45)))","v":true}]
["008-110п","Основание стола ДЕСЕРТ, Дс1, бук, патина","компл.",10606,null,null,{"$f":"IFERROR(INDEX(стлГород,MATCH(ROWS($H$1:$H46),стлИндекс,0)),\"\")","v":"Основание стола ДЕСЕРТ, Дс1, бук, патина"},{"$f":"IF($I46,COUNTIF($I$1:$I46,TRUE),\"\")","v":46},{"$f":"NOT(ISERROR(SEARCH(Калькулятор!$C$11,$B46)))","v":true}]
["009-110","Основание стола ДИНАСТИЯ, Дн1, бук, без патины","компл.",23791,null,null,{"$f":"IFERROR(INDEX(стлГород,MATCH(ROWS($H$1:$H47),стлИндекс,0)),\"\")","v":"Основание стола ДИНАСТИЯ, Дн1, бук, без патины"},{"$f":"IF($I47,COUNTIF($I$1:$I47,TRUE),\"\")","v":47},{"$f":"NOT(ISERROR(SEARCH(Калькулятор!$C$11,$B47)))","v":true}]
["009-110п","Основание стола ДИНАСТИЯ, Дн1, бук, патина","компл.",25694,null,null,{"$f":"IFERROR(INDEX(стлГород,MATCH(ROWS($H$1:$H48),стлИндекс,0)),\"\")","v":"Основание стола ДИНАСТИЯ, Дн1, бук, патина"},{"$f":"IF($I48,COUNTIF($I$1:$I48,TRUE),\"\")","v":48},{"$f":"NOT(ISERROR(SEARCH(Калькулятор!$C$11,$B48)))","v":true}]
["009-120","Основание стола ДИНАСТИЯ, Дн1 сосна, без патины","компл.",19826,null,null,{"$f":"IFERROR(INDEX(стлГород,MATCH(ROWS($H$1:$H49),стлИндекс,0)),\"\")","v":"Основание стола ДИНАСТИЯ, Дн1 сосна, без патины"},{"$f":"IF($I49,COUNTIF($I$1:$I49,TRUE),\"\")","v":49},{"$f":"NOT(ISERROR(SEARCH(Калькулятор!$C$11,$B49)))","v":true}]
["009-120п","Основание стола ДИНАСТИЯ, Дн1 сосна, патина","компл.",21412,null,null,{"$f":"IFERROR(INDEX(стлГород,MATCH(ROWS($H$1:$H50),стлИндекс,0)),\"\")","v":"Основание стола ДИНАСТИЯ, Дн1 сосна, патина"},{"$f":"IF($I50,COUNTIF($I$1:$I50,TRUE),\"\")","v":50},{"$f":"NOT(ISERROR(SEARCH(Калькулятор!$C$11,$B50)))","v":true}]
["009-210","Основание стола ДИНАСТИЯ, Дн2, бук, без патины","компл.",22671,null,null,{"$f":"IFERROR(INDEX(стлГород,MATCH(ROWS($H$1:$H51),стлИндекс,0)),\"\")","v":"Основание стола ДИНАСТИЯ, Дн2, бук, без патины"},{"$f":"IF($I51,COUNTIF($I$1:$I51,TRUE),\"\")","v":51},{"$f":"NOT(ISERROR(SEARCH(Калькулятор!$C$11,$B51)))","v":true}]
["009-210п","Основание стола ДИНАСТИЯ, Дн2, бук, патина","компл.",24485,null,null,{"$f":"IFERROR(INDEX(стлГород,MATCH(ROWS($H$1:$H52),стлИндекс,0)),\"\")","v":"Основание стола ДИНАСТИЯ, Дн2, бук, патина"},{"$f":"IF($I52,COUNTIF($I$1:$I52,TRUE),\"\")","v":52},{"$f":"NOT(ISERROR(SEARCH(Калькулятор!$C$11,$B52)))","v":true}]
["009-310","Основание стола ДИНАСТИЯ, Дн3, бук, без патины","компл.",22671,null,null,{"$f":"IFERROR(INDEX(стлГород,MATCH(ROWS($H$1:$H53),стлИндекс,0)),\"\")","v":"Основание стола ДИНАСТИЯ, Дн3, бук, без патины"},{"$f":"IF($I53,COUNTIF($I$1:$I53,TRUE),\"\")","v":53},{"$f":"NOT(ISERROR(SEARCH(Калькулятор!$C$11,$B53)))","v":true}]
["009-310п","Основание стола ДИНАСТИЯ, Дн3, бук, патина","компл.",24485,null,null,{"$f":"IFERROR(INDEX(стлГород,MATCH(ROWS($H$1:$H54),стлИндекс,0)),\"\")","v":"Основание стола ДИНАСТИЯ, Дн3, бук, патина"},{"$f":"IF($I54,COUNTIF($I$1:$I54,TRUE),\"\")","v":54},{"$f":"NOT(ISERROR(SEARCH(Калькулятор!$C$11,$B54)))","v":true}]
["010-110","Основание стола ИЗБРАННИК, Из1, бук, без патины","компл.",12593,null,null,{"$f":"IFERROR(INDEX(стлГород,MATCH(ROWS($H$1:$H55),стлИндекс,0)),\"\")","v":"Основание стола ИЗБРАННИК, Из1, бук, без патины"},{"$f":"IF($I55,COUNTIF($I$1:$I55,TRUE),\"\")","v":55},{"$f":"NOT(ISERROR(SEARCH(Калькулятор!$C$11,$B55)))","v":true}]
["010-110п","Основание стола ИЗБРАННИК, Из1, бук, патина","компл.",13600,null,null,{"$f":"IFERROR(INDEX(стлГород,MATCH(ROWS($H$1:$H56),стлИндекс,0)),\"\")","v":"Основание стола ИЗБРАННИК, Из1, бук, патина"},{"$f":"IF($I56,COUNTIF($I$1:$I56,TRUE),\"\")","v":56},{"$f":"NOT(ISERROR(SEARCH(Калькулятор!$C$11,$B56)))","v":true}]
["010-120","Основание стола ИЗБРАННИК, Из1, сосна, без патины","компл.",10494,null,null,{"$f":"IFERROR(INDEX(стлГород,MATCH(ROWS($H$1:$H57),стлИндекс,0)),\"\")","v":"Основание стола ИЗБРАННИК, Из1, сосна, без патины"},{"$f":"IF($I57,COUNTIF($I$1:$I57,TRUE),\"\")","v":57},{"$f":"NOT(ISERROR(SEARCH(Калькулятор!$C$11,$B57)))","v":true}]
["010-120п","Основание стола ИЗБРАННИК, Из1, сосна, патина","компл.",11334,null,null,{"$f":"IFERROR(INDEX(стлГород,MATCH(ROWS($H$1:$H58),стлИндекс,0)),\"\")","v":"Основание стола ИЗБРАННИК, Из1, сосна, патина"},{"$f":"IF($I58,COUNTIF($I$1:$I58,TRUE),\"\")","v":58},{"$f":"NOT(ISERROR(SEARCH(Калькулятор!$C$11,$B58)))","v":true}]
["010-210","Основание стола ИЗБРАННИК, Из2, бук, без патины","компл.",13228,null,null,{"$f":"IFERROR(INDEX(стлГород,MATCH(ROWS($H$1:$H59),стлИндекс,0)),\"\")","v":"Основание стола ИЗБРАННИК, Из2, бук, без патины"},{"$f":"IF($I59,COUNTIF($I$1:$I59,TRUE),\"\")","v":59},{"$f":"NOT(ISERROR(SEARCH(Калькулятор!$C$11,$B59)))","v":true}]
["010-210п","Основание стола ИЗБРАННИК, Из2, бук, патина","компл.",14286,null,null,{"$f":"IFERROR(INDEX(стлГород,MATCH(ROWS($H$1:$H60),стлИндекс,0)),\"\")","v":"Основание стола ИЗБРАННИК, Из2, бук, патина"},{"$f":"IF($I60,COUNTIF($I$1:$I60,TRUE),\"\")","v":60},{"$f":"NOT(ISERROR(SEARCH(Калькулятор!$C$11,$B60)))","v":true}]
["010-220","Основание стола ИЗБРАННИК, Из2, сосна, без патины","компл.",11023,null,null,{"$f":"IFERROR(INDEX(стлГород,MATCH(ROWS($H$1:$H61),стлИндекс,0)),\"\")","v":"Основание стола ИЗБРАННИК, Из2, сосна, без патины"},{"$f":"IF($I61,COUNTIF($I$1:$I61,TRUE),\"\")","v":61},{"$f":"NOT(ISERROR(SEARCH(Калькулятор!$C$11,$B61)))","v":true}]
["010-220п","Основание стола ИЗБРАННИК, Из2, сосна, патина","компл.",11905,null,null,{"$f":"IFERROR(INDEX(стлГород,MATCH(ROWS($H$1:$H62),стлИндекс,0)),\"\")","v":"Основание стола ИЗБРАННИК, Из2, сосна, патина"},{"$f":"IF($I62,COUNTIF($I$1:$I62,TRUE),\"\")","v":62},{"$f":"NOT(ISERROR(SEARCH(Калькулятор!$C$11,$B62)))","v":true}]
["011-110","Основание стола КАПРИЗ, Кп1, бук, без патины","компл.",12593,null,null,{"$f":"IFERROR(INDEX(стлГород,MATCH(ROWS($H$1:$H63),стлИндекс,0)),\"\")","v":"Основание стола КАПРИЗ, Кп1, бук, без патины"},{"$f":"IF($I63,COUNTIF($I$1:$I63,TRUE),\"\")","v":63},{"$f":"NOT(ISERROR(SEARCH(Калькулятор!$C$11,$B63)))","v":true}]
["011-110п","Основание стола КАПРИЗ, Кп1, бук, патина","компл.",13600,null,null,{"$f":"IFERROR(INDEX(стлГород,MATCH(ROWS($H$1:$H64),стлИндекс,0)),\"\")","v":"Основание стола КАПРИЗ, Кп1, бук, патина"},{"$f":"IF($I64,COUNTIF($I$1:$I64,TRUE),\"\")","v":64},{"$f":"NOT(ISERROR(SEARCH(Калькулятор!$C$11,$B64)))","v":true}]
["011-120","Основание стола КАПРИЗ, Кп1, сосна, без патины","компл.",10494,null,null,{"$f":"IFERROR(INDEX(стлГород,MATCH(ROWS($H$1:$H65),стлИндекс,0)),\"\")","v":"Основание стола КАПРИЗ, Кп1, сосна, без патины"},{"$f":"IF($I65,COUNTIF($I$1:$I65,TRUE),\"\")","v":65},{"$f":"NOT(ISERROR(SEARCH(Калькулятор!$C$11,$B65)))","v":true}]
["011-120п","Основание стола КАПРИЗ, Кп1, сосна, патина","компл.",11334,null,null,{"$f":"IFERROR(INDEX(стлГород,MATCH(ROWS($H$1:$H66),стлИндекс,0)),\"\")","v":"Основание стола КАПРИЗ, Кп1, сосна, патина"},{"$f":"IF($I66,COUNTIF($I$1:$I66,TRUE),\"\")","v":66},{"$f":"NOT(ISERROR(SEARCH(Калькулятор!$C$11,$B66)))","v":true}]
["012-110","Основание стола КОКТЕЙЛЬ, Кк1, бук, без патины","компл.",13596,null,null,{"$f":"IFERROR(INDEX(стлГород,MATCH(ROWS($H$1:$H67),стлИндекс,0)),\"\")","v":"Основание стола КОКТЕЙЛЬ, Кк1, бук, без патины"},{"$f":"IF($I67,COUNTIF($I$1:$I67,TRUE),\"\")","v":67},{"$f":"NOT(ISERROR(SEARCH(Калькулятор!$C$11,$B67)))","v":true}]
["012-110п","Основание стола КОКТЕЙЛЬ, Кк1, бук, патина","компл.",14684,null,null,{"$f":"IFERROR(INDEX(стлГород,MATCH(ROWS($H$1:$H68),стлИндекс,0)),\"\")","v":"Основание стола КОКТЕЙЛЬ, Кк1, бук, патина"},{"$f":"IF($I68,COUNTIF($I$1:$I68,TRUE),\"\")","v":68},{"$f":"NOT(ISERROR(SEARCH(Калькулятор!$C$11,$B68)))","v":true}]
["012-120","Основание стола КОКТЕЙЛЬ, Кк1, сосна, без патины","компл.",11330,null,null,{"$f":"IFERROR(INDEX(стлГород,MATCH(ROWS($H$1:$H69),стлИндекс,0)),\"\")","v":"Основание стола КОКТЕЙЛЬ, Кк1, сосна, без патины"},{"$f":"IF($I69,COUNTIF($I$1:$I69,TRUE),\"\")","v":69},{"$f":"NOT(ISERROR(SEARCH(Калькулятор!$C$11,$B69)))","v":true}]
["012-120п","Основание стола КОКТЕЙЛЬ, Кк1, сосна, патина","компл.",12236,null,null,{"$f":"IFERROR(INDEX(стлГород,MATCH(ROWS($H$1:$H70),стлИндекс,0)),\"\")","v":"Основание стола КОКТЕЙЛЬ, Кк1, сосна, патина"},{"$f":"IF($I70,COUNTIF($I$1:$I70,TRUE),\"\")","v":70},{"$f":"NOT(ISERROR(SEARCH(Калькулятор!$C$11,$B70)))","v":true}]
["013-140","Основание стола ЛОФТ, Лф1, металл, эмаль","компл.",15752,null,null,{"$f":"IFERROR(INDEX(стлГород,MATCH(ROWS($H$1:$H71),стлИндекс,0)),\"\")","v":"Основание стола ЛОФТ, Лф1, металл, эмаль"},{"$f":"IF($I71,COUNTIF($I$1:$I71,TRUE),\"\")","v":71},{"$f":"NOT(ISERROR(SEARCH(Калькулятор!$C$11,$B71)))","v":true}]
["014-110","Основание стола МОДЕРН, Мд1, бук, без патины","компл.",12593,null,null,{"$f":"IFERROR(INDEX(стлГород,MATCH(ROWS($H$1:$H72),стлИндекс,0)),\"\")","v":"Основание стола МОДЕРН, Мд1, бук, без патины"},{"$f":"IF($I72,COUNTIF($I$1:$I72,TRUE),\"\")","v":72},{"$f":"NOT(ISERROR(SEARCH(Калькулятор!$C$11,$B72)))","v":true}]
["014-110п","Основание стола МОДЕРН, Мд1, бук, патина","компл.",13600,null,null,{"$f":"IFERROR(INDEX(стлГород,MATCH(ROWS($H$1:$H73),стлИндекс,0)),\"\")","v":"Основание стола МОДЕРН, Мд1, бук, патина"},{"$f":"IF($I73,COUNTIF($I$1:$I73,TRUE),\"\")","v":73},{"$f":"NOT(ISERROR(SEARCH(Калькулятор!$C$11,$B73)))","v":true}]
["014-120","Основание стола МОДЕРН, Мд1, сосна, без патины","компл.",10494,null,null,{"$f":"IFERROR(INDEX(стлГород,MATCH(ROWS($H$1:$H74),стлИндекс,0)),\"\")","v":"Основание стола МОДЕРН, Мд1, сосна, без патины"},{"$f":"IF($I74,COUNTIF($I$1:$I74,TRUE),\"\")","v":74},{"$f":"NOT(ISERROR(SEARCH(Калькулятор!$C$11,$B74)))","v":true}]
["014-120п","Основание стола МОДЕРН, Мд1, сосна, патина","компл.",11334,null,null,{"$f":"IFERROR(INDEX(стлГород,MATCH(ROWS($H$1:$H75),стлИндекс,0)),\"\")","v":"Основание стола МОДЕРН, Мд1, сосна, патина"},{"$f":"IF($I75,COUNTIF($I$1:$I75,TRUE),\"\")","v":75},{"$f":"NOT(ISERROR(SEARCH(Калькулятор!$C$11,$B75)))","v":true}]
["015-110","Основание стола НОСТАЛЬГИЯ, Нс1, бук, без патины","компл.",15936,null,null,{"$f":"IFERROR(INDEX(стлГород,MATCH(ROWS($H$1:$H76),стлИндекс,0)),\"\")","v":"Основание стола НОСТАЛЬГИЯ, Нс1, бук, без патины"},{"$f":"IF($I76,COUNTIF($I$1:$I76,TRUE),\"\")","v":76},{"$f":"NOT(ISERROR(SEARCH(Калькулятор!$C$11,$B76)))","v":true}]
["015-110п","Основание стола НОСТАЛЬГИЯ, Нс1, бук, патина","компл.",17211,null,null,{"$f":"IFERROR(INDEX(стлГород,MATCH(ROWS($H$1:$H77),стлИндекс,0)),\"\")","v":"Основание стола НОСТАЛЬГИЯ, Нс1, бук, патина"},{"$f":"IF($I77,COUNTIF($I$1:$I77,TRUE),\"\")","v":77},{"$f":"NOT(ISERROR(SEARCH(Калькулятор!$C$11,$B77)))","v":true}]
["015-120","Основание стола НОСТАЛЬГИЯ, Нс1, сосна, без патины","компл.",13280,null,null,{"$f":"IFERROR(INDEX(стлГород,MATCH(ROWS($H$1:$H78),стлИндекс,0)),\"\")","v":"Основание стола НОСТАЛЬГИЯ, Нс1, сосна, без патины"},{"$f":"IF($I78,COUNTIF($I$1:$I78,TRUE),\"\")","v":78},{"$f":"NOT(ISERROR(SEARCH(Калькулятор!$C$11,$B78)))","v":true}]
["015-120п","Основание стола НОСТАЛЬГИЯ, Нс1, сосна, патина","компл.",14342,null,null,{"$f":"IFERROR(INDEX(стлГород,MATCH(ROWS($H$1:$H79),стлИндекс,0)),\"\")","v":"Основание стола НОСТАЛЬГИЯ, Нс1, сосна, патина"},{"$f":"IF($I79,COUNTIF($I$1:$I79,TRUE),\"\")","v":79},{"$f":"NOT(ISERROR(SEARCH(Калькулятор!$C$11,$B79)))","v":true}]
["016-110","Основание стола ПЕРСОНА, Пр1, бук, без патины","компл.",15528,null,null,{"$f":"IFERROR(INDEX(стлГород,MATCH(ROWS($H$1:$H80),стлИндекс,0)),\"\")","v":"Основание стола ПЕРСОНА, Пр1, бук, без патины"},{"$f":"IF($I80,COUNTIF($I$1:$I80,TRUE),\"\")","v":80},{"$f":"NOT(ISERROR(SEARCH(Калькулятор!$C$11,$B80)))","v":true}]
["016-110п","Основание стола ПЕРСОНА, Пр1, бук, патина","компл.",16770,null,null,{"$f":"IFERROR(INDEX(стлГород,MATCH(ROWS($H$1:$H81),стлИндекс,0)),\"\")","v":"Основание стола ПЕРСОНА, Пр1, бук, патина"},{"$f":"IF($I81,COUNTIF($I$1:$I81,TRUE),\"\")","v":81},{"$f":"NOT(ISERROR(SEARCH(Калькулятор!$C$11,$B81)))","v":true}]
["016-111","Основание стола ПЕРСОНА, Пр1, бук, более 150х80см, без патины","компл.",20186,null,null,{"$f":"IFERROR(INDEX(стлГород,MATCH(ROWS($H$1:$H82),стлИндекс,0)),\"\")","v":"Основание стола ПЕРСОНА, Пр1, бук, более 150х80см, без патины"},{"$f":"IF($I82,COUNTIF($I$1:$I82,TRUE),\"\")","v":82},{"$f":"NOT(ISERROR(SEARCH(Калькулятор!$C$11,$B82)))","v":true}]
["016-111п","Основание стола ПЕРСОНА, Пр1, бук, более 150х80см, патина","компл.",21801,null,null,{"$f":"IFERROR(INDEX(стлГород,MATCH(ROWS($H$1:$H83),стлИндекс,0)),\"\")","v":"Основание стола ПЕРСОНА, Пр1, бук, более 150х80см, патина"},{"$f":"IF($I83,COUNTIF($I$1:$I83,TRUE),\"\")","v":83},{"$f":"NOT(ISERROR(SEARCH(Калькулятор!$C$11,$B83)))","v":true}]
["016-120","Основание стола ПЕРСОНА, Пр1, сосна, без патины","компл.",12940,null,null,{"$f":"IFERROR(INDEX(стлГород,MATCH(ROWS($H$1:$H84),стлИндекс,0)),\"\")","v":"Основание стола ПЕРСОНА, Пр1, сосна, без патины"},{"$f":"IF($I84,COUNTIF($I$1:$I84,TRUE),\"\")","v":84},{"$f":"NOT(ISERROR(SEARCH(Калькулятор!$C$11,$B84)))","v":true}]
["016-120п","Основание стола ПЕРСОНА, Пр1, сосна, патина","компл.",13975,null,null,{"$f":"IFERROR(INDEX(стлГород,MATCH(ROWS($H$1:$H85),стлИндекс,0)),\"\")","v":"Основание стола ПЕРСОНА, Пр1, сосна, патина"},{"$f":"IF($I85,COUNTIF($I$1:$I85,TRUE),\"\")","v":85},{"$f":"NOT(ISERROR(SEARCH(Калькулятор!$C$11,$B85)))","v":true}]
["016-121","Основание стола ПЕРСОНА, Пр1, сосна, более 150х80см, без патины","компл.",16822,null,null,{"$f":"IFERROR(INDEX(стлГород,MATCH(ROWS($H$1:$H86),стлИндекс,0)),\"\")","v":"Основание стола ПЕРСОНА, Пр1, сосна, более 150х80см, без патины"},{"$f":"IF($I86,COUNTIF($I$1:$I86,TRUE),\"\")","v":86},{"$f":"NOT(ISERROR(SEARCH(Калькулятор!$C$11,$B86)))","v":true}]
["016-121п","Основание стола ПЕРСОНА, Пр1, сосна, более 150х80см, патина","компл.",18168,null,null,{"$f":"IFERROR(INDEX(стлГород,MATCH(ROWS($H$1:$H87),стлИндекс,0)),\"\")","v":"Основание стола ПЕРСОНА, Пр1, сосна, более 150х80см, патина"},{"$f":"IF($I87,COUNTIF($I$1:$I87,TRUE),\"\")","v":87},{"$f":"NOT(ISERROR(SEARCH(Калькулятор!$C$11,$B87)))","v":true}]
["016-210","Основание стола ПЕРСОНА, Пр2, бук, без патины","компл.",14532,null,null,{"$f":"IFERROR(INDEX(стлГород,MATCH(ROWS($H$1:$H88),стлИндекс,0)),\"\")","v":"Основание стола ПЕРСОНА, Пр2, бук, без патины"},{"$f":"IF($I88,COUNTIF($I$1:$I88,TRUE),\"\")","v":88},{"$f":"NOT(ISERROR(SEARCH(Калькулятор!$C$11,$B88)))","v":true}]
["016-210п","Основание стола ПЕРСОНА, Пр2, бук, патина","компл.",15695,null,null,{"$f":"IFERROR(INDEX(стлГород,MATCH(ROWS($H$1:$H89),стлИндекс,0)),\"\")","v":"Основание стола ПЕРСОНА, Пр2, бук, патина"},{"$f":"IF($I89,COUNTIF($I$1:$I89,TRUE),\"\")","v":89},{"$f":"NOT(ISERROR(SEARCH(Калькулятор!$C$11,$B89)))","v":true}]
["016-211","Основание стола ПЕРСОНА, Пр2, бук, более 150х80см, без патины","компл.",18892,null,null,{"$f":"IFERROR(INDEX(стлГород,MATCH(ROWS($H$1:$H90),стлИндекс,0)),\"\")","v":"Основание стола ПЕРСОНА, Пр2, бук, более 150х80см, без патины"},{"$f":"IF($I90,COUNTIF($I$1:$I90,TRUE),\"\")","v":90},{"$f":"NOT(ISERROR(SEARCH(Калькулятор!$C$11,$B90)))","v":true}]
["016-211п","Основание стола ПЕРСОНА, Пр2, бук, более 150х80см, патина","компл.",20403,null,null,{"$f":"IFERROR(INDEX(стлГород,MATCH(ROWS($H$1:$H91),стлИндекс,0)),\"\")","v":"Основание стола ПЕРСОНА, Пр2, бук, более 150х80см, патина"},{"$f":"IF($I91,COUNTIF($I$1:$I91,TRUE),\"\")","v":91},{"$f":"NOT(ISERROR(SEARCH(Калькулятор!$C$11,$B91)))","v":true}]
["016-220","Основание стола ПЕРСОНА, Пр2, сосна, без патины","компл.",12110,null,null,{"$f":"IFERROR(INDEX(стлГород,MATCH(ROWS($H$1:$H92),стлИндекс,0)),\"\")","v":"Основание стола ПЕРСОНА, Пр2, сосна, без патины"},{"$f":"IF($I92,COUNTIF($I$1:$I92,TRUE),\"\")","v":92},{"$f":"NOT(ISERROR(SEARCH(Калькулятор!$C$11,$B92)))","v":true}]
["016-220п","Основание стола ПЕРСОНА, Пр2, сосна, патина","компл.",13079,null,null,{"$f":"IFERROR(INDEX(стлГород,MATCH(ROWS($H$1:$H93),стлИндекс,0)),\"\")","v":"Основание стола ПЕРСОНА, Пр2, сосна, патина"},{"$f":"IF($I93,COUNTIF($I$1:$I93,TRUE),\"\")","v":93},{"$f":"NOT(ISERROR(SEARCH(Калькулятор!$C$11,$B93)))","v":true}]
["016-221","Основание стола ПЕРСОНА, Пр2, сосна, более 150х80см, без патины","компл.",15743,null,null,{"$f":"IFERROR(INDEX(стлГород,MATCH(ROWS($H$1:$H94),стлИндекс,0)),\"\")","v":"Основание стола ПЕРСОНА, Пр2, сосна, более 150х80см, без патины"},{"$f":"IF($I94,COUNTIF($I$1:$I94,TRUE),\"\")","v":94},{"$f":"NOT(ISERROR(SEARCH(Калькулятор!$C$11,$B94)))","v":true}]
["016-221п","Основание стола ПЕРСОНА, Пр2, сосна, более 150х80см, патина","компл.",17002,null,null,{"$f":"IFERROR(INDEX(стлГород,MATCH(ROWS($H$1:$H95),стлИндекс,0)),\"\")","v":"Основание стола ПЕРСОНА, Пр2, сосна, более 150х80см, патина"},{"$f":"IF($I95,COUNTIF($I$1:$I95,TRUE),\"\")","v":95},{"$f":"NOT(ISERROR(SEARCH(Калькулятор!$C$11,$B95)))","v":true}]
["017-110","Основание стола ПОМЕСТЬЕ, Пм1, бук, без патины","компл.",35152,null,null,{"$f":"IFERROR(INDEX(стлГород,MATCH(ROWS($H$1:$H96),стлИндекс,0)),\"\")","v":"Основание стола ПОМЕСТЬЕ, Пм1, бук, без патины"},{"$f":"IF($I96,COUNTIF($I$1:$I96,TRUE),\"\")","v":96},{"$f":"NOT(ISERROR(SEARCH(Калькулятор!$C$11,$B96)))","v":true}]
["017-110п","Основание стола ПОМЕСТЬЕ, Пм1, бук, патина","компл.",37964,null,null,{"$f":"IFERROR(INDEX(стлГород,MATCH(ROWS($H$1:$H97),стлИндекс,0)),\"\")","v":"Основание стола ПОМЕСТЬЕ, Пм1, бук, патина"},{"$f":"IF($I97,COUNTIF($I$1:$I97,TRUE),\"\")","v":97},{"$f":"NOT(ISERROR(SEARCH(Калькулятор!$C$11,$B97)))","v":true}]
["017-120","Основание стола ПОМЕСТЬЕ, Пм1, сосна, без патины","компл.",29293,null,null,{"$f":"IFERROR(INDEX(стлГород,MATCH(ROWS($H$1:$H98),стлИндекс,0)),\"\")","v":"Основание стола ПОМЕСТЬЕ, Пм1, сосна, без патины"},{"$f":"IF($I98,COUNTIF($I$1:$I98,TRUE),\"\")","v":98},{"$f":"NOT(ISERROR(SEARCH(Калькулятор!$C$11,$B98)))","v":true}]
["017-120п","Основание стола ПОМЕСТЬЕ, Пм1, сосна, патина","компл.",31637,null,null,{"$f":"IFERROR(INDEX(стлГород,MATCH(ROWS($H$1:$H99),стлИндекс,0)),\"\")","v":"Основание стола ПОМЕСТЬЕ, Пм1, сосна, патина"},{"$f":"IF($I99,COUNTIF($I$1:$I99,TRUE),\"\")","v":99},{"$f":"NOT(ISERROR(SEARCH(Калькулятор!$C$11,$B99)))","v":true}]
["019-110","Основание стола ПРОВАНС, Пв1, бук, без патины","компл.",18902,null,null,{"$f":"IFERROR(INDEX(стлГород,MATCH(ROWS($H$1:$H100),стлИндекс,0)),\"\")","v":"Основание стола ПРОВАНС, Пв1, бук, без патины"},{"$f":"IF($I100,COUNTIF($I$1:$I100,TRUE),\"\")","v":100},{"$f":"NOT(ISERROR(SEARCH(Калькулятор!$C$11,$B100)))","v":true}]
["019-110п","Основание стола ПРОВАНС, Пв1, бук, патина","компл.",20414,null,null,{"$f":"IFERROR(INDEX(стлГород,MATCH(ROWS($H$1:$H101),стлИндекс,0)),\"\")","v":"Основание стола ПРОВАНС, Пв1, бук, патина"},{"$f":"IF($I101,COUNTIF($I$1:$I101,TRUE),\"\")","v":101},{"$f":"NOT(ISERROR(SEARCH(Калькулятор!$C$11,$B101)))","v":true}]
["019-120","Основание стола ПРОВАНС, Пв1, сосна, без патины","компл.",15752,null,null,{"$f":"IFERROR(INDEX(стлГород,MATCH(ROWS($H$1:$H102),стлИндекс,0)),\"\")","v":"Основание стола ПРОВАНС, Пв1, сосна, без патины"},{"$f":"IF($I102,COUNTIF($I$1:$I102,TRUE),\"\")","v":102},{"$f":"NOT(ISERROR(SEARCH(Калькулятор!$C$11,$B102)))","v":true}]
["019-120п","Основание стола ПРОВАНС, Пв1, сосна, патина","компл.",17012,null,null,{"$f":"IFERROR(INDEX(стлГород,MATCH(ROWS($H$1:$H103),стлИндекс,0)),\"\")","v":"Основание стола ПРОВАНС, Пв1, сосна, патина"},{"$f":"IF($I103,COUNTIF($I$1:$I103,TRUE),\"\")","v":103},{"$f":"NOT(ISERROR(SEARCH(Калькулятор!$C$11,$B103)))","v":true}]
["018-110","Основание стола СТАТУС, Ст1, бук, без патины","компл.",14532,null,null,{"$f":"IFERROR(INDEX(стлГород,MATCH(ROWS($H$1:$H104),стлИндекс,0)),\"\")","v":"Основание стола СТАТУС, Ст1, бук, без патины"},{"$f":"IF($I104,COUNTIF($I$1:$I104,TRUE),\"\")","v":104},{"$f":"NOT(ISERROR(SEARCH(Калькулятор!$C$11,$B104)))","v":true}]
["018-110п","Основание стола СТАТУС, Ст1, бук, патина","компл.",15695,null,null,{"$f":"IFERROR(INDEX(стлГород,MATCH(ROWS($H$1:$H105),стлИндекс,0)),\"\")","v":"Основание стола СТАТУС, Ст1, бук, патина"},{"$f":"IF($I105,COUNTIF($I$1:$I105,TRUE),\"\")","v":105},{"$f":"NOT(ISERROR(SEARCH(Калькулятор!$C$11,$B105)))","v":true}]
["018-111","Основание стола СТАТУС, Ст1, бук, более 150х80см, без патины","компл.",18892,null,null,{"$f":"IFERROR(INDEX(стлГород,MATCH(ROWS($H$1:$H106),стлИндекс,0)),\"\")","v":"Основание стола СТАТУС, Ст1, бук, более 150х80см, без патины"},{"$f":"IF($I106,COUNTIF($I$1:$I106,TRUE),\"\")","v":106},{"$f":"NOT(ISERROR(SEARCH(Калькулятор!$C$11,$B106)))","v":true}]
["018-111п","Основание стола СТАТУС, Ст1, бук, более 150х80см, патина","компл.",20403,null,null,{"$f":"IFERROR(INDEX(стлГород,MATCH(ROWS($H$1:$H107),стлИндекс,0)),\"\")","v":"Основание стола СТАТУС, Ст1, бук, более 150х80см, патина"},{"$f":"IF($I107,COUNTIF($I$1:$I107,TRUE),\"\")","v":107},{"$f":"NOT(ISERROR(SEARCH(Калькулятор!$C$11,$B107)))","v":true}]
["018-120","Основание стола СТАТУС, Ст1, сосна, без патины","компл.",12110,null,null,{"$f":"IFERROR(INDEX(стлГород,MATCH(ROWS($H$1:$H108),стлИндекс,0)),\"\")","v":"Основание стола СТАТУС, Ст1, сосна, без патины"},{"$f":"IF($I108,COUNTIF($I$1:$I108,TRUE),\"\")","v":108},{"$f":"NOT(ISERROR(SEARCH(Калькулятор!$C$11,$B108)))","v":true}]
["018-120п","Основание стола СТАТУС, Ст1, сосна, патина","компл.",13079,null,null,{"$f":"IFERROR(INDEX(стлГород,MATCH(ROWS($H$1:$H109),стлИндекс,0)),\"\")","v":"Основание стола СТАТУС, Ст1, сосна, патина"},{"$f":"IF($I109,COUNTIF($I$1:$I109,TRUE),\"\")","v":109},{"$f":"NOT(ISERROR(SEARCH(Калькулятор!$C$11,$B109)))","v":true}]
["018-121","Основание стола СТАТУС, Ст1, сосна, более 150х80см, без патины","компл.",15743,null,null,{"$f":"IFERROR(INDEX(стлГород,MATCH(ROWS($H$1:$H110),стлИндекс,0)),\"\")","v":"Основание стола СТАТУС, Ст1, сосна, более 150х80см, без патины"},{"$f":"IF($I110,COUNTIF($I$1:$I110,TRUE),\"\")","v":110},{"$f":"NOT(ISERROR(SEARCH(Калькулятор!$C$11,$B110)))","v":true}]
["018-121п","Основание стола СТАТУС, Ст1, сосна, более 150х80см, патина","компл.",17002,null,null,{"$f":"IFERROR(INDEX(стлГород,MATCH(ROWS($H$1:$H111),стлИндекс,0)),\"\")","v":"Основание стола СТАТУС, Ст1, сосна, более 150х80см, патина"},{"$f":"IF($I111,COUNTIF($I$1:$I111,TRUE),\"\")","v":111},{"$f":"NOT(ISERROR(SEARCH(Калькулятор!$C$11,$B111)))","v":true}]
["018-210","Основание стола СТАТУС, Ст2, бук, без патины","компл.",14810,null,null,{"$f":"IFERROR(INDEX(стлГород,MATCH(ROWS($H$1:$H112),стлИндекс,0)),\"\")","v":"Основание стола СТАТУС, Ст2, бук, без патины"},{"$f":"IF($I112,COUNTIF($I$1:$I112,TRUE),\"\")","v":112},{"$f":"NOT(ISERROR(SEARCH(Калькулятор!$C$11,$B112)))","v":true}]
["018-210п","Основание стола СТАТУС, Ст2, бук, патина","компл.",15995,null,null,{"$f":"IFERROR(INDEX(стлГород,MATCH(ROWS($H$1:$H113),стлИндекс,0)),\"\")","v":"Основание стола СТАТУС, Ст2, бук, патина"},{"$f":"IF($I113,COUNTIF($I$1:$I113,TRUE),\"\")","v":113},{"$f":"NOT(ISERROR(SEARCH(Калькулятор!$C$11,$B113)))","v":true}]
["018-211","Основание стола СТАТУС, Ст2, бук, более 150х80см, без патины","компл.",19253,null,null,{"$f":"IFERROR(INDEX(стлГород,MATCH(ROWS($H$1:$H114),стлИндекс,0)),\"\")","v":"Основание стола СТАТУС, Ст2, бук, более 150х80см, без патины"},{"$f":"IF($I114,COUNTIF($I$1:$I114,TRUE),\"\")","v":114},{"$f":"NOT(ISERROR(SEARCH(Калькулятор!$C$11,$B114)))","v":true}]
["018-211п","Основание стола СТАТУС, Ст2, бук, более 150х80см, патина","компл.",20793,null,null,{"$f":"IFERROR(INDEX(стлГород,MATCH(ROWS($H$1:$H115),стлИндекс,0)),\"\")","v":"Основание стола СТАТУС, Ст2, бук, более 150х80см, патина"},{"$f":"IF($I115,COUNTIF($I$1:$I115,TRUE),\"\")","v":115},{"$f":"NOT(ISERROR(SEARCH(Калькулятор!$C$11,$B115)))","v":true}]
["018-220","Основание стола СТАТУС, Ст2, сосна, без патины","компл.",12342,null,null,{"$f":"IFERROR(INDEX(стлГород,MATCH(ROWS($H$1:$H116),стлИндекс,0)),\"\")","v":"Основание стола СТАТУС, Ст2, сосна, без патины"},{"$f":"IF($I116,COUNTIF($I$1:$I116,TRUE),\"\")","v":116},{"$f":"NOT(ISERROR(SEARCH(Калькулятор!$C$11,$B116)))","v":true}]
["018-220п","Основание стола СТАТУС, Ст2, сосна, патина","компл.",13329,null,null,{"$f":"IFERROR(INDEX(стлГород,MATCH(ROWS($H$1:$H117),стлИндекс,0)),\"\")","v":"Основание стола СТАТУС, Ст2, сосна, патина"},{"$f":"IF($I117,COUNTIF($I$1:$I117,TRUE),\"\")","v":117},{"$f":"NOT(ISERROR(SEARCH(Калькулятор!$C$11,$B117)))","v":true}]
["018-221","Основание стола СТАТУС, Ст2, сосна, более 150х80см, без патины","компл.",16044,null,null,{"$f":"IFERROR(INDEX(стлГород,MATCH(ROWS($H$1:$H118),стлИндекс,0)),\"\")","v":"Основание стола СТАТУС, Ст2, сосна, более 150х80см, без патины"},{"$f":"IF($I118,COUNTIF($I$1:$I118,TRUE),\"\")","v":118},{"$f":"NOT(ISERROR(SEARCH(Калькулятор!$C$11,$B118)))","v":true}]
["018-221п","Основание стола СТАТУС, Ст2, сосна, более 150х80см, патина","компл.",17328,null,null,{"$f":"IFERROR(INDEX(стлГород,MATCH(ROWS($H$1:$H119),стлИндекс,0)),\"\")","v":"Основание стола СТАТУС, Ст2, сосна, более 150х80см, патина"},{"$f":"IF($I119,COUNTIF($I$1:$I119,TRUE),\"\")","v":119},{"$f":"NOT(ISERROR(SEARCH(Калькулятор!$C$11,$B119)))","v":true}]
["024-110","Основание стола ТОРЖЕСТВО, Тр1, бук, без патины","компл.",14810,null,null,{"$f":"IFERROR(INDEX(стлГород,MATCH(ROWS($H$1:$H120),стлИндекс,0)),\"\")","v":"Основание стола ТОРЖЕСТВО, Тр1, бук, без патины"},{"$f":"IF($I120,COUNTIF($I$1:$I120,TRUE),\"\")","v":120},{"$f":"NOT(ISERROR(SEARCH(Калькулятор!$C$11,$B120)))","v":true}]
["024-110п","Основание стола ТОРЖЕСТВО, Тр1, бук, патина","компл.",15995,null,null,{"$f":"IFERROR(INDEX(стлГород,MATCH(ROWS($H$1:$H121),стлИндекс,0)),\"\")","v":"Основание стола ТОРЖЕСТВО, Тр1, бук, патина"},{"$f":"IF($I121,COUNTIF($I$1:$I121,TRUE),\"\")","v":121},{"$f":"NOT(ISERROR(SEARCH(Калькулятор!$C$11,$B121)))","v":true}]
["024-111","Основание стола ТОРЖЕСТВО, Тр1, бук, более 150х80см, без патины","компл.",19253,null,null,{"$f":"IFERROR(INDEX(стлГород,MATCH(ROWS($H$1:$H122),стлИндекс,0)),\"\")","v":"Основание стола ТОРЖЕСТВО, Тр1, бук, более 150х80см, без патины"},{"$f":"IF($I122,COUNTIF($I$1:$I122,TRUE),\"\")","v":122},{"$f":"NOT(ISERROR(SEARCH(Калькулятор!$C$11,$B122)))","v":true}]
["024-111п","Основание стола ТОРЖЕСТВО, Тр1, бук, более 150х80см, патина","компл.",20793,null,null,{"$f":"IFERROR(INDEX(стлГород,MATCH(ROWS($H$1:$H123),стлИндекс,0)),\"\")","v":"Основание стола ТОРЖЕСТВО, Тр1, бук, более 150х80см, патина"},{"$f":"IF($I123,COUNTIF($I$1:$I123,TRUE),\"\")","v":123},{"$f":"NOT(ISERROR(SEARCH(Калькулятор!$C$11,$B123)))","v":true}]
["024-120","Основание стола ТОРЖЕСТВО, Тр1, сосна, без патины","компл.",12342,null,null,{"$f":"IFERROR(INDEX(стлГород,MATCH(ROWS($H$1:$H124),стлИндекс,0)),\"\")","v":"Основание стола ТОРЖЕСТВО, Тр1, сосна, без патины"},{"$f":"IF($I124,COUNTIF($I$1:$I124,TRUE),\"\")","v":124},{"$f":"NOT(ISERROR(SEARCH(Калькулятор!$C$11,$B124)))","v":true}]
["024-120п","Основание стола ТОРЖЕСТВО, Тр1, сосна, патина","компл.",13329,null,null,{"$f":"IFERROR(INDEX(стлГород,MATCH(ROWS($H$1:$H125),стлИндекс,0)),\"\")","v":"Основание стола ТОРЖЕСТВО, Тр1, сосна, патина"},{"$f":"IF($I125,COUNTIF($I$1:$I125,TRUE),\"\")","v":125},{"$f":"NOT(ISERROR(SEARCH(Калькулятор!$C$11,$B125)))","v":true}]
["024-121","Основание стола ТОРЖЕСТВО, Тр1, сосна, более 150х80см, без патины","компл.",16044,null,null,{"$f":"IFERROR(INDEX(стлГород,MATCH(ROWS($H$1:$H126),стлИндекс,0)),\"\")","v":"Основание стола ТОРЖЕСТВО, Тр1, сосна, более 150х80см, без патины"},{"$f":"IF($I126,COUNTIF($I$1:$I126,TRUE),\"\")","v":126},{"$f":"NOT(ISERROR(SEARCH(Калькулятор!$C$11,$B126)))","v":true}]
["024-121п","Основание стола ТОРЖЕСТВО, Тр1, сосна, более 150х80см, патина","компл.",17328,null,null,{"$f":"IFERROR(INDEX(стлГород,MATCH(ROWS($H$1:$H127),стлИндекс,0)),\"\")","v":"Основание стола ТОРЖЕСТВО, Тр1, сосна, более 150х80см, патина"},{"$f":"IF($I127,COUNTIF($I$1:$I127,TRUE),\"\")","v":127},{"$f":"NOT(ISERROR(SEARCH(Калькулятор!$C$11,$B127)))","v":true}]
["024-210","Основание стола ТОРЖЕСТВО, Тр2, бук, без патины","компл.",14810,null,null,{"$f":"IFERROR(INDEX(стлГород,MATCH(ROWS($H$1:$H128),стлИндекс,0)),\"\")","v":"Основание стола ТОРЖЕСТВО, Тр2, бук, без патины"},{"$f":"IF($I128,COUNTIF($I$1:$I128,TRUE),\"\")","v":128},{"$f":"NOT(ISERROR(SEARCH(Калькулятор!$C$11,$B128)))","v":true}]
["024-210п","Основание стола ТОРЖЕСТВО, Тр2, бук, патина","компл.",15995,null,null,{"$f":"IFERROR(INDEX(стлГород,MATCH(ROWS($H$1:$H129),стлИндекс,0)),\"\")","v":"Основание стола ТОРЖЕСТВО, Тр2, бук, патина"},{"$f":"IF($I129,COUNTIF($I$1:$I129,TRUE),\"\")","v":129},{"$f":"NOT(ISERROR(SEARCH(Калькулятор!$C$11,$B129)))","v":true}]
["024-211","Основание стола ТОРЖЕСТВО, Тр2, бук, более 150х80см, без патины","компл.",19253,null,null,{"$f":"IFERROR(INDEX(стлГород,MATCH(ROWS($H$1:$H130),стлИндекс,0)),\"\")","v":"Основание стола ТОРЖЕСТВО, Тр2, бук, более 150х80см, без патины"},{"$f":"IF($I130,COUNTIF($I$1:$I130,TRUE),\"\")","v":130},{"$f":"NOT(ISERROR(SEARCH(Калькулятор!$C$11,$B130)))","v":true}]
["024-211п","Основание стола ТОРЖЕСТВО, Тр2, бук, более 150х80см, патина","компл.",20793,null,null,{"$f":"IFERROR(INDEX(стлГород,MATCH(ROWS($H$1:$H131),стлИндекс,0)),\"\")","v":"Основание стола ТОРЖЕСТВО, Тр2, бук, более 150х80см, патина"},{"$f":"IF($I131,COUNTIF($I$1:$I131,TRUE),\"\")","v":131},{"$f":"NOT(ISERROR(SEARCH(Калькулятор!$C$11,$B131)))","v":true}]
["024-220","Основание стола ТОРЖЕСТВО, Тр2, сосна, без патины","компл.",12342,null,null,{"$f":"IFERROR(INDEX(стлГород,MATCH(ROWS($H$1:$H132),стлИндекс,0)),\"\")","v":"Основание стола ТОРЖЕСТВО, Тр2, сосна, без патины"},{"$f":"IF($I132,COUNTIF($I$1:$I132,TRUE),\"\")","v":132},{"$f":"NOT(ISERROR(SEARCH(Калькулятор!$C$11,$B132)))","v":true}]
["024-220п","Основание стола ТОРЖЕСТВО, Тр2, сосна, патина","компл.",13329,null,null,{"$f":"IFERROR(INDEX(стлГород,MATCH(ROWS($H$1:$H133),стлИндекс,0)),\"\")","v":"Основание стола ТОРЖЕСТВО, Тр2, сосна, патина"},{"$f":"IF($I133,COUNTIF($I$1:$I133,TRUE),\"\")","v":133},{"$f":"NOT(ISERROR(SEARCH(Калькулятор!$C$11,$B133)))","v":true}]
["024-221","Основание стола ТОРЖЕСТВО, Тр2, сосна, более 150х80см, без патины","компл.",16044,null,null,{"$f":"IFERROR(INDEX(стлГород,MATCH(ROWS($H$1:$H134),стлИндекс,0)),\"\")","v":"Основание стола ТОРЖЕСТВО, Тр2, сосна, более 150х80см, без патины"},{"$f":"IF($I134,COUNTIF($I$1:$I134,TRUE),\"\")","v":134},{"$f":"NOT(ISERROR(SEARCH(Калькулятор!$C$11,$B134)))","v":true}]
["024-221п","Основание стола ТОРЖЕСТВО, Тр2, сосна, более 150х80см, патина","компл.",17328,null,null,{"$f":"IFERROR(INDEX(стлГород,MATCH(ROWS($H$1:$H135),стлИндекс,0)),\"\")","v":"Основание стола ТОРЖЕСТВО, Тр2, сосна, более 150х80см, патина"},{"$f":"IF($I135,COUNTIF($I$1:$I135,TRUE),\"\")","v":135},{"$f":"NOT(ISERROR(SEARCH(Калькулятор!$C$11,$B135)))","v":true}]
["024-310","Основание стола ТОРЖЕСТВО, Тр3, бук, без патины","компл.",14810,null,null,{"$f":"IFERROR(INDEX(стлГород,MATCH(ROWS($H$1:$H136),стлИндекс,0)),\"\")","v":"Основание стола ТОРЖЕСТВО, Тр3, бук, без патины"},{"$f":"IF($I136,COUNTIF($I$1:$I136,TRUE),\"\")","v":136},{"$f":"NOT(ISERROR(SEARCH(Калькулятор!$C$11,$B136)))","v":true}]
["024-310п","Основание стола ТОРЖЕСТВО, Тр3, бук, патина","компл.",15995,null,null,{"$f":"IFERROR(INDEX(стлГород,MATCH(ROWS($H$1:$H137),стлИндекс,0)),\"\")","v":"Основание стола ТОРЖЕСТВО, Тр3, бук, патина"},{"$f":"IF($I137,COUNTIF($I$1:$I137,TRUE),\"\")","v":137},{"$f":"NOT(ISERROR(SEARCH(Калькулятор!$C$11,$B137)))","v":true}]
["024-311","Основание стола ТОРЖЕСТВО, Тр3, бук, более 150х80см, без патины","компл.",19253,null,null,{"$f":"IFERROR(INDEX(стлГород,MATCH(ROWS($H$1:$H138),стлИндекс,0)),\"\")","v":"Основание стола ТОРЖЕСТВО, Тр3, бук, более 150х80см, без патины"},{"$f":"IF($I138,COUNTIF($I$1:$I138,TRUE),\"\")","v":138},{"$f":"NOT(ISERROR(SEARCH(Калькулятор!$C$11,$B138)))","v":true}]
["024-311п","Основание стола ТОРЖЕСТВО, Тр3, бук, более 150х80см, патина","компл.",20793,null,null,{"$f":"IFERROR(INDEX(стлГород,MATCH(ROWS($H$1:$H139),стлИндекс,0)),\"\")","v":"Основание стола ТОРЖЕСТВО, Тр3, бук, более 150х80см, патина"},{"$f":"IF($I139,COUNTIF($I$1:$I139,TRUE),\"\")","v":139},{"$f":"NOT(ISERROR(SEARCH(Калькулятор!$C$11,$B139)))","v":true}]
["024-320","Основание стола ТОРЖЕСТВО, Тр3, сосна, без патины","компл.",12342,null,null,{"$f":"IFERROR(INDEX(стлГород,MATCH(ROWS($H$1:$H140),стлИндекс,0)),\"\")","v":"Основание стола ТОРЖЕСТВО, Тр3, сосна, без патины"},{"$f":"IF($I140,COUNTIF($I$1:$I140,TRUE),\"\")","v":140},{"$f":"NOT(ISERROR(SEARCH(Калькулятор!$C$11,$B140)))","v":true}]
["024-320п","Основание стола ТОРЖЕСТВО, Тр3, сосна, патина","компл.",13329,null,null,{"$f":"IFERROR(INDEX(стлГород,MATCH(ROWS($H$1:$H141),стлИндекс,0)),\"\")","v":"Основание стола ТОРЖЕСТВО, Тр3, сосна, патина"},{"$f":"IF($I141,COUNTIF($I$1:$I141,TRUE),\"\")","v":141},{"$f":"NOT(ISERROR(SEARCH(Калькулятор!$C$11,$B141)))","v":true}]
["024-321","Основание стола ТОРЖЕСТВО, Тр3, сосна, более 150х80см, без патины","компл.",16044,null,null,{"$f":"IFERROR(INDEX(стлГород,MATCH(ROWS($H$1:$H142),стлИндекс,0)),\"\")","v":"Основание стола ТОРЖЕСТВО, Тр3, сосна, более 150х80см, без патины"},{"$f":"IF($I142,COUNTIF($I$1:$I142,TRUE),\"\")","v":142},{"$f":"NOT(ISERROR(SEARCH(Калькулятор!$C$11,$B142)))","v":true}]
["024-321п","Основание стола ТОРЖЕСТВО, Тр3, сосна, более 150х80см, патина","компл.",17328,null,null,{"$f":"IFERROR(INDEX(стлГород,MATCH(ROWS($H$1:$H143),стлИндекс,0)),\"\")","v":"Основание стола ТОРЖЕСТВО, Тр3, сосна, более 150х80см, патина"},{"$f":"IF($I143,COUNTIF($I$1:$I143,TRUE),\"\")","v":143},{"$f":"NOT(ISERROR(SEARCH(Калькулятор!$C$11,$B143)))","v":true}]
["024-410","Основание стола ТОРЖЕСТВО, Тр4, бук, без патины","компл.",14810,null,null,{"$f":"IFERROR(INDEX(стлГород,MATCH(ROWS($H$1:$H144),стлИндекс,0)),\"\")","v":"Основание стола ТОРЖЕСТВО, Тр4, бук, без патины"},{"$f":"IF($I144,COUNTIF($I$1:$I144,TRUE),\"\")","v":144},{"$f":"NOT(ISERROR(SEARCH(Калькулятор!$C$11,$B144)))","v":true}]
["024-410п","Основание стола ТОРЖЕСТВО, Тр4, бук, патина","компл.",15995,null,null,{"$f":"IFERROR(INDEX(стлГород,MATCH(ROWS($H$1:$H145),стлИндекс,0)),\"\")","v":"Основание стола ТОРЖЕСТВО, Тр4, бук, патина"},{"$f":"IF($I145,COUNTIF($I$1:$I145,TRUE),\"\")","v":145},{"$f":"NOT(ISERROR(SEARCH(Калькулятор!$C$11,$B145)))","v":true}]
["024-411","Основание стола ТОРЖЕСТВО, Тр4, бук, более 150х80см, без патины","компл.",19253,null,null,{"$f":"IFERROR(INDEX(стлГород,MATCH(ROWS($H$1:$H146),стлИндекс,0)),\"\")","v":"Основание стола ТОРЖЕСТВО, Тр4, бук, более 150х80см, без патины"},{"$f":"IF($I146,COUNTIF($I$1:$I146,TRUE),\"\")","v":146},{"$f":"NOT(ISERROR(SEARCH(Калькулятор!$C$11,$B146)))","v":true}]
["024-411п","Основание стола ТОРЖЕСТВО, Тр4, бук, более 150х80см, патина","компл.",20793,null,null,{"$f":"IFERROR(INDEX(стлГород,MATCH(ROWS($H$1:$H147),стлИндекс,0)),\"\")","v":"Основание стола ТОРЖЕСТВО, Тр4, бук, более 150х80см, патина"},{"$f":"IF($I147,COUNTIF($I$1:$I147,TRUE),\"\")","v":147},{"$f":"NOT(ISERROR(SEARCH(Калькулятор!$C$11,$B147)))","v":true}]
["024-420","Основание стола ТОРЖЕСТВО, Тр4, сосна, без патины","компл.",12342,null,null,{"$f":"IFERROR(INDEX(стлГород,MATCH(ROWS($H$1:$H148),стлИндекс,0)),\"\")","v":"Основание стола ТОРЖЕСТВО, Тр4, сосна, без патины"},{"$f":"IF($I148,COUNTIF($I$1:$I148,TRUE),\"\")","v":148},{"$f":"NOT(ISERROR(SEARCH(Калькулятор!$C$11,$B148)))","v":true}]
["024-420п","Основание стола ТОРЖЕСТВО, Тр4, сосна, патина","компл.",13329,null,null,{"$f":"IFERROR(INDEX(стлГород,MATCH(ROWS($H$1:$H149),стлИндекс,0)),\"\")","v":"Основание стола ТОРЖЕСТВО, Тр4, сосна, патина"},{"$f":"IF($I149,COUNTIF($I$1:$I149,TRUE),\"\")","v":149},{"$f":"NOT(ISERROR(SEARCH(Калькулятор!$C$11,$B149)))","v":true}]
["024-421","Основание стола ТОРЖЕСТВО, Тр4, сосна, более 150х80см, без патины","компл.",16044,null,null,{"$f":"IFERROR(INDEX(стлГород,MATCH(ROWS($H$1:$H150),стлИндекс,0)),\"\")","v":"Основание стола ТОРЖЕСТВО, Тр4, сосна, более 150х80см, без патины"},{"$f":"IF($I150,COUNTIF($I$1:$I150,TRUE),\"\")","v":150},{"$f":"NOT(ISERROR(SEARCH(Калькулятор!$C$11,$B150)))","v":true}]
["024-421п","Основание стола ТОРЖЕСТВО, Тр4, сосна, более 150х80см, патина","компл.",17328,null,null,{"$f":"IFERROR(INDEX(стлГород,MATCH(ROWS($H$1:$H151),стлИндекс,0)),\"\")","v":"Основание стола ТОРЖЕСТВО, Тр4, сосна, более 150х80см, патина"},{"$f":"IF($I151,COUNTIF($I$1:$I151,TRUE),\"\")","v":151},{"$f":"NOT(ISERROR(SEARCH(Калькулятор!$C$11,$B151)))","v":true}]
["024-510","Основание стола ТОРЖЕСТВО, Тр5, бук, без патины","компл.",14810,null,null,{"$f":"IFERROR(INDEX(стлГород,MATCH(ROWS($H$1:$H152),стлИндекс,0)),\"\")","v":"Основание стола ТОРЖЕСТВО, Тр5, бук, без патины"},{"$f":"IF($I152,COUNTIF($I$1:$I152,TRUE),\"\")","v":152},{"$f":"NOT(ISERROR(SEARCH(Калькулятор!$C$11,$B152)))","v":true}]
["024-510п","Основание стола ТОРЖЕСТВО, Тр5, бук, патина","компл.",15995,null,null,{"$f":"IFERROR(INDEX(стлГород,MATCH(ROWS($H$1:$H153),стлИндекс,0)),\"\")","v":"Основание стола ТОРЖЕСТВО, Тр5, бук, патина"},{"$f":"IF($I153,COUNTIF($I$1:$I153,TRUE),\"\")","v":153},{"$f":"NOT(ISERROR(SEARCH(Калькулятор!$C$11,$B153)))","v":true}]
["024-511","Основание стола ТОРЖЕСТВО, Тр5, бук, более 150х80см, без патины","компл.",19253,null,null,{"$f":"IFERROR(INDEX(стлГород,MATCH(ROWS($H$1:$H154),стлИндекс,0)),\"\")","v":"Основание стола ТОРЖЕСТВО, Тр5, бук, более 150х80см, без патины"},{"$f":"IF($I154,COUNTIF($I$1:$I154,TRUE),\"\")","v":154},{"$f":"NOT(ISERROR(SEARCH(Калькулятор!$C$11,$B154)))","v":true}]
["024-511п","Основание стола ТОРЖЕСТВО, Тр5, бук, более 150х80см, патина","компл.",20793,null,null,{"$f":"IFERROR(INDEX(стлГород,MATCH(ROWS($H$1:$H155),стлИндекс,0)),\"\")","v":"Основание стола ТОРЖЕСТВО, Тр5, бук, более 150х80см, патина"},{"$f":"IF($I155,COUNTIF($I$1:$I155,TRUE),\"\")","v":155},{"$f":"NOT(ISERROR(SEARCH(Калькулятор!$C$11,$B155)))","v":true}]
["024-520","Основание стола ТОРЖЕСТВО, Тр5, сосна, без патины","компл.",12342,null,null,{"$f":"IFERROR(INDEX(стлГород,MATCH(ROWS($H$1:$H156),стлИндекс,0)),\"\")","v":"Основание стола ТОРЖЕСТВО, Тр5, сосна, без патины"},{"$f":"IF($I156,COUNTIF($I$1:$I156,TRUE),\"\")","v":156},{"$f":"NOT(ISERROR(SEARCH(Калькулятор!$C$11,$B156)))","v":true}]
["024-520п","Основание стола ТОРЖЕСТВО, Тр5, сосна, патина","компл.",13329,null,null,{"$f":"IFERROR(INDEX(стлГород,MATCH(ROWS($H$1:$H157),стлИндекс,0)),\"\")","v":"Основание стола ТОРЖЕСТВО, Тр5, сосна, патина"},{"$f":"IF($I157,COUNTIF($I$1:$I157,TRUE),\"\")","v":157},{"$f":"NOT(ISERROR(SEARCH(Калькулятор!$C$11,$B157)))","v":true}]
["024-521","Основание стола ТОРЖЕСТВО, Тр5, сосна, более 150х80см, без патины","компл.",16044,null,null,{"$f":"IFERROR(INDEX(стлГород,MATCH(ROWS($H$1:$H158),стлИндекс,0)),\"\")","v":"Основание стола ТОРЖЕСТВО, Тр5, сосна, более 150х80см, без патины"},{"$f":"IF($I158,COUNTIF($I$1:$I158,TRUE),\"\")","v":158},{"$f":"NOT(ISERROR(SEARCH(Калькулятор!$C$11,$B158)))","v":true}]
["024-521п","Основание стола ТОРЖЕСТВО, Тр5, сосна, более 150х80см, патина","компл.",17328,null,null,{"$f":"IFERROR(INDEX(стлГород,MATCH(ROWS($H$1:$H159),стлИндекс,0)),\"\")","v":"Основание стола ТОРЖЕСТВО, Тр5, сосна, более 150х80см, патина"},{"$f":"IF($I159,COUNTIF($I$1:$I159,TRUE),\"\")","v":159},{"$f":"NOT(ISERROR(SEARCH(Калькулятор!$C$11,$B159)))","v":true}]
["024-610","Основание стола ТОРЖЕСТВО, Тр6, бук, без патины","компл.",15960,null,null,{"$f":"IFERROR(INDEX(стлГород,MATCH(ROWS($H$1:$H160),стлИндекс,0)),\"\")","v":"Основание стола ТОРЖЕСТВО, Тр6, бук, без патины"},{"$f":"IF($I160,COUNTIF($I$1:$I160,TRUE),\"\")","v":160},{"$f":"NOT(ISERROR(SEARCH(Калькулятор!$C$11,$B160)))","v":true}]
["024-610п","Основание стола ТОРЖЕСТВО, Тр6, бук, патина","компл.",17237,null,null,{"$f":"IFERROR(INDEX(стлГород,MATCH(ROWS($H$1:$H161),стлИндекс,0)),\"\")","v":"Основание стола ТОРЖЕСТВО, Тр6, бук, патина"},{"$f":"IF($I161,COUNTIF($I$1:$I161,TRUE),\"\")","v":161},{"$f":"NOT(ISERROR(SEARCH(Калькулятор!$C$11,$B161)))","v":true}]
["024-611","Основание стола ТОРЖЕСТВО, Тр6, бук, более 150х80см, без патины","компл.",20748,null,null,{"$f":"IFERROR(INDEX(стлГород,MATCH(ROWS($H$1:$H162),стлИндекс,0)),\"\")","v":"Основание стола ТОРЖЕСТВО, Тр6, бук, более 150х80см, без патины"},{"$f":"IF($I162,COUNTIF($I$1:$I162,TRUE),\"\")","v":162},{"$f":"NOT(ISERROR(SEARCH(Калькулятор!$C$11,$B162)))","v":true}]
["024-611п","Основание стола ТОРЖЕСТВО, Тр6, бук, более 150х80см, патина","компл.",22408,null,null,{"$f":"IFERROR(INDEX(стлГород,MATCH(ROWS($H$1:$H163),стлИндекс,0)),\"\")","v":"Основание стола ТОРЖЕСТВО, Тр6, бук, более 150х80см, патина"},{"$f":"IF($I163,COUNTIF($I$1:$I163,TRUE),\"\")","v":163},{"$f":"NOT(ISERROR(SEARCH(Калькулятор!$C$11,$B163)))","v":true}]
["024-710","Основание стола ТОРЖЕСТВО, Тр7, бук, без патины","компл.",15960,null,null,{"$f":"IFERROR(INDEX(стлГород,MATCH(ROWS($H$1:$H164),стлИндекс,0)),\"\")","v":"Основание стола ТОРЖЕСТВО, Тр7, бук, без патины"},{"$f":"IF($I164,COUNTIF($I$1:$I164,TRUE),\"\")","v":164},{"$f":"NOT(ISERROR(SEARCH(Калькулятор!$C$11,$B164)))","v":true}]
["024-710п","Основание стола ТОРЖЕСТВО, Тр7, бук, патина","компл.",17237,null,null,{"$f":"IFERROR(INDEX(стлГород,MATCH(ROWS($H$1:$H165),стлИндекс,0)),\"\")","v":"Основание стола ТОРЖЕСТВО, Тр7, бук, патина"},{"$f":"IF($I165,COUNTIF($I$1:$I165,TRUE),\"\")","v":165},{"$f":"NOT(ISERROR(SEARCH(Калькулятор!$C$11,$B165)))","v":true}]
["024-711","Основание стола ТОРЖЕСТВО, Тр7, бук, более 150х80см, без патины","компл.",20748,null,null,{"$f":"IFERROR(INDEX(стлГород,MATCH(ROWS($H$1:$H166),стлИндекс,0)),\"\")","v":"Основание стола ТОРЖЕСТВО, Тр7, бук, более 150х80см, без патины"},{"$f":"IF($I166,COUNTIF($I$1:$I166,TRUE),\"\")","v":166},{"$f":"NOT(ISERROR(SEARCH(Калькулятор!$C$11,$B166)))","v":true}]
["024-711п","Основание стола ТОРЖЕСТВО, Тр7, бук, более 150х80см, патина","компл.",22408,null,null,{"$f":"IFERROR(INDEX(стлГород,MATCH(ROWS($H$1:$H167),стлИндекс,0)),\"\")","v":"Основание стола ТОРЖЕСТВО, Тр7, бук, более 150х80см, патина"},{"$f":"IF($I167,COUNTIF($I$1:$I167,TRUE),\"\")","v":167},{"$f":"NOT(ISERROR(SEARCH(Калькулятор!$C$11,$B167)))","v":true}]
["024-810","Основание стола ТОРЖЕСТВО, Тр8, бук, без патины","компл.",15960,null,null,{"$f":"IFERROR(INDEX(стлГород,MATCH(ROWS($H$1:$H168),стлИндекс,0)),\"\")","v":"Основание стола ТОРЖЕСТВО, Тр8, бук, без патины"},{"$f":"IF($I168,COUNTIF($I$1:$I168,TRUE),\"\")","v":168},{"$f":"NOT(ISERROR(SEARCH(Калькулятор!$C$11,$B168)))","v":true}]
["024-810п","Основание стола ТОРЖЕСТВО, Тр8, бук, патина","компл.",17237,null,null,{"$f":"IFERROR(INDEX(стлГород,MATCH(ROWS($H$1:$H169),стлИндекс,0)),\"\")","v":"Основание стола ТОРЖЕСТВО, Тр8, бук, патина"},{"$f":"IF($I169,COUNTIF($I$1:$I169,TRUE),\"\")","v":169},{"$f":"NOT(ISERROR(SEARCH(Калькулятор!$C$11,$B169)))","v":true}]
["024-811","Основание стола ТОРЖЕСТВО, Тр8, бук, более 150х80см, без патины","компл.",20748,null,null,{"$f":"IFERROR(INDEX(стлГород,MATCH(ROWS($H$1:$H170),стлИндекс,0)),\"\")","v":"Основание стола ТОРЖЕСТВО, Тр8, бук, более 150х80см, без патины"},{"$f":"IF($I170,COUNTIF($I$1:$I170,TRUE),\"\")","v":170},{"$f":"NOT(ISERROR(SEARCH(Калькулятор!$C$11,$B170)))","v":true}]
["024-811п","Основание стола ТОРЖЕСТВО, Тр8, бук, более 150х80см, патина","компл.",22408,null,null,{"$f":"IFERROR(INDEX(стлГород,MATCH(ROWS($H$1:$H171),стлИндекс,0)),\"\")","v":"Основание стола ТОРЖЕСТВО, Тр8, бук, более 150х80см, патина"},{"$f":"IF($I171,COUNTIF($I$1:$I171,TRUE),\"\")","v":171},{"$f":"NOT(ISERROR(SEARCH(Калькулятор!$C$11,$B171)))","v":true}]
["024-910","Основание стола ТОРЖЕСТВО, Тр9, бук, без патины","компл.",15960,null,null,{"$f":"IFERROR(INDEX(стлГород,MATCH(ROWS($H$1:$H172),стлИндекс,0)),\"\")","v":"Основание стола ТОРЖЕСТВО, Тр9, бук, без патины"},{"$f":"IF($I172,COUNTIF($I$1:$I172,TRUE),\"\")","v":172},{"$f":"NOT(ISERROR(SEARCH(Калькулятор!$C$11,$B172)))","v":true}]
["024-910п","Основание стола ТОРЖЕСТВО, Тр9, бук, патина","компл.",17237,null,null,{"$f":"IFERROR(INDEX(стлГород,MATCH(ROWS($H$1:$H173),стлИндекс,0)),\"\")","v":"Основание стола ТОРЖЕСТВО, Тр9, бук, патина"},{"$f":"IF($I173,COUNTIF($I$1:$I173,TRUE),\"\")","v":173},{"$f":"NOT(ISERROR(SEARCH(Калькулятор!$C$11,$B173)))","v":true}]
["024-911","Основание стола ТОРЖЕСТВО, Тр9, бук, более 150х80см, без патины","компл.",20748,null,null,{"$f":"IFERROR(INDEX(стлГород,MATCH(ROWS($H$1:$H174),стлИндекс,0)),\"\")","v":"Основание стола ТОРЖЕСТВО, Тр9, бук, более 150х80см, без патины"},{"$f":"IF($I174,COUNTIF($I$1:$I174,TRUE),\"\")","v":174},{"$f":"NOT(ISERROR(SEARCH(Калькулятор!$C$11,$B174)))","v":true}]
["024-911п","Основание стола ТОРЖЕСТВО, Тр9, бук, более 150х80см, патина","компл.",22408,null,null,{"$f":"IFERROR(INDEX(стлГород,MATCH(ROWS($H$1:$H175),стлИндекс,0)),\"\")","v":"Основание стола ТОРЖЕСТВО, Тр9, бук, более 150х80см, патина"},{"$f":"IF($I175,COUNTIF($I$1:$I175,TRUE),\"\")","v":175},{"$f":"NOT(ISERROR(SEARCH(Калькулятор!$C$11,$B175)))","v":true}]
["020-110","Основание стола ХЛЕБСОЛЬ, Хс1, бук, без патины","компл.",16715,null,null,{"$f":"IFERROR(INDEX(стлГород,MATCH(ROWS($H$1:$H176),стлИндекс,0)),\"\")","v":"Основание стола ХЛЕБСОЛЬ, Хс1, бук, без патины"},{"$f":"IF($I176,COUNTIF($I$1:$I176,TRUE),\"\")","v":176},{"$f":"NOT(ISERROR(SEARCH(Калькулятор!$C$11,$B176)))","v":true}]
["020-110п","Основание стола ХЛЕБСОЛЬ, Хс1, бук, патина","компл.",18052,null,null,{"$f":"IFERROR(INDEX(стлГород,MATCH(ROWS($H$1:$H177),стлИндекс,0)),\"\")","v":"Основание стола ХЛЕБСОЛЬ, Хс1, бук, патина"},{"$f":"IF($I177,COUNTIF($I$1:$I177,TRUE),\"\")","v":177},{"$f":"NOT(ISERROR(SEARCH(Калькулятор!$C$11,$B177)))","v":true}]
["021-110","Основание стола ШАРМ, Шр1, бук, без патины","компл.",12593,null,null,{"$f":"IFERROR(INDEX(стлГород,MATCH(ROWS($H$1:$H178),стлИндекс,0)),\"\")","v":"Основание стола ШАРМ, Шр1, бук, без патины"},{"$f":"IF($I178,COUNTIF($I$1:$I178,TRUE),\"\")","v":178},{"$f":"NOT(ISERROR(SEARCH(Калькулятор!$C$11,$B178)))","v":true}]
["021-110п","Основание стола ШАРМ, Шр1, бук, патина","компл.",13600,null,null,{"$f":"IFERROR(INDEX(стлГород,MATCH(ROWS($H$1:$H179),стлИндекс,0)),\"\")","v":"Основание стола ШАРМ, Шр1, бук, патина"},{"$f":"IF($I179,COUNTIF($I$1:$I179,TRUE),\"\")","v":179},{"$f":"NOT(ISERROR(SEARCH(Калькулятор!$C$11,$B179)))","v":true}]
["021-120","Основание стола ШАРМ, Шр1, сосна, без патины","компл.",10494,null,null,{"$f":"IFERROR(INDEX(стлГород,MATCH(ROWS($H$1:$H180),стлИндекс,0)),\"\")","v":"Основание стола ШАРМ, Шр1, сосна, без патины"},{"$f":"IF($I180,COUNTIF($I$1:$I180,TRUE),\"\")","v":180},{"$f":"NOT(ISERROR(SEARCH(Калькулятор!$C$11,$B180)))","v":true}]
["021-120п","Основание стола ШАРМ, Шр1, сосна, патина","компл.",11334,null,null,{"$f":"IFERROR(INDEX(стлГород,MATCH(ROWS($H$1:$H181),стлИндекс,0)),\"\")","v":"Основание стола ШАРМ, Шр1, сосна, патина"},{"$f":"IF($I181,COUNTIF($I$1:$I181,TRUE),\"\")","v":181},{"$f":"NOT(ISERROR(SEARCH(Калькулятор!$C$11,$B181)))","v":true}]
["022-110","Основание стола ЭСКОРТ, Эс1, бук, без патины","компл.",22862,null,null,{"$f":"IFERROR(INDEX(стлГород,MATCH(ROWS($H$1:$H182),стлИндекс,0)),\"\")","v":"Основание стола ЭСКОРТ, Эс1, бук, без патины"},{"$f":"IF($I182,COUNTIF($I$1:$I182,TRUE),\"\")","v":182},{"$f":"NOT(ISERROR(SEARCH(Калькулятор!$C$11,$B182)))","v":true}]
["022-110п","Основание стола ЭСКОРТ, Эс1, бук, патина","компл.",24691,null,null,{"$f":"IFERROR(INDEX(стлГород,MATCH(ROWS($H$1:$H183),стлИндекс,0)),\"\")","v":"Основание стола ЭСКОРТ, Эс1, бук, патина"},{"$f":"IF($I183,COUNTIF($I$1:$I183,TRUE),\"\")","v":183},{"$f":"NOT(ISERROR(SEARCH(Калькулятор!$C$11,$B183)))","v":true}]
["023-110","Письменный стол ЗОЛОТОЕ ПЕРО, бук, без патины","шт",66750,null,null,{"$f":"IFERROR(INDEX(стлГород,MATCH(ROWS($H$1:$H184),стлИндекс,0)),\"\")","v":"Письменный стол ЗОЛОТОЕ ПЕРО, бук, без патины"},{"$f":"IF($I184,COUNTIF($I$1:$I184,TRUE),\"\")","v":184},{"$f":"NOT(ISERROR(SEARCH(Калькулятор!$C$11,$B184)))","v":true}]
["023-110п","Письменный стол ЗОЛОТОЕ ПЕРО, бук, патина","шт",72090,null,null,{"$f":"IFERROR(INDEX(стлГород,MATCH(ROWS($H$1:$H185),стлИндекс,0)),\"\")","v":"Письменный стол ЗОЛОТОЕ ПЕРО, бук, патина"},{"$f":"IF($I185,COUNTIF($I$1:$I185,TRUE),\"\")","v":185},{"$f":"NOT(ISERROR(SEARCH(Калькулятор!$C$11,$B185)))","v":true}]

{"sheet":"Стулья","index":3,"n_rows":100,"n_cols":9,"rows_kept":100,"cut":false,"hidden":false,"merged":[]}
["101-011","Стул АРТИСТ, бук, ткань, без патины","шт",12018,null,null,{"$f":"IFERROR(INDEX(стлСтуг,MATCH(ROWS($H$1:$H1),стлСтуи,0)),\"\")","v":"Стул АРТИСТ, бук, ткань, без патины"},{"$f":"IF($I1,COUNTIF($I$1:$I1,TRUE),\"\")","v":1},{"$f":"NOT(ISERROR(SEARCH(Калькулятор!$C$15,$B1)))","v":true}]
["101-011п","Стул АРТИСТ, бук, ткань, патина","шт",12979,null,null,{"$f":"IFERROR(INDEX(стлСтуг,MATCH(ROWS($H$1:$H2),стлСтуи,0)),\"\")","v":"Стул АРТИСТ, бук, ткань, патина"},{"$f":"IF($I2,COUNTIF($I$1:$I2,TRUE),\"\")","v":2},{"$f":"NOT(ISERROR(SEARCH(Калькулятор!$C$15,$B2)))","v":true}]
["102-011","Стул АСТОРИЯ, бук, ткань, без патины","шт",16394,null,null,{"$f":"IFERROR(INDEX(стлСтуг,MATCH(ROWS($H$1:$H3),стлСтуи,0)),\"\")","v":"Стул АСТОРИЯ, бук, ткань, без патины"},{"$f":"IF($I3,COUNTIF($I$1:$I3,TRUE),\"\")","v":3},{"$f":"NOT(ISERROR(SEARCH(Калькулятор!$C$15,$B3)))","v":true}]
["102-011п","Стул АСТОРИЯ, бук, ткань, патина","шт",17706,null,null,{"$f":"IFERROR(INDEX(стлСтуг,MATCH(ROWS($H$1:$H4),стлСтуи,0)),\"\")","v":"Стул АСТОРИЯ, бук, ткань, патина"},{"$f":"IF($I4,COUNTIF($I$1:$I4,TRUE),\"\")","v":4},{"$f":"NOT(ISERROR(SEARCH(Калькулятор!$C$15,$B4)))","v":true}]
["103-011","Стул БОГЕМА, бук, ткань, без патины","шт",14097,null,null,{"$f":"IFERROR(INDEX(стлСтуг,MATCH(ROWS($H$1:$H5),стлСтуи,0)),\"\")","v":"Стул БОГЕМА, бук, ткань, без патины"},{"$f":"IF($I5,COUNTIF($I$1:$I5,TRUE),\"\")","v":5},{"$f":"NOT(ISERROR(SEARCH(Калькулятор!$C$15,$B5)))","v":true}]
["103-011п","Стул БОГЕМА, бук, ткань, патина","шт",15225,null,null,{"$f":"IFERROR(INDEX(стлСтуг,MATCH(ROWS($H$1:$H6),стлСтуи,0)),\"\")","v":"Стул БОГЕМА, бук, ткань, патина"},{"$f":"IF($I6,COUNTIF($I$1:$I6,TRUE),\"\")","v":6},{"$f":"NOT(ISERROR(SEARCH(Калькулятор!$C$15,$B6)))","v":true}]
["135-011","Стул БРИТНИ, бук, ткань, без патины","шт",11330,null,null,{"$f":"IFERROR(INDEX(стлСтуг,MATCH(ROWS($H$1:$H7),стлСтуи,0)),\"\")","v":"Стул БРИТНИ, бук, ткань, без патины"},{"$f":"IF($I7,COUNTIF($I$1:$I7,TRUE),\"\")","v":7},{"$f":"NOT(ISERROR(SEARCH(Калькулятор!$C$15,$B7)))","v":true}]
["135-011п","Стул БРИТНИ, бук, ткань, патина","шт",12236,null,null,{"$f":"IFERROR(INDEX(стлСтуг,MATCH(ROWS($H$1:$H8),стлСтуи,0)),\"\")","v":"Стул БРИТНИ, бук, ткань, патина"},{"$f":"IF($I8,COUNTIF($I$1:$I8,TRUE),\"\")","v":8},{"$f":"NOT(ISERROR(SEARCH(Калькулятор!$C$15,$B8)))","v":true}]
["104-011","Стул ВЕНЕЦИЯ, бук, ткань, без патины","шт",5082,null,null,{"$f":"IFERROR(INDEX(стлСтуг,MATCH(ROWS($H$1:$H9),стлСтуи,0)),\"\")","v":"Стул ВЕНЕЦИЯ, бук, ткань, без патины"},{"$f":"IF($I9,COUNTIF($I$1:$I9,TRUE),\"\")","v":9},{"$f":"NOT(ISERROR(SEARCH(Калькулятор!$C$15,$B9)))","v":true}]
["104-011п","Стул ВЕНЕЦИЯ, бук, ткань, патина","шт",5489,null,null,{"$f":"IFERROR(INDEX(стлСтуг,MATCH(ROWS($H$1:$H10),стлСтуи,0)),\"\")","v":"Стул ВЕНЕЦИЯ, бук, ткань, патина"},{"$f":"IF($I10,COUNTIF($I$1:$I10,TRUE),\"\")","v":10},{"$f":"NOT(ISERROR(SEARCH(Калькулятор!$C$15,$B10)))","v":true}]
["104-012","Стул ВЕНЕЦИЯ, бук, сиденье массив, без патины","шт",5590,null,null,{"$f":"IFERROR(INDEX(стлСтуг,MATCH(ROWS($H$1:$H11),стлСтуи,0)),\"\")","v":"Стул ВЕНЕЦИЯ, бук, сиденье массив, без патины"},{"$f":"IF($I11,COUNTIF($I$1:$I11,TRUE),\"\")","v":11},{"$f":"NOT(ISERROR(SEARCH(Калькулятор!$C$15,$B11)))","v":true}]
["104-012п","Стул ВЕНЕЦИЯ, бук, сиденье массив, патина","шт",6037,null,null,{"$f":"IFERROR(INDEX(стлСтуг,MATCH(ROWS($H$1:$H12),стлСтуи,0)),\"\")","v":"Стул ВЕНЕЦИЯ, бук, сиденье массив, патина"},{"$f":"IF($I12,COUNTIF($I$1:$I12,TRUE),\"\")","v":12},{"$f":"NOT(ISERROR(SEARCH(Калькулятор!$C$15,$B12)))","v":true}]
["104-013","Стул ВЕНЕЦИЯ, бук, плетение, без патины","шт",5082,null,null,{"$f":"IFERROR(INDEX(стлСтуг,MATCH(ROWS($H$1:$H13),стлСтуи,0)),\"\")","v":"Стул ВЕНЕЦИЯ, бук, плетение, без патины"},{"$f":"IF($I13,COUNTIF($I$1:$I13,TRUE),\"\")","v":13},{"$f":"NOT(ISERROR(SEARCH(Калькулятор!$C$15,$B13)))","v":true}]
["104-013п","Стул ВЕНЕЦИЯ, бук, плетение, патина","шт",5489,null,null,{"$f":"IFERROR(INDEX(стлСтуг,MATCH(ROWS($H$1:$H14),стлСтуи,0)),\"\")","v":"Стул ВЕНЕЦИЯ, бук, плетение, патина"},{"$f":"IF($I14,COUNTIF($I$1:$I14,TRUE),\"\")","v":14},{"$f":"NOT(ISERROR(SEARCH(Калькулятор!$C$15,$B14)))","v":true}]
["100-012","Стул ВЕНСКИЙ, бук, сиденье массив, без патины","шт",8220,null,null,{"$f":"IFERROR(INDEX(стлСтуг,MATCH(ROWS($H$1:$H15),стлСтуи,0)),\"\")","v":"Стул ВЕНСКИЙ, бук, сиденье массив, без патины"},{"$f":"IF($I15,COUNTIF($I$1:$I15,TRUE),\"\")","v":15},{"$f":"NOT(ISERROR(SEARCH(Калькулятор!$C$15,$B15)))","v":true}]
["100-012п","Стул ВЕНСКИЙ, бук, сиденье массив, патина","шт",8878,null,null,{"$f":"IFERROR(INDEX(стлСтуг,MATCH(ROWS($H$1:$H16),стлСтуи,0)),\"\")","v":"Стул ВЕНСКИЙ, бук, сиденье массив, патина"},{"$f":"IF($I16,COUNTIF($I$1:$I16,TRUE),\"\")","v":16},{"$f":"NOT(ISERROR(SEARCH(Калькулятор!$C$15,$B16)))","v":true}]
["105-011","Стул ГОСТЬ, бук, ткань, без патины","шт",11148,null,null,{"$f":"IFERROR(INDEX(стлСтуг,MATCH(ROWS($H$1:$H17),стлСтуи,0)),\"\")","v":"Стул ГОСТЬ, бук, ткань, без патины"},{"$f":"IF($I17,COUNTIF($I$1:$I17,TRUE),\"\")","v":17},{"$f":"NOT(ISERROR(SEARCH(Калькулятор!$C$15,$B17)))","v":true}]
["105-011п","Стул ГОСТЬ, бук, ткань, патина","шт",12040,null,null,{"$f":"IFERROR(INDEX(стлСтуг,MATCH(ROWS($H$1:$H18),стлСтуи,0)),\"\")","v":"Стул ГОСТЬ, бук, ткань, патина"},{"$f":"IF($I18,COUNTIF($I$1:$I18,TRUE),\"\")","v":18},{"$f":"NOT(ISERROR(SEARCH(Калькулятор!$C$15,$B18)))","v":true}]
["105-021","Стул ГОСТЬ, сосна, ткань, без патины","шт",9290,null,null,{"$f":"IFERROR(INDEX(стлСтуг,MATCH(ROWS($H$1:$H19),стлСтуи,0)),\"\")","v":"Стул ГОСТЬ, сосна, ткань, без патины"},{"$f":"IF($I19,COUNTIF($I$1:$I19,TRUE),\"\")","v":19},{"$f":"NOT(ISERROR(SEARCH(Калькулятор!$C$15,$B19)))","v":true}]
["105-021п","Стул ГОСТЬ, сосна, ткань, патина","шт",10033,null,null,{"$f":"IFERROR(INDEX(стлСтуг,MATCH(ROWS($H$1:$H20),стлСтуи,0)),\"\")","v":"Стул ГОСТЬ, сосна, ткань, патина"},{"$f":"IF($I20,COUNTIF($I$1:$I20,TRUE),\"\")","v":20},{"$f":"NOT(ISERROR(SEARCH(Калькулятор!$C$15,$B20)))","v":true}]
["106-011","Стул ГОСТЬЯ, бук, ткань, без патины","шт",12863,null,null,{"$f":"IFERROR(INDEX(стлСтуг,MATCH(ROWS($H$1:$H21),стлСтуи,0)),\"\")","v":"Стул ГОСТЬЯ, бук, ткань, без патины"},{"$f":"IF($I21,COUNTIF($I$1:$I21,TRUE),\"\")","v":21},{"$f":"NOT(ISERROR(SEARCH(Калькулятор!$C$15,$B21)))","v":true}]
["106-011п","Стул ГОСТЬЯ, бук, ткань, патина","шт",13892,null,null,{"$f":"IFERROR(INDEX(стлСтуг,MATCH(ROWS($H$1:$H22),стлСтуи,0)),\"\")","v":"Стул ГОСТЬЯ, бук, ткань, патина"},{"$f":"IF($I22,COUNTIF($I$1:$I22,TRUE),\"\")","v":22},{"$f":"NOT(ISERROR(SEARCH(Калькулятор!$C$15,$B22)))","v":true}]
["106-021","Стул ГОСТЬЯ, сосна, ткань, без патины","шт",10719,null,null,{"$f":"IFERROR(INDEX(стлСтуг,MATCH(ROWS($H$1:$H23),стлСтуи,0)),\"\")","v":"Стул ГОСТЬЯ, сосна, ткань, без патины"},{"$f":"IF($I23,COUNTIF($I$1:$I23,TRUE),\"\")","v":23},{"$f":"NOT(ISERROR(SEARCH(Калькулятор!$C$15,$B23)))","v":true}]
["106-021п","Стул ГОСТЬЯ, сосна, ткань, патина","шт",11577,null,null,{"$f":"IFERROR(INDEX(стлСтуг,MATCH(ROWS($H$1:$H24),стлСтуи,0)),\"\")","v":"Стул ГОСТЬЯ, сосна, ткань, патина"},{"$f":"IF($I24,COUNTIF($I$1:$I24,TRUE),\"\")","v":24},{"$f":"NOT(ISERROR(SEARCH(Калькулятор!$C$15,$B24)))","v":true}]
["107-011","Стул ДЕЗИРЕ, бук, ткань, без патины","шт",15104,null,null,{"$f":"IFERROR(INDEX(стлСтуг,MATCH(ROWS($H$1:$H25),стлСтуи,0)),\"\")","v":"Стул ДЕЗИРЕ, бук, ткань, без патины"},{"$f":"IF($I25,COUNTIF($I$1:$I25,TRUE),\"\")","v":25},{"$f":"NOT(ISERROR(SEARCH(Калькулятор!$C$15,$B25)))","v":true}]
["107-011п","Стул ДЕЗИРЕ, бук, ткань, патина","шт",16312,null,null,{"$f":"IFERROR(INDEX(стлСтуг,MATCH(ROWS($H$1:$H26),стлСтуи,0)),\"\")","v":"Стул ДЕЗИРЕ, бук, ткань, патина"},{"$f":"IF($I26,COUNTIF($I$1:$I26,TRUE),\"\")","v":26},{"$f":"NOT(ISERROR(SEARCH(Калькулятор!$C$15,$B26)))","v":true}]
["108-011","Стул ДЕНДИ, бук, ткань, без патины","шт",7623,null,null,{"$f":"IFERROR(INDEX(стлСтуг,MATCH(ROWS($H$1:$H27),стлСтуи,0)),\"\")","v":"Стул ДЕНДИ, бук, ткань, без патины"},{"$f":"IF($I27,COUNTIF($I$1:$I27,TRUE),\"\")","v":27},{"$f":"NOT(ISERROR(SEARCH(Калькулятор!$C$15,$B27)))","v":true}]
["108-011п","Стул ДЕНДИ, бук, ткань, патина","шт",8233,null,null,{"$f":"IFERROR(INDEX(стлСтуг,MATCH(ROWS($H$1:$H28),стлСтуи,0)),\"\")","v":"Стул ДЕНДИ, бук, ткань, патина"},{"$f":"IF($I28,COUNTIF($I$1:$I28,TRUE),\"\")","v":28},{"$f":"NOT(ISERROR(SEARCH(Калькулятор!$C$15,$B28)))","v":true}]
["108-012","Стул ДЕНДИ, бук, сиденье массив, без патины","шт",8385,null,null,{"$f":"IFERROR(INDEX(стлСтуг,MATCH(ROWS($H$1:$H29),стлСтуи,0)),\"\")","v":"Стул ДЕНДИ, бук, сиденье массив, без патины"},{"$f":"IF($I29,COUNTIF($I$1:$I29,TRUE),\"\")","v":29},{"$f":"NOT(ISERROR(SEARCH(Калькулятор!$C$15,$B29)))","v":true}]
["108-012п","Стул ДЕНДИ, бук, сиденье массив, патина","шт",9056,null,null,{"$f":"IFERROR(INDEX(стлСтуг,MATCH(ROWS($H$1:$H30),стлСтуи,0)),\"\")","v":"Стул ДЕНДИ, бук, сиденье массив, патина"},{"$f":"IF($I30,COUNTIF($I$1:$I30,TRUE),\"\")","v":30},{"$f":"NOT(ISERROR(SEARCH(Калькулятор!$C$15,$B30)))","v":true}]
["109-011","Стул ДЖУЛЬЕТТА, бук, ткань, без патины","шт",8350,null,null,{"$f":"IFERROR(INDEX(стлСтуг,MATCH(ROWS($H$1:$H31),стлСтуи,0)),\"\")","v":"Стул ДЖУЛЬЕТТА, бук, ткань, без патины"},{"$f":"IF($I31,COUNTIF($I$1:$I31,TRUE),\"\")","v":31},{"$f":"NOT(ISERROR(SEARCH(Калькулятор!$C$15,$B31)))","v":true}]
["109-011п","Стул ДЖУЛЬЕТТА, бук, ткань, патина","шт",9018,null,null,{"$f":"IFERROR(INDEX(стлСтуг,MATCH(ROWS($H$1:$H32),стлСтуи,0)),\"\")","v":"Стул ДЖУЛЬЕТТА, бук, ткань, патина"},{"$f":"IF($I32,COUNTIF($I$1:$I32,TRUE),\"\")","v":32},{"$f":"NOT(ISERROR(SEARCH(Калькулятор!$C$15,$B32)))","v":true}]
["109-012","Стул ДЖУЛЬЕТТА, бук, сиденье массив, без патины","шт",9185,null,null,{"$f":"IFERROR(INDEX(стлСтуг,MATCH(ROWS($H$1:$H33),стлСтуи,0)),\"\")","v":"Стул ДЖУЛЬЕТТА, бук, сиденье массив, без патины"},{"$f":"IF($I33,COUNTIF($I$1:$I33,TRUE),\"\")","v":33},{"$f":"NOT(ISERROR(SEARCH(Калькулятор!$C$15,$B33)))","v":true}]
["109-012п","Стул ДЖУЛЬЕТТА, бук, сиденье массив, патина","шт",9920,null,null,{"$f":"IFERROR(INDEX(стлСтуг,MATCH(ROWS($H$1:$H34),стлСтуи,0)),\"\")","v":"Стул ДЖУЛЬЕТТА, бук, сиденье массив, патина"},{"$f":"IF($I34,COUNTIF($I$1:$I34,TRUE),\"\")","v":34},{"$f":"NOT(ISERROR(SEARCH(Калькулятор!$C$15,$B34)))","v":true}]
["110-011","Стул КАВАЛЕР, бук, ткань, без патины","шт",10450,null,null,{"$f":"IFERROR(INDEX(стлСтуг,MATCH(ROWS($H$1:$H35),стлСтуи,0)),\"\")","v":"Стул КАВАЛЕР, бук, ткань, без патины"},{"$f":"IF($I35,COUNTIF($I$1:$I35,TRUE),\"\")","v":35},{"$f":"NOT(ISERROR(SEARCH(Калькулятор!$C$15,$B35)))","v":true}]
["110-011п","Стул КАВАЛЕР, бук, ткань, патина","шт",11286,null,null,{"$f":"IFERROR(INDEX(стлСтуг,MATCH(ROWS($H$1:$H36),стлСтуи,0)),\"\")","v":"Стул КАВАЛЕР, бук, ткань, патина"},{"$f":"IF($I36,COUNTIF($I$1:$I36,TRUE),\"\")","v":36},{"$f":"NOT(ISERROR(SEARCH(Калькулятор!$C$15,$B36)))","v":true}]
["111-011","Стул КЛАУДИА, бук, ткань, без патины","шт",5841,null,null,{"$f":"IFERROR(INDEX(стлСтуг,MATCH(ROWS($H$1:$H37),стлСтуи,0)),\"\")","v":"Стул КЛАУДИА, бук, ткань, без патины"},{"$f":"IF($I37,COUNTIF($I$1:$I37,TRUE),\"\")","v":37},{"$f":"NOT(ISERROR(SEARCH(Калькулятор!$C$15,$B37)))","v":true}]
["111-011п","Стул КЛАУДИА, бук, ткань, патина","шт",6308,null,null,{"$f":"IFERROR(INDEX(стлСтуг,MATCH(ROWS($H$1:$H38),стлСтуи,0)),\"\")","v":"Стул КЛАУДИА, бук, ткань, патина"},{"$f":"IF($I38,COUNTIF($I$1:$I38,TRUE),\"\")","v":38},{"$f":"NOT(ISERROR(SEARCH(Калькулятор!$C$15,$B38)))","v":true}]
["111-012","Стул КЛАУДИА, бук, сиденье массив, без патины","шт",6425,null,null,{"$f":"IFERROR(INDEX(стлСтуг,MATCH(ROWS($H$1:$H39),стлСтуи,0)),\"\")","v":"Стул КЛАУДИА, бук, сиденье массив, без патины"},{"$f":"IF($I39,COUNTIF($I$1:$I39,TRUE),\"\")","v":39},{"$f":"NOT(ISERROR(SEARCH(Калькулятор!$C$15,$B39)))","v":true}]
["111-012п","Стул КЛАУДИА, бук, сиденье массив, патина","шт",6939,null,null,{"$f":"IFERROR(INDEX(стлСтуг,MATCH(ROWS($H$1:$H40),стлСтуи,0)),\"\")","v":"Стул КЛАУДИА, бук, сиденье массив, патина"},{"$f":"IF($I40,COUNTIF($I$1:$I40,TRUE),\"\")","v":40},{"$f":"NOT(ISERROR(SEARCH(Калькулятор!$C$15,$B40)))","v":true}]
["111-013","Стул КЛАУДИА, бук, плетение, без патины","шт",5841,null,null,{"$f":"IFERROR(INDEX(стлСтуг,MATCH(ROWS($H$1:$H41),стлСтуи,0)),\"\")","v":"Стул КЛАУДИА, бук, плетение, без патины"},{"$f":"IF($I41,COUNTIF($I$1:$I41,TRUE),\"\")","v":41},{"$f":"NOT(ISERROR(SEARCH(Калькулятор!$C$15,$B41)))","v":true}]
["111-013п","Стул КЛАУДИА, бук, плетение, патина","шт",6308,null,null,{"$f":"IFERROR(INDEX(стлСтуг,MATCH(ROWS($H$1:$H42),стлСтуи,0)),\"\")","v":"Стул КЛАУДИА, бук, плетение, патина"},{"$f":"IF($I42,COUNTIF($I$1:$I42,TRUE),\"\")","v":42},{"$f":"NOT(ISERROR(SEARCH(Калькулятор!$C$15,$B42)))","v":true}]
["112-011","Стул КОМПАНЬОН, бук, ткань, без патины","шт",10450,null,null,{"$f":"IFERROR(INDEX(стлСтуг,MATCH(ROWS($H$1:$H43),стлСтуи,0)),\"\")","v":"Стул КОМПАНЬОН, бук, ткань, без патины"},{"$f":"IF($I43,COUNTIF($I$1:$I43,TRUE),\"\")","v":43},{"$f":"NOT(ISERROR(SEARCH(Калькулятор!$C$15,$B43)))","v":true}]
["112-011п","Стул КОМПАНЬОН, бук, ткань, патина","шт",11286,null,null,{"$f":"IFERROR(INDEX(стлСтуг,MATCH(ROWS($H$1:$H44),стлСтуи,0)),\"\")","v":"Стул КОМПАНЬОН, бук, ткань, патина"},{"$f":"IF($I44,COUNTIF($I$1:$I44,TRUE),\"\")","v":44},{"$f":"NOT(ISERROR(SEARCH(Калькулятор!$C$15,$B44)))","v":true}]
["113-011","Стул КУМИР, бук, ткань, без патины","шт",7425,null,null,{"$f":"IFERROR(INDEX(стлСтуг,MATCH(ROWS($H$1:$H45),стлСтуи,0)),\"\")","v":"Стул КУМИР, бук, ткань, без патины"},{"$f":"IF($I45,COUNTIF($I$1:$I45,TRUE),\"\")","v":45},{"$f":"NOT(ISERROR(SEARCH(Калькулятор!$C$15,$B45)))","v":true}]
["113-011п","Стул КУМИР, бук, ткань, патина","шт",8019,null,null,{"$f":"IFERROR(INDEX(стлСтуг,MATCH(ROWS($H$1:$H46),стлСтуи,0)),\"\")","v":"Стул КУМИР, бук, ткань, патина"},{"$f":"IF($I46,COUNTIF($I$1:$I46,TRUE),\"\")","v":46},{"$f":"NOT(ISERROR(SEARCH(Калькулятор!$C$15,$B46)))","v":true}]
["113-012","Стул КУМИР, бук, сиденье массив, без патины","шт",8168,null,null,{"$f":"IFERROR(INDEX(стлСтуг,MATCH(ROWS($H$1:$H47),стлСтуи,0)),\"\")","v":"Стул КУМИР, бук, сиденье массив, без патины"},{"$f":"IF($I47,COUNTIF($I$1:$I47,TRUE),\"\")","v":47},{"$f":"NOT(ISERROR(SEARCH(Калькулятор!$C$15,$B47)))","v":true}]
["113-012п","Стул КУМИР, бук, сиденье массив, патина","шт",8821,null,null,{"$f":"IFERROR(INDEX(стлСтуг,MATCH(ROWS($H$1:$H48),стлСтуи,0)),\"\")","v":"Стул КУМИР, бук, сиденье массив, патина"},{"$f":"IF($I48,COUNTIF($I$1:$I48,TRUE),\"\")","v":48},{"$f":"NOT(ISERROR(SEARCH(Калькулятор!$C$15,$B48)))","v":true}]
["136-011","Стул МАТИЛЬДА, бук, ткань, без патины","шт",13540,null,null,{"$f":"IFERROR(INDEX(стлСтуг,MATCH(ROWS($H$1:$H49),стлСтуи,0)),\"\")","v":"Стул МАТИЛЬДА, бук, ткань, без патины"},{"$f":"IF($I49,COUNTIF($I$1:$I49,TRUE),\"\")","v":49},{"$f":"NOT(ISERROR(SEARCH(Калькулятор!$C$15,$B49)))","v":true}]
["136-011п","Стул МАТИЛЬДА, бук, ткань, патина","шт",14623,null,null,{"$f":"IFERROR(INDEX(стлСтуг,MATCH(ROWS($H$1:$H50),стлСтуи,0)),\"\")","v":"Стул МАТИЛЬДА, бук, ткань, патина"},{"$f":"IF($I50,COUNTIF($I$1:$I50,TRUE),\"\")","v":50},{"$f":"NOT(ISERROR(SEARCH(Калькулятор!$C$15,$B50)))","v":true}]
["114-011","Стул НЕЗНАЙКА, бук, ткань, без патины","шт",3300,null,null,{"$f":"IFERROR(INDEX(стлСтуг,MATCH(ROWS($H$1:$H51),стлСтуи,0)),\"\")","v":"Стул НЕЗНАЙКА, бук, ткань, без патины"},{"$f":"IF($I51,COUNTIF($I$1:$I51,TRUE),\"\")","v":51},{"$f":"NOT(ISERROR(SEARCH(Калькулятор!$C$15,$B51)))","v":true}]
["114-011п","Стул НЕЗНАЙКА, бук, ткань, патина","шт",3564,null,null,{"$f":"IFERROR(INDEX(стлСтуг,MATCH(ROWS($H$1:$H52),стлСтуи,0)),\"\")","v":"Стул НЕЗНАЙКА, бук, ткань, патина"},{"$f":"IF($I52,COUNTIF($I$1:$I52,TRUE),\"\")","v":52},{"$f":"NOT(ISERROR(SEARCH(Калькулятор!$C$15,$B52)))","v":true}]
["114-012","Стул НЕЗНАЙКА, бук, сиденье массив, без патины","шт",3630,null,null,{"$f":"IFERROR(INDEX(стлСтуг,MATCH(ROWS($H$1:$H53),стлСтуи,0)),\"\")","v":"Стул НЕЗНАЙКА, бук, сиденье массив, без патины"},{"$f":"IF($I53,COUNTIF($I$1:$I53,TRUE),\"\")","v":53},{"$f":"NOT(ISERROR(SEARCH(Калькулятор!$C$15,$B53)))","v":true}]
["114-012п","Стул НЕЗНАЙКА, бук, сиденье массив, патина","шт",3920,null,null,{"$f":"IFERROR(INDEX(стлСтуг,MATCH(ROWS($H$1:$H54),стлСтуи,0)),\"\")","v":"Стул НЕЗНАЙКА, бук, сиденье массив, патина"},{"$f":"IF($I54,COUNTIF($I$1:$I54,TRUE),\"\")","v":54},{"$f":"NOT(ISERROR(SEARCH(Калькулятор!$C$15,$B54)))","v":true}]
["115-011","Стул ОПЕРА, бук, ткань, без патины","шт",13815,null,null,{"$f":"IFERROR(INDEX(стлСтуг,MATCH(ROWS($H$1:$H55),стлСтуи,0)),\"\")","v":"Стул ОПЕРА, бук, ткань, без патины"},{"$f":"IF($I55,COUNTIF($I$1:$I55,TRUE),\"\")","v":55},{"$f":"NOT(ISERROR(SEARCH(Калькулятор!$C$15,$B55)))","v":true}]
["115-011п","Стул ОПЕРА, бук, ткань, патина","шт",14920,null,null,{"$f":"IFERROR(INDEX(стлСтуг,MATCH(ROWS($H$1:$H56),стлСтуи,0)),\"\")","v":"Стул ОПЕРА, бук, ткань, патина"},{"$f":"IF($I56,COUNTIF($I$1:$I56,TRUE),\"\")","v":56},{"$f":"NOT(ISERROR(SEARCH(Калькулятор!$C$15,$B56)))","v":true}]
["116-011","Стул ОРФЕЙ, бук, ткань, без патины","шт",12815,null,null,{"$f":"IFERROR(INDEX(стлСтуг,MATCH(ROWS($H$1:$H57),стлСтуи,0)),\"\")","v":"Стул ОРФЕЙ, бук, ткань, без патины"},{"$f":"IF($I57,COUNTIF($I$1:$I57,TRUE),\"\")","v":57},{"$f":"NOT(ISERROR(SEARCH(Калькулятор!$C$15,$B57)))","v":true}]
["116-011п","Стул ОРФЕЙ, бук, ткань, патина","шт",13840,null,null,{"$f":"IFERROR(INDEX(стлСтуг,MATCH(ROWS($H$1:$H58),стлСтуи,0)),\"\")","v":"Стул ОРФЕЙ, бук, ткань, патина"},{"$f":"IF($I58,COUNTIF($I$1:$I58,TRUE),\"\")","v":58},{"$f":"NOT(ISERROR(SEARCH(Калькулятор!$C$15,$B58)))","v":true}]
["117-011","Стул ПАРОС, бук, ткань, без патины","шт",9075,null,null,{"$f":"IFERROR(INDEX(стлСтуг,MATCH(ROWS($H$1:$H59),стлСтуи,0)),\"\")","v":"Стул ПАРОС, бук, ткань, без патины"},{"$f":"IF($I59,COUNTIF($I$1:$I59,TRUE),\"\")","v":59},{"$f":"NOT(ISERROR(SEARCH(Калькулятор!$C$15,$B59)))","v":true}]
["117-011п","Стул ПАРОС, бук, ткань, патина","шт",9801,null,null,{"$f":"IFERROR(INDEX(стлСтуг,MATCH(ROWS($H$1:$H60),стлСтуи,0)),\"\")","v":"Стул ПАРОС, бук, ткань, патина"},{"$f":"IF($I60,COUNTIF($I$1:$I60,TRUE),\"\")","v":60},{"$f":"NOT(ISERROR(SEARCH(Калькулятор!$C$15,$B60)))","v":true}]
["118-011","Стул ПРЕСТОЛ, бук, ткань, без патины","шт",8350,null,null,{"$f":"IFERROR(INDEX(стлСтуг,MATCH(ROWS($H$1:$H61),стлСтуи,0)),\"\")","v":"Стул ПРЕСТОЛ, бук, ткань, без патины"},{"$f":"IF($I61,COUNTIF($I$1:$I61,TRUE),\"\")","v":61},{"$f":"NOT(ISERROR(SEARCH(Калькулятор!$C$15,$B61)))","v":true}]
["118-011п","Стул ПРЕСТОЛ, бук, ткань, патина","шт",9018,null,null,{"$f":"IFERROR(INDEX(стлСтуг,MATCH(ROWS($H$1:$H62),стлСтуи,0)),\"\")","v":"Стул ПРЕСТОЛ, бук, ткань, патина"},{"$f":"IF($I62,COUNTIF($I$1:$I62,TRUE),\"\")","v":62},{"$f":"NOT(ISERROR(SEARCH(Калькулятор!$C$15,$B62)))","v":true}]
["118-012","Стул ПРЕСТОЛ, бук, сиденье массив, без патины","шт",9185,null,null,{"$f":"IFERROR(INDEX(стлСтуг,MATCH(ROWS($H$1:$H63),стлСтуи,0)),\"\")","v":"Стул ПРЕСТОЛ, бук, сиденье массив, без патины"},{"$f":"IF($I63,COUNTIF($I$1:$I63,TRUE),\"\")","v":63},{"$f":"NOT(ISERROR(SEARCH(Калькулятор!$C$15,$B63)))","v":true}]
["118-012п","Стул ПРЕСТОЛ, бук, сиденье массив, патина","шт",9920,null,null,{"$f":"IFERROR(INDEX(стлСтуг,MATCH(ROWS($H$1:$H64),стлСтуи,0)),\"\")","v":"Стул ПРЕСТОЛ, бук, сиденье массив, патина"},{"$f":"IF($I64,COUNTIF($I$1:$I64,TRUE),\"\")","v":64},{"$f":"NOT(ISERROR(SEARCH(Калькулятор!$C$15,$B64)))","v":true}]
["119-011","Стул ПРОВАНС, бук, ткань, без патины","шт",7623,null,null,{"$f":"IFERROR(INDEX(стлСтуг,MATCH(ROWS($H$1:$H65),стлСтуи,0)),\"\")","v":"Стул ПРОВАНС, бук, ткань, без патины"},{"$f":"IF($I65,COUNTIF($I$1:$I65,TRUE),\"\")","v":65},{"$f":"NOT(ISERROR(SEARCH(Калькулятор!$C$15,$B65)))","v":true}]
["119-011п","Стул ПРОВАНС, бук, ткань, патина","шт",8233,null,null,{"$f":"IFERROR(INDEX(стлСтуг,MATCH(ROWS($H$1:$H66),стлСтуи,0)),\"\")","v":"Стул ПРОВАНС, бук, ткань, патина"},{"$f":"IF($I66,COUNTIF($I$1:$I66,TRUE),\"\")","v":66},{"$f":"NOT(ISERROR(SEARCH(Калькулятор!$C$15,$B66)))","v":true}]
["119-012","Стул ПРОВАНС, бук, сиденье массив, без патины","шт",8385,null,null,{"$f":"IFERROR(INDEX(стлСтуг,MATCH(ROWS($H$1:$H67),стлСтуи,0)),\"\")","v":"Стул ПРОВАНС, бук, сиденье массив, без патины"},{"$f":"IF($I67,COUNTIF($I$1:$I67,TRUE),\"\")","v":67},{"$f":"NOT(ISERROR(SEARCH(Калькулятор!$C$15,$B67)))","v":true}]
["119-012п","Стул ПРОВАНС, бук, сиденье массив, патина","шт",9056,null,null,{"$f":"IFERROR(INDEX(стлСтуг,MATCH(ROWS($H$1:$H68),стлСтуи,0)),\"\")","v":"Стул ПРОВАНС, бук, сиденье массив, патина"},{"$f":"IF($I68,COUNTIF($I$1:$I68,TRUE),\"\")","v":68},{"$f":"NOT(ISERROR(SEARCH(Калькулятор!$C$15,$B68)))","v":true}]
["120-011","Стул ПРОВИНЦИЯ, бук, ткань, без патины","шт",6644,null,null,{"$f":"IFERROR(INDEX(стлСтуг,MATCH(ROWS($H$1:$H69),стлСтуи,0)),\"\")","v":"Стул ПРОВИНЦИЯ, бук, ткань, без патины"},{"$f":"IF($I69,COUNTIF($I$1:$I69,TRUE),\"\")","v":69},{"$f":"NOT(ISERROR(SEARCH(Калькулятор!$C$15,$B69)))","v":true}]
["120-011п","Стул ПРОВИНЦИЯ, бук, ткань, патина","шт",7176,null,null,{"$f":"IFERROR(INDEX(стлСтуг,MATCH(ROWS($H$1:$H70),стлСтуи,0)),\"\")","v":"Стул ПРОВИНЦИЯ, бук, ткань, патина"},{"$f":"IF($I70,COUNTIF($I$1:$I70,TRUE),\"\")","v":70},{"$f":"NOT(ISERROR(SEARCH(Калькулятор!$C$15,$B70)))","v":true}]
["120-012","Стул ПРОВИНЦИЯ, бук, сиденье массив, без патины","шт",7308,null,null,{"$f":"IFERROR(INDEX(стлСтуг,MATCH(ROWS($H$1:$H71),стлСтуи,0)),\"\")","v":"Стул ПРОВИНЦИЯ, бук, сиденье массив, без патины"},{"$f":"IF($I71,COUNTIF($I$1:$I71,TRUE),\"\")","v":71},{"$f":"NOT(ISERROR(SEARCH(Калькулятор!$C$15,$B71)))","v":true}]
["120-012п","Стул ПРОВИНЦИЯ, бук, сиденье массив, патина","шт",7893,null,null,{"$f":"IFERROR(INDEX(стлСтуг,MATCH(ROWS($H$1:$H72),стлСтуи,0)),\"\")","v":"Стул ПРОВИНЦИЯ, бук, сиденье массив, патина"},{"$f":"IF($I72,COUNTIF($I$1:$I72,TRUE),\"\")","v":72},{"$f":"NOT(ISERROR(SEARCH(Калькулятор!$C$15,$B72)))","v":true}]
["120-013","Стул ПРОВИНЦИЯ, бук, плетение, без патины","шт",6644,null,null,{"$f":"IFERROR(INDEX(стлСтуг,MATCH(ROWS($H$1:$H73),стлСтуи,0)),\"\")","v":"Стул ПРОВИНЦИЯ, бук, плетение, без патины"},{"$f":"IF($I73,COUNTIF($I$1:$I73,TRUE),\"\")","v":73},{"$f":"NOT(ISERROR(SEARCH(Калькулятор!$C$15,$B73)))","v":true}]
["120-013п","Стул ПРОВИНЦИЯ, бук, плетение, патина","шт",7176,null,null,{"$f":"IFERROR(INDEX(стлСтуг,MATCH(ROWS($H$1:$H74),стлСтуи,0)),\"\")","v":"Стул ПРОВИНЦИЯ, бук, плетение, патина"},{"$f":"IF($I74,COUNTIF($I$1:$I74,TRUE),\"\")","v":74},{"$f":"NOT(ISERROR(SEARCH(Калькулятор!$C$15,$B74)))","v":true}]
["121-011","Стул РОМЕО, бук, ткань, без патины","шт",6644,null,null,{"$f":"IFERROR(INDEX(стлСтуг,MATCH(ROWS($H$1:$H75),стлСтуи,0)),\"\")","v":"Стул РОМЕО, бук, ткань, без патины"},{"$f":"IF($I75,COUNTIF($I$1:$I75,TRUE),\"\")","v":75},{"$f":"NOT(ISERROR(SEARCH(Калькулятор!$C$15,$B75)))","v":true}]
["121-011п","Стул РОМЕО, бук, ткань, патина","шт",7176,null,null,{"$f":"IFERROR(INDEX(стлСтуг,MATCH(ROWS($H$1:$H76),стлСтуи,0)),\"\")","v":"Стул РОМЕО, бук, ткань, патина"},{"$f":"IF($I76,COUNTIF($I$1:$I76,TRUE),\"\")","v":76},{"$f":"NOT(ISERROR(SEARCH(Калькулятор!$C$15,$B76)))","v":true}]
["121-012","Стул РОМЕО, бук, сиденье массив, без патины","шт",7308,null,null,{"$f":"IFERROR(INDEX(стлСтуг,MATCH(ROWS($H$1:$H77),стлСтуи,0)),\"\")","v":"Стул РОМЕО, бук, сиденье массив, без патины"},{"$f":"IF($I77,COUNTIF($I$1:$I77,TRUE),\"\")","v":77},{"$f":"NOT(ISERROR(SEARCH(Калькулятор!$C$15,$B77)))","v":true}]
["121-012п","Стул РОМЕО, бук, сиденье массив, патина","шт",7893,null,null,{"$f":"IFERROR(INDEX(стлСтуг,MATCH(ROWS($H$1:$H78),стлСтуи,0)),\"\")","v":"Стул РОМЕО, бук, сиденье массив, патина"},{"$f":"IF($I78,COUNTIF($I$1:$I78,TRUE),\"\")","v":78},{"$f":"NOT(ISERROR(SEARCH(Калькулятор!$C$15,$B78)))","v":true}]
["122-011","Стул СОВЕТНИК, бук, ткань, без патины","шт",6644,null,null,{"$f":"IFERROR(INDEX(стлСтуг,MATCH(ROWS($H$1:$H79),стлСтуи,0)),\"\")","v":"Стул СОВЕТНИК, бук, ткань, без патины"},{"$f":"IF($I79,COUNTIF($I$1:$I79,TRUE),\"\")","v":79},{"$f":"NOT(ISERROR(SEARCH(Калькулятор!$C$15,$B79)))","v":true}]
["122-011п","Стул СОВЕТНИК, бук, ткань, патина","шт",7176,null,null,{"$f":"IFERROR(INDEX(стлСтуг,MATCH(ROWS($H$1:$H80),стлСтуи,0)),\"\")","v":"Стул СОВЕТНИК, бук, ткань, патина"},{"$f":"IF($I80,COUNTIF($I$1:$I80,TRUE),\"\")","v":80},{"$f":"NOT(ISERROR(SEARCH(Калькулятор!$C$15,$B80)))","v":true}]
["122-012","Стул СОВЕТНИК, бук, сиденье массив, без патины","шт",7308,null,null,{"$f":"IFERROR(INDEX(стлСтуг,MATCH(ROWS($H$1:$H81),стлСтуи,0)),\"\")","v":"Стул СОВЕТНИК, бук, сиденье массив, без патины"},{"$f":"IF($I81,COUNTIF($I$1:$I81,TRUE),\"\")","v":81},{"$f":"NOT(ISERROR(SEARCH(Калькулятор!$C$15,$B81)))","v":true}]
["122-012п","Стул СОВЕТНИК, бук, сиденье массив, патина","шт",7893,null,null,{"$f":"IFERROR(INDEX(стлСтуг,MATCH(ROWS($H$1:$H82),стлСтуи,0)),\"\")","v":"Стул СОВЕТНИК, бук, сиденье массив, патина"},{"$f":"IF($I82,COUNTIF($I$1:$I82,TRUE),\"\")","v":82},{"$f":"NOT(ISERROR(SEARCH(Калькулятор!$C$15,$B82)))","v":true}]
["137-051","Стул СОВРЕМЕННИК, ясень, ткань, без патины","шт",15160,null,null,{"$f":"IFERROR(INDEX(стлСтуг,MATCH(ROWS($H$1:$H83),стлСтуи,0)),\"\")","v":"Стул СОВРЕМЕННИК, ясень, ткань, без патины"},{"$f":"IF($I83,COUNTIF($I$1:$I83,TRUE),\"\")","v":83},{"$f":"NOT(ISERROR(SEARCH(Калькулятор!$C$15,$B83)))","v":true}]
["137-051п","Стул СОВРЕМЕННИК, ясень, ткань, патина","шт",16373,null,null,{"$f":"IFERROR(INDEX(стлСтуг,MATCH(ROWS($H$1:$H84),стлСтуи,0)),\"\")","v":"Стул СОВРЕМЕННИК, ясень, ткань, патина"},{"$f":"IF($I84,COUNTIF($I$1:$I84,TRUE),\"\")","v":84},{"$f":"NOT(ISERROR(SEARCH(Калькулятор!$C$15,$B84)))","v":true}]
["123-011","Стул ТАВЕРНА, бук, ткань, без патины","шт",7623,null,null,{"$f":"IFERROR(INDEX(стлСтуг,MATCH(ROWS($H$1:$H85),стлСтуи,0)),\"\")","v":"Стул ТАВЕРНА, бук, ткань, без патины"},{"$f":"IF($I85,COUNTIF($I$1:$I85,TRUE),\"\")","v":85},{"$f":"NOT(ISERROR(SEARCH(Калькулятор!$C$15,$B85)))","v":true}]
["123-011п","Стул ТАВЕРНА, бук, ткань, патина","шт",8233,null,null,{"$f":"IFERROR(INDEX(стлСтуг,MATCH(ROWS($H$1:$H86),стлСтуи,0)),\"\")","v":"Стул ТАВЕРНА, бук, ткань, патина"},{"$f":"IF($I86,COUNTIF($I$1:$I86,TRUE),\"\")","v":86},{"$f":"NOT(ISERROR(SEARCH(Калькулятор!$C$15,$B86)))","v":true}]
["123-012","Стул ТАВЕРНА, бук, сиденье массив, без патины","шт",8385,null,null,{"$f":"IFERROR(INDEX(стлСтуг,MATCH(ROWS($H$1:$H87),стлСтуи,0)),\"\")","v":"Стул ТАВЕРНА, бук, сиденье массив, без патины"},{"$f":"IF($I87,COUNTIF($I$1:$I87,TRUE),\"\")","v":87},{"$f":"NOT(ISERROR(SEARCH(Калькулятор!$C$15,$B87)))","v":true}]
["123-012п","Стул ТАВЕРНА, бук, сиденье массив, патина","шт",9056,null,null,{"$f":"IFERROR(INDEX(стлСтуг,MATCH(ROWS($H$1:$H88),стлСтуи,0)),\"\")","v":"Стул ТАВЕРНА, бук, сиденье массив, патина"},{"$f":"IF($I88,COUNTIF($I$1:$I88,TRUE),\"\")","v":88},{"$f":"NOT(ISERROR(SEARCH(Калькулятор!$C$15,$B88)))","v":true}]
["123-013","Стул ТАВЕРНА, бук, плетение, без патины","шт",7623,null,null,{"$f":"IFERROR(INDEX(стлСтуг,MATCH(ROWS($H$1:$H89),стлСтуи,0)),\"\")","v":"Стул ТАВЕРНА, бук, плетение, без патины"},{"$f":"IF($I89,COUNTIF($I$1:$I89,TRUE),\"\")","v":89},{"$f":"NOT(ISERROR(SEARCH(Калькулятор!$C$15,$B89)))","v":true}]
["123-013п","Стул ТАВЕРНА, бук, плетение, патина","шт",8233,null,null,{"$f":"IFERROR(INDEX(стлСтуг,MATCH(ROWS($H$1:$H90),стлСтуи,0)),\"\")","v":"Стул ТАВЕРНА, бук, плетение, патина"},{"$f":"IF($I90,COUNTIF($I$1:$I90,TRUE),\"\")","v":90},{"$f":"NOT(ISERROR(SEARCH(Калькулятор!$C$15,$B90)))","v":true}]
["124-011","Стул ФЛОРЕНЦИЯ, бук, ткань, без патины","шт",5841,null,null,{"$f":"IFERROR(INDEX(стлСтуг,MATCH(ROWS($H$1:$H91),стлСтуи,0)),\"\")","v":"Стул ФЛОРЕНЦИЯ, бук, ткань, без патины"},{"$f":"IF($I91,COUNTIF($I$1:$I91,TRUE),\"\")","v":91},{"$f":"NOT(ISERROR(SEARCH(Калькулятор!$C$15,$B91)))","v":true}]
["124-011п","Стул ФЛОРЕНЦИЯ, бук, ткань, патина","шт",6308,null,null,{"$f":"IFERROR(INDEX(стлСтуг,MATCH(ROWS($H$1:$H92),стлСтуи,0)),\"\")","v":"Стул ФЛОРЕНЦИЯ, бук, ткань, патина"},{"$f":"IF($I92,COUNTIF($I$1:$I92,TRUE),\"\")","v":92},{"$f":"NOT(ISERROR(SEARCH(Калькулятор!$C$15,$B92)))","v":true}]
["124-012","Стул ФЛОРЕНЦИЯ, бук, сиденье массив, без патины","шт",6425,null,null,{"$f":"IFERROR(INDEX(стлСтуг,MATCH(ROWS($H$1:$H93),стлСтуи,0)),\"\")","v":"Стул ФЛОРЕНЦИЯ, бук, сиденье массив, без патины"},{"$f":"IF($I93,COUNTIF($I$1:$I93,TRUE),\"\")","v":93},{"$f":"NOT(ISERROR(SEARCH(Калькулятор!$C$15,$B93)))","v":true}]
["124-012п","Стул ФЛОРЕНЦИЯ, бук, сиденье массив, патина","шт",6939,null,null,{"$f":"IFERROR(INDEX(стлСтуг,MATCH(ROWS($H$1:$H94),стлСтуи,0)),\"\")","v":"Стул ФЛОРЕНЦИЯ, бук, сиденье массив, патина"},{"$f":"IF($I94,COUNTIF($I$1:$I94,TRUE),\"\")","v":94},{"$f":"NOT(ISERROR(SEARCH(Калькулятор!$C$15,$B94)))","v":true}]
["124-013","Стул ФЛОРЕНЦИЯ, бук, плетение, без патины","шт",5841,null,null,{"$f":"IFERROR(INDEX(стлСтуг,MATCH(ROWS($H$1:$H95),стлСтуи,0)),\"\")","v":"Стул ФЛОРЕНЦИЯ, бук, плетение, без патины"},{"$f":"IF($I95,COUNTIF($I$1:$I95,TRUE),\"\")","v":95},{"$f":"NOT(ISERROR(SEARCH(Калькулятор!$C$15,$B95)))","v":true}]
["124-013п","Стул ФЛОРЕНЦИЯ, бук, плетение, патина","шт",6308,null,null,{"$f":"IFERROR(INDEX(стлСтуг,MATCH(ROWS($H$1:$H96),стлСтуи,0)),\"\")","v":"Стул ФЛОРЕНЦИЯ, бук, плетение, патина"},{"$f":"IF($I96,COUNTIF($I$1:$I96,TRUE),\"\")","v":96},{"$f":"NOT(ISERROR(SEARCH(Калькулятор!$C$15,$B96)))","v":true}]
["138-011","Стул ЧЕЛСИ, бук, ткань, без патины","шт",17220,null,null,{"$f":"IFERROR(INDEX(стлСтуг,MATCH(ROWS($H$1:$H97),стлСтуи,0)),\"\")","v":"Стул ЧЕЛСИ, бук, ткань, без патины"},{"$f":"IF($I97,COUNTIF($I$1:$I97,TRUE),\"\")","v":97},{"$f":"NOT(ISERROR(SEARCH(Калькулятор!$C$15,$B97)))","v":true}]
["138-011п","Стул ЧЕЛСИ, бук, ткань, патина","шт",18598,null,null,{"$f":"IFERROR(INDEX(стлСтуг,MATCH(ROWS($H$1:$H98),стлСтуи,0)),\"\")","v":"Стул ЧЕЛСИ, бук, ткань, патина"},{"$f":"IF($I98,COUNTIF($I$1:$I98,TRUE),\"\")","v":98},{"$f":"NOT(ISERROR(SEARCH(Калькулятор!$C$15,$B98)))","v":true}]
["125-011","Стул ЭЛТОН, бук, ткань, без патины","шт",8350,null,null,{"$f":"IFERROR(INDEX(стлСтуг,MATCH(ROWS($H$1:$H99),стлСтуи,0)),\"\")","v":"Стул ЭЛТОН, бук, ткань, без патины"},{"$f":"IF($I99,COUNTIF($I$1:$I99,TRUE),\"\")","v":99},{"$f":"NOT(ISERROR(SEARCH(Калькулятор!$C$15,$B99)))","v":true}]
["125-011п","Стул ЭЛТОН, бук, ткань, патина","шт",9018,null,null,{"$f":"IFERROR(INDEX(стлСтуг,MATCH(ROWS($H$1:$H100),стлСтуи,0)),\"\")","v":"Стул ЭЛТОН, бук, ткань, патина"},{"$f":"IF($I100,COUNTIF($I$1:$I100,TRUE),\"\")","v":100},{"$f":"NOT(ISERROR(SEARCH(Калькулятор!$C$15,$B100)))","v":true}]